Department,Entity,Transaction Date,Expense Type,Expense Area,Supplier,Transaction No.,Amount
"Department for Business, Energy and Industrial Strategy",The Coal Authority,13/07/2023,Subsistence Allowances,Board,Government Procurement Card,163890,3.13
"Department for Business, Energy and Industrial Strategy",The Coal Authority,23/08/2023,Training & Education,Board,Oe Cam Llp,163211,"1,330.80"
"Department for Business, Energy and Industrial Strategy",The Coal Authority,08/09/2023,CY - Minewater Scheme - Additions,By-Products - Energy,Severn Trent Serv Ops Uk Ltd,163307,"19,439.69"
"Department for Business, Energy and Industrial Strategy",The Coal Authority,30/08/2023,Innovation Costs,By-Products - Heat,Government Procurement Card,163889,478.17
"Department for Business, Energy and Industrial Strategy",The Coal Authority,07/08/2023,Fuel (Vehicle),By-Products - Ochre,Government Procurement Card,163889,49.21
"Department for Business, Energy and Industrial Strategy",The Coal Authority,07/08/2023,Incidentals,By-Products - Ochre,Government Procurement Card,163889,2.2
"Department for Business, Energy and Industrial Strategy",The Coal Authority,07/08/2023,Incidentals,By-Products - Ochre,Government Procurement Card,163889,2.2
"Department for Business, Energy and Industrial Strategy",The Coal Authority,07/08/2023,Subsistence Allowances,By-Products - Ochre,Government Procurement Card,163889,15.2
"Department for Business, Energy and Industrial Strategy",The Coal Authority,17/08/2023,Fuel (Vehicle),By-Products - Ochre,Government Procurement Card,163889,55.19
"Department for Business, Energy and Industrial Strategy",The Coal Authority,17/08/2023,Incidentals,By-Products - Ochre,Government Procurement Card,163889,2.2
"Department for Business, Energy and Industrial Strategy",The Coal Authority,17/08/2023,Incidentals,By-Products - Ochre,Government Procurement Card,163889,2.2
"Department for Business, Energy and Industrial Strategy",The Coal Authority,21/08/2023,Incidentals,By-Products - Ochre,Government Procurement Card,163889,2.2
"Department for Business, Energy and Industrial Strategy",The Coal Authority,21/08/2023,Incidentals,By-Products - Ochre,Government Procurement Card,163889,2.2
"Department for Business, Energy and Industrial Strategy",The Coal Authority,21/08/2023,Subsistence Allowances,By-Products - Ochre,Government Procurement Card,163889,14.5
"Department for Business, Energy and Industrial Strategy",The Coal Authority,31/08/2023,Fuel (Vehicle),By-Products - Ochre,Government Procurement Card,163889,36.02
"Department for Business, Energy and Industrial Strategy",The Coal Authority,21/08/2023,Mileage Payments,By-Products - Ochre,Staff Control Expenses,162290,73.35
"Department for Business, Energy and Industrial Strategy",The Coal Authority,21/08/2023,Mileage Payments,By-Products - Ochre,Staff Control Expenses,162290,73.9
"Department for Business, Energy and Industrial Strategy",The Coal Authority,21/08/2023,Mileage Payments,By-Products - Ochre,Staff Control Expenses,162290,3.63
"Department for Business, Energy and Industrial Strategy",The Coal Authority,21/08/2023,Mileage Payments,By-Products - Ochre,Staff Control Expenses,162290,3.57
"Department for Business, Energy and Industrial Strategy",The Coal Authority,15/08/2023,Subsistence Allowances,Colleague & Corporate Engagement,Government Procurement Card,163889,9.48
"Department for Business, Energy and Industrial Strategy",The Coal Authority,15/08/2023,Subsistence Allowances,Colleague & Corporate Engagement,Government Procurement Card,163889,20.21
"Department for Business, Energy and Industrial Strategy",The Coal Authority,31/07/2023,Public Relations,Community Response,Copper Consultancy Ltd,163008,"3,556.75"
"Department for Business, Energy and Industrial Strategy",The Coal Authority,19/09/2023,Public Relations,Community Response,David Bell Photography,163566,972.8
"Department for Business, Energy and Industrial Strategy",The Coal Authority,15/08/2023,Fuel (Vehicle),Community Response,Government Procurement Card,163889,41.98
"Department for Business, Energy and Industrial Strategy",The Coal Authority,15/08/2023,Subsistence Allowances,Community Response,Government Procurement Card,163889,19.17
"Department for Business, Energy and Industrial Strategy",The Coal Authority,15/08/2023,Subsistence Allowances,Community Response,Government Procurement Card,163889,15.71
"Department for Business, Energy and Industrial Strategy",The Coal Authority,15/08/2023,Subsistence Allowances,Community Response,Government Procurement Card,163889,3.75
"Department for Business, Energy and Industrial Strategy",The Coal Authority,15/08/2023,Subsistence Allowances,Community Response,Government Procurement Card,163889,6
"Department for Business, Energy and Industrial Strategy",The Coal Authority,15/08/2023,Subsistence Allowances,Community Response,Government Procurement Card,163889,9.48
"Department for Business, Energy and Industrial Strategy",The Coal Authority,15/08/2023,Subsistence Allowances,Community Response,Government Procurement Card,163889,8
"Department for Business, Energy and Industrial Strategy",The Coal Authority,31/08/2023,Public Relations,Community Response,Government Procurement Card,163889,16.99
"Department for Business, Energy and Industrial Strategy",The Coal Authority,30/08/2023,Membership Subscriptions,Community Response,Haymarket Media Group,162111,"1,838.00"
"Department for Business, Energy and Industrial Strategy",The Coal Authority,05/09/2023,Public Relations,Community Response,Meltwater,163951,"25,400.00"
"Department for Business, Energy and Industrial Strategy",The Coal Authority,08/09/2023,Mileage Payments,Community Response,Staff Control Expenses,163283,27
"Department for Business, Energy and Industrial Strategy",The Coal Authority,08/09/2023,Mileage Payments,Community Response,Staff Control Expenses,163283,26.1
"Department for Business, Energy and Industrial Strategy",The Coal Authority,30/08/2023,Temporary Contractors,Corporate Programme Office,Cherry Professional Limited,162106,"1,118.51"
"Department for Business, Energy and Industrial Strategy",The Coal Authority,06/09/2023,Temporary Contractors,Corporate Programme Office,Cherry Professional Limited,162867,891.78
"Department for Business, Energy and Industrial Strategy",The Coal Authority,06/09/2023,Temporary Contractors,Corporate Programme Office,Cherry Professional Limited,162867,0.01
"Department for Business, Energy and Industrial Strategy",The Coal Authority,20/09/2023,Temporary Contractors,Corporate Programme Office,Cherry Professional Limited,163512,453.45
"Department for Business, Energy and Industrial Strategy",The Coal Authority,27/09/2023,Temporary Contractors,Corporate Programme Office,Cherry Professional Limited,163939,"1,118.51"
"Department for Business, Energy and Industrial Strategy",The Coal Authority,02/08/2023,Training & Education,Corporate Programme Office,ILX Group,162239,"2,181.50"
"Department for Business, Energy and Industrial Strategy",The Coal Authority,23/08/2023,Subsistence Allowances,Corporate Programme Office,Staff Control Expenses,162808,4.16
"Department for Business, Energy and Industrial Strategy",The Coal Authority,23/08/2023,Subsistence Allowances,Corporate Programme Office,Staff Control Expenses,162808,23.92
"Department for Business, Energy and Industrial Strategy",The Coal Authority,24/08/2023,Subsistence Allowances,Corporate Programme Office,Staff Control Expenses,162808,8.04
"Department for Business, Energy and Industrial Strategy",The Coal Authority,31/08/2023,Fares - Public Transport,Customer Services & Strategy,Ace Of Mansfield Ltd,162358,94.39
"Department for Business, Energy and Industrial Strategy",The Coal Authority,27/09/2023,Stationery,Customer Services & Strategy,Banner Business Solutions,163867,71.5
"Department for Business, Energy and Industrial Strategy",The Coal Authority,27/09/2023,Stationery,Customer Services & Strategy,Banner Business Solutions,163867,37.51
"Department for Business, Energy and Industrial Strategy",The Coal Authority,27/09/2023,Stationery,Customer Services & Strategy,Banner Business Solutions,163867,0.63
"Department for Business, Energy and Industrial Strategy",The Coal Authority,27/09/2023,Stationery,Customer Services & Strategy,Banner Business Solutions,163867,45.65
"Department for Business, Energy and Industrial Strategy",The Coal Authority,27/09/2023,Stationery,Customer Services & Strategy,Banner Business Solutions,163867,35.4
"Department for Business, Energy and Industrial Strategy",The Coal Authority,27/09/2023,Stationery,Customer Services & Strategy,Banner Business Solutions,163867,20.68
"Department for Business, Energy and Industrial Strategy",The Coal Authority,27/09/2023,Stationery,Customer Services & Strategy,Banner Business Solutions,163867,58.88
"Department for Business, Energy and Industrial Strategy",The Coal Authority,27/09/2023,Stationery,Customer Services & Strategy,Banner Business Solutions,163867,70.35
"Department for Business, Energy and Industrial Strategy",The Coal Authority,27/09/2023,Stationery,Customer Services & Strategy,Banner Business Solutions,163867,165.35
"Department for Business, Energy and Industrial Strategy",The Coal Authority,27/09/2023,Stationery,Customer Services & Strategy,Banner Business Solutions,163867,20.79
"Department for Business, Energy and Industrial Strategy",The Coal Authority,27/09/2023,Stationery,Customer Services & Strategy,Banner Business Solutions,163867,90.2
"Department for Business, Energy and Industrial Strategy",The Coal Authority,27/09/2023,Stationery,Customer Services & Strategy,Banner Business Solutions,163867,7.4
"Department for Business, Energy and Industrial Strategy",The Coal Authority,27/09/2023,Stationery,Customer Services & Strategy,Banner Business Solutions,163867,69.06
"Department for Business, Energy and Industrial Strategy",The Coal Authority,27/09/2023,Stationery,Customer Services & Strategy,Banner Business Solutions,163867,10.04
"Department for Business, Energy and Industrial Strategy",The Coal Authority,27/09/2023,Stationery,Customer Services & Strategy,Banner Business Solutions,163867,97
"Department for Business, Energy and Industrial Strategy",The Coal Authority,27/09/2023,Stationery,Customer Services & Strategy,Banner Business Solutions,163867,52.2
"Department for Business, Energy and Industrial Strategy",The Coal Authority,27/09/2023,Stationery,Customer Services & Strategy,Banner Business Solutions,163867,71.5
"Department for Business, Energy and Industrial Strategy",The Coal Authority,27/09/2023,Stationery,Customer Services & Strategy,Banner Business Solutions,163867,11.7
"Department for Business, Energy and Industrial Strategy",The Coal Authority,27/09/2023,Stationery,Customer Services & Strategy,Banner Business Solutions,163867,7.4
"Department for Business, Energy and Industrial Strategy",The Coal Authority,25/08/2023,Postage & Couriers,Customer Services & Strategy,FedEx Express UK Transportaion Limited,162300,83.3
"Department for Business, Energy and Industrial Strategy",The Coal Authority,01/09/2023,Postage & Couriers,Customer Services & Strategy,FedEx Express UK Transportaion Limited,162935,75.27
"Department for Business, Energy and Industrial Strategy",The Coal Authority,08/09/2023,Postage & Couriers,Customer Services & Strategy,FedEx Express UK Transportaion Limited,163336,91.19
"Department for Business, Energy and Industrial Strategy",The Coal Authority,15/09/2023,Postage & Couriers,Customer Services & Strategy,FedEx Express UK Transportaion Limited,163608,91.07
"Department for Business, Energy and Industrial Strategy",The Coal Authority,22/09/2023,Postage & Couriers,Customer Services & Strategy,FedEx Express UK Transportaion Limited,163949,13.1
"Department for Business, Energy and Industrial Strategy",The Coal Authority,22/09/2023,Postage & Couriers,Customer Services & Strategy,FedEx Express UK Transportaion Limited,163949,28.46
"Department for Business, Energy and Industrial Strategy",The Coal Authority,26/06/2023,Desktop Computing,Customer Services & Strategy,Government Procurement Card,163891,20.83
"Department for Business, Energy and Industrial Strategy",The Coal Authority,27/06/2023,Fares - Rail,Customer Services & Strategy,Government Procurement Card,163891,24.4
"Department for Business, Energy and Industrial Strategy",The Coal Authority,27/06/2023,Subsistence Allowances,Customer Services & Strategy,Government Procurement Card,163891,23.67
"Department for Business, Energy and Industrial Strategy",The Coal Authority,27/06/2023,Subsistence Allowances,Customer Services & Strategy,Government Procurement Card,163891,1.92
"Department for Business, Energy and Industrial Strategy",The Coal Authority,27/06/2023,Subsistence Allowances,Customer Services & Strategy,Government Procurement Card,163891,3.25
"Department for Business, Energy and Industrial Strategy",The Coal Authority,28/06/2023,Fares - Public Transport,Customer Services & Strategy,Government Procurement Card,163891,12.2
"Department for Business, Energy and Industrial Strategy",The Coal Authority,28/06/2023,Subsistence Allowances,Customer Services & Strategy,Government Procurement Card,163891,30
"Department for Business, Energy and Industrial Strategy",The Coal Authority,28/06/2023,Subsistence Allowances,Customer Services & Strategy,Government Procurement Card,163891,30
"Department for Business, Energy and Industrial Strategy",The Coal Authority,29/06/2023,Subsistence Allowances,Customer Services & Strategy,Government Procurement Card,163891,1.92
"Department for Business, Energy and Industrial Strategy",The Coal Authority,29/06/2023,Subsistence Allowances,Customer Services & Strategy,Government Procurement Card,163891,2.92
"Department for Business, Energy and Industrial Strategy",The Coal Authority,29/06/2023,Subsistence Allowances,Customer Services & Strategy,Government Procurement Card,163891,2.92
"Department for Business, Energy and Industrial Strategy",The Coal Authority,01/09/2023,Contract Hire Vehicles,Customer Services & Strategy,Harveys Autocentre Ltd,162936,105
"Department for Business, Energy and Industrial Strategy",The Coal Authority,13/09/2023,Stationery,Customer Services & Strategy,Imprint,162987,47.24
"Department for Business, Energy and Industrial Strategy",The Coal Authority,13/09/2023,Postage & Couriers,Customer Services & Strategy,Royal Mail Group Plc,163326,90
"Department for Business, Energy and Industrial Strategy",The Coal Authority,01/09/2023,Incidentals,Customer Services & Strategy,Security Plus Limited,162361,16.61
"Department for Business, Energy and Industrial Strategy",The Coal Authority,12/09/2023,Postage & Couriers,Customer Services & Strategy,THE MAILING ROOM LTD,163337,165
"Department for Business, Energy and Industrial Strategy",The Coal Authority,03/07/2023,eCommerce Commission Charges,Customer Services & Strategy,Worldpay Limited,162301,19.95
"Department for Business, Energy and Industrial Strategy",The Coal Authority,01/09/2023,eCommerce Commission Charges,Customer Services & Strategy,Worldpay Limited,162359,256.81
"Department for Business, Energy and Industrial Strategy",The Coal Authority,04/09/2023,CY - Non-coal Minewater - Additions,DEFRA LEP Funding,Aecom Infrastructure & Env,162528,"5,394.54"
"Department for Business, Energy and Industrial Strategy",The Coal Authority,04/09/2023,CY - Non-coal Minewater - Additions,DEFRA LEP Funding,Aecom Infrastructure & Env,162528,"6,642.66"
"Department for Business, Energy and Industrial Strategy",The Coal Authority,12/09/2023,CY - Non-coal Minewater - Additions,DEFRA LEP Funding,Aecom Infrastructure & Env,162929,433.67
"Department for Business, Energy and Industrial Strategy",The Coal Authority,12/09/2023,CY - Non-coal Minewater - Additions,DEFRA LEP Funding,Aecom Infrastructure & Env,162929,459.98
"Department for Business, Energy and Industrial Strategy",The Coal Authority,12/09/2023,CY - Non-coal Minewater - Additions,DEFRA LEP Funding,Aecom Infrastructure & Env,162929,"2,382.58"
"Department for Business, Energy and Industrial Strategy",The Coal Authority,12/09/2023,CY - Non-coal Minewater - Additions,DEFRA LEP Funding,Aecom Infrastructure & Env,162929,"2,567.42"
"Department for Business, Energy and Industrial Strategy",The Coal Authority,12/09/2023,CY - Non-coal Minewater - Additions,DEFRA LEP Funding,Aecom Infrastructure & Env,162929,900.92
"Department for Business, Energy and Industrial Strategy",The Coal Authority,12/09/2023,CY - Non-coal Minewater - Additions,DEFRA LEP Funding,Aecom Infrastructure & Env,162929,"5,072.08"
"Department for Business, Energy and Industrial Strategy",The Coal Authority,12/09/2023,CY - Non-coal Minewater - Additions,DEFRA LEP Funding,Aecom Infrastructure & Env,162929,"1,298.98"
"Department for Business, Energy and Industrial Strategy",The Coal Authority,12/09/2023,CY - Non-coal Minewater - Additions,DEFRA LEP Funding,Aecom Infrastructure & Env,162929,"2,401.31"
"Department for Business, Energy and Industrial Strategy",The Coal Authority,19/07/2023,CY - Non-coal Minewater - Additions,DEFRA LEP Funding,Aecom Infrastructure & Env,163168,"25,971.20"
"Department for Business, Energy and Industrial Strategy",The Coal Authority,15/09/2023,CY - Non-coal Minewater - Additions,DEFRA LEP Funding,Aecom Infrastructure & Env,163169,"-25,971.20"
"Department for Business, Energy and Industrial Strategy",The Coal Authority,15/09/2023,CY - Non-coal Minewater - Additions,DEFRA LEP Funding,AECOM Ltd,163165,"-2,500.00"
"Department for Business, Energy and Industrial Strategy",The Coal Authority,28/09/2023,Public Relations,DEFRA LEP Funding,Carrshield Village Hall arts and crafts Centre,163878,30
"Department for Business, Energy and Industrial Strategy",The Coal Authority,31/08/2023,Minewater Site Investigations,DEFRA LEP Funding,Dunelm Geotechnical and Environmental Ltd,163784,590.94
"Department for Business, Energy and Industrial Strategy",The Coal Authority,31/08/2023,Minewater Site Investigations,DEFRA LEP Funding,Dunelm Geotechnical and Environmental Ltd,163784,"26,190.34"
"Department for Business, Energy and Industrial Strategy",The Coal Authority,07/08/2023,Subsistence Allowances,DEFRA LEP Funding,Government Procurement Card,163889,11.25
"Department for Business, Energy and Industrial Strategy",The Coal Authority,08/08/2023,Subsistence Allowances,DEFRA LEP Funding,Government Procurement Card,163889,10.21
"Department for Business, Energy and Industrial Strategy",The Coal Authority,08/08/2023,Subsistence Allowances,DEFRA LEP Funding,Government Procurement Card,163889,10.21
"Department for Business, Energy and Industrial Strategy",The Coal Authority,17/08/2023,Subsistence Allowances,DEFRA LEP Funding,Government Procurement Card,163889,9.5
"Department for Business, Energy and Industrial Strategy",The Coal Authority,17/08/2023,Subsistence Allowances,DEFRA LEP Funding,Government Procurement Card,163889,0.5
"Department for Business, Energy and Industrial Strategy",The Coal Authority,17/08/2023,Subsistence Allowances,DEFRA LEP Funding,Government Procurement Card,163889,10
"Department for Business, Energy and Industrial Strategy",The Coal Authority,17/07/2023,Fuel (Vehicle),DEFRA LEP Funding,Government Procurement Card,163890,38.33
"Department for Business, Energy and Industrial Strategy",The Coal Authority,20/07/2023,Subsistence Allowances,DEFRA LEP Funding,Government Procurement Card,163890,11.34
"Department for Business, Energy and Industrial Strategy",The Coal Authority,20/07/2023,Subsistence Allowances,DEFRA LEP Funding,Government Procurement Card,163890,11.34
"Department for Business, Energy and Industrial Strategy",The Coal Authority,22/09/2023,CY - Non-coal Minewater - Additions,DEFRA LEP Funding,I & H Brown Limited,163556,"261,924.37"
"Department for Business, Energy and Industrial Strategy",The Coal Authority,11/09/2023,Minewater Land Agents (Acquisitions),DEFRA LEP Funding,Compensation Payment,162846,"4,764.00"
"Department for Business, Energy and Industrial Strategy",The Coal Authority,18/09/2023,Public Relations,DEFRA LEP Funding,Nenthead Village Hall,163745,108
"Department for Business, Energy and Industrial Strategy",The Coal Authority,18/08/2023,Mileage Payments,DEFRA LEP Funding,Staff Control Expenses,162290,52.65
"Department for Business, Energy and Industrial Strategy",The Coal Authority,18/08/2023,Mileage Payments,DEFRA LEP Funding,Staff Control Expenses,162290,53.1
"Department for Business, Energy and Industrial Strategy",The Coal Authority,18/08/2023,Subsistence Allowances,DEFRA LEP Funding,Staff Control Expenses,162290,12
"Department for Business, Energy and Industrial Strategy",The Coal Authority,04/09/2023,CY - Non-coal Minewater - Additions,DEFRA LEP Funding,TerrAffix Soil Solutions Ltd,162559,"32,500.00"
"Department for Business, Energy and Industrial Strategy",The Coal Authority,24/07/2023,CY - Non-coal Minewater - Additions,DEFRA LEP Funding,Tyne Rivers Trust,162679,"7,428.00"
"Department for Business, Energy and Industrial Strategy",The Coal Authority,19/09/2023,CY - Non-coal Minewater - Additions,DEFRA LEP Funding,Tyne Rivers Trust,163567,"1,800.00"
"Department for Business, Energy and Industrial Strategy",The Coal Authority,21/08/2023,CY - Non-coal Minewater - Additions,DEFRA LEP Funding,Wardell Armstrong LLP,162555,"1,620.00"
"Department for Business, Energy and Industrial Strategy",The Coal Authority,15/09/2023,CY - Non-coal Minewater - Additions,DEFRA Metal Mine Programme,AECOM Ltd,163165,"-2,500.00"
"Department for Business, Energy and Industrial Strategy",The Coal Authority,15/09/2023,CY - Non-coal Minewater - Additions,DEFRA Metal Mine Programme,AECOM Ltd,163165,"-2,500.00"
"Department for Business, Energy and Industrial Strategy",The Coal Authority,15/09/2023,CY - Non-coal Minewater - Additions,DEFRA Metal Mine Programme,AECOM Ltd,163165,"-2,500.00"
"Department for Business, Energy and Industrial Strategy",The Coal Authority,20/09/2023,CY - Non-coal Minewater - Additions,DEFRA Metal Mine Programme,AECOM Ltd,163705,"6,492.80"
"Department for Business, Energy and Industrial Strategy",The Coal Authority,20/09/2023,CY - Non-coal Minewater - Additions,DEFRA Metal Mine Programme,AECOM Ltd,163705,"6,492.80"
"Department for Business, Energy and Industrial Strategy",The Coal Authority,20/09/2023,CY - Non-coal Minewater - Additions,DEFRA Metal Mine Programme,AECOM Ltd,163705,"6,492.80"
"Department for Business, Energy and Industrial Strategy",The Coal Authority,20/09/2023,CY - Non-coal Minewater - Additions,DEFRA Metal Mine Programme,AECOM Ltd,163705,"6,492.80"
"Department for Business, Energy and Industrial Strategy",The Coal Authority,14/09/2023,Minewater Rent,DEFRA Metal Mine Programme,Brownfield Investments Ltd,163042,"-22,269.25"
"Department for Business, Energy and Industrial Strategy",The Coal Authority,14/09/2023,Minewater Rent,DEFRA Metal Mine Programme,Brownfield Investments Ltd,163042,-694.36
"Department for Business, Energy and Industrial Strategy",The Coal Authority,11/09/2023,Minewater Power Costs,DEFRA Metal Mine Programme,Edf Energy,163335,50.39
"Department for Business, Energy and Industrial Strategy",The Coal Authority,11/09/2023,Minewater Power Costs,DEFRA Metal Mine Programme,Edf Energy,163371,290.91
"Department for Business, Energy and Industrial Strategy",The Coal Authority,07/08/2023,Minewater Monitoring & Flow Measurement,DEFRA Metal Mine Programme,Government Procurement Card,163889,102.44
"Department for Business, Energy and Industrial Strategy",The Coal Authority,08/08/2023,Fuel (Vehicle),DEFRA Metal Mine Programme,Government Procurement Card,163889,35.5
"Department for Business, Energy and Industrial Strategy",The Coal Authority,09/08/2023,Incidentals,DEFRA Metal Mine Programme,Government Procurement Card,163889,8.33
"Department for Business, Energy and Industrial Strategy",The Coal Authority,09/08/2023,Professional Subscriptions,DEFRA Metal Mine Programme,Government Procurement Card,163889,176.67
"Department for Business, Energy and Industrial Strategy",The Coal Authority,09/08/2023,Subsistence Allowances,DEFRA Metal Mine Programme,Government Procurement Card,163889,1.13
"Department for Business, Energy and Industrial Strategy",The Coal Authority,09/08/2023,Subsistence Allowances,DEFRA Metal Mine Programme,Government Procurement Card,163889,8.33
"Department for Business, Energy and Industrial Strategy",The Coal Authority,09/08/2023,Subsistence Allowances,DEFRA Metal Mine Programme,Government Procurement Card,163889,1.21
"Department for Business, Energy and Industrial Strategy",The Coal Authority,09/08/2023,Subsistence Allowances,DEFRA Metal Mine Programme,Government Procurement Card,163889,3
"Department for Business, Energy and Industrial Strategy",The Coal Authority,09/08/2023,Subsistence Allowances,DEFRA Metal Mine Programme,Government Procurement Card,163889,7.96
"Department for Business, Energy and Industrial Strategy",The Coal Authority,10/08/2023,Fuel (Vehicle),DEFRA Metal Mine Programme,Government Procurement Card,163889,32.92
"Department for Business, Energy and Industrial Strategy",The Coal Authority,10/08/2023,Subsistence Allowances,DEFRA Metal Mine Programme,Government Procurement Card,163889,7.25
"Department for Business, Energy and Industrial Strategy",The Coal Authority,10/08/2023,Subsistence Allowances,DEFRA Metal Mine Programme,Government Procurement Card,163889,2.08
"Department for Business, Energy and Industrial Strategy",The Coal Authority,11/08/2023,Subsistence Allowances,DEFRA Metal Mine Programme,Government Procurement Card,163889,5.5
"Department for Business, Energy and Industrial Strategy",The Coal Authority,16/08/2023,Fuel (Vehicle),DEFRA Metal Mine Programme,Government Procurement Card,163889,41.2
"Department for Business, Energy and Industrial Strategy",The Coal Authority,16/08/2023,Subsistence Allowances,DEFRA Metal Mine Programme,Government Procurement Card,163889,4.29
"Department for Business, Energy and Industrial Strategy",The Coal Authority,16/08/2023,Subsistence Allowances,DEFRA Metal Mine Programme,Government Procurement Card,163889,6.08
"Department for Business, Energy and Industrial Strategy",The Coal Authority,16/08/2023,Subsistence Allowances,DEFRA Metal Mine Programme,Government Procurement Card,163889,4.58
"Department for Business, Energy and Industrial Strategy",The Coal Authority,21/08/2023,Hotel & Accommodation,DEFRA Metal Mine Programme,Government Procurement Card,163889,102.08
"Department for Business, Energy and Industrial Strategy",The Coal Authority,21/08/2023,Hotel & Accommodation,DEFRA Metal Mine Programme,Government Procurement Card,163889,102.08
"Department for Business, Energy and Industrial Strategy",The Coal Authority,21/08/2023,Training & Education,DEFRA Metal Mine Programme,Government Procurement Card,163889,350
"Department for Business, Energy and Industrial Strategy",The Coal Authority,22/08/2023,Subsistence Allowances,DEFRA Metal Mine Programme,Government Procurement Card,163889,11.47
"Department for Business, Energy and Industrial Strategy",The Coal Authority,22/08/2023,Subsistence Allowances,DEFRA Metal Mine Programme,Government Procurement Card,163889,10
"Department for Business, Energy and Industrial Strategy",The Coal Authority,22/08/2023,Subsistence Allowances,DEFRA Metal Mine Programme,Government Procurement Card,163889,10.42
"Department for Business, Energy and Industrial Strategy",The Coal Authority,22/08/2023,Subsistence Allowances,DEFRA Metal Mine Programme,Government Procurement Card,163889,10.42
"Department for Business, Energy and Industrial Strategy",The Coal Authority,23/08/2023,Subsistence Allowances,DEFRA Metal Mine Programme,Government Procurement Card,163889,18.92
"Department for Business, Energy and Industrial Strategy",The Coal Authority,23/08/2023,Subsistence Allowances,DEFRA Metal Mine Programme,Government Procurement Card,163889,18.92
"Department for Business, Energy and Industrial Strategy",The Coal Authority,29/08/2023,Fuel (Vehicle),DEFRA Metal Mine Programme,Government Procurement Card,163889,51.9
"Department for Business, Energy and Industrial Strategy",The Coal Authority,29/08/2023,Innovation Costs,DEFRA Metal Mine Programme,Government Procurement Card,163889,6.25
"Department for Business, Energy and Industrial Strategy",The Coal Authority,29/08/2023,Subsistence Allowances,DEFRA Metal Mine Programme,Government Procurement Card,163889,4.13
"Department for Business, Energy and Industrial Strategy",The Coal Authority,29/08/2023,Subsistence Allowances,DEFRA Metal Mine Programme,Government Procurement Card,163889,3.08
"Department for Business, Energy and Industrial Strategy",The Coal Authority,29/08/2023,Subsistence Allowances,DEFRA Metal Mine Programme,Government Procurement Card,163889,4.58
"Department for Business, Energy and Industrial Strategy",The Coal Authority,31/08/2023,Subsistence Allowances,DEFRA Metal Mine Programme,Government Procurement Card,163889,2.33
"Department for Business, Energy and Industrial Strategy",The Coal Authority,31/08/2023,Subsistence Allowances,DEFRA Metal Mine Programme,Government Procurement Card,163889,2.17
"Department for Business, Energy and Industrial Strategy",The Coal Authority,31/08/2023,Subsistence Allowances,DEFRA Metal Mine Programme,Government Procurement Card,163889,4
"Department for Business, Energy and Industrial Strategy",The Coal Authority,05/07/2023,Subsistence Allowances,DEFRA Metal Mine Programme,Government Procurement Card,163890,14.54
"Department for Business, Energy and Industrial Strategy",The Coal Authority,22/08/2023,Minewater Monitoring & Flow Measurement,DEFRA Metal Mine Programme,Hydro-Logic Services Int Limited,162546,390
"Department for Business, Energy and Industrial Strategy",The Coal Authority,22/08/2023,Minewater Power Costs,DEFRA Metal Mine Programme,IMServ Europe Limited,162868,33.44
"Department for Business, Energy and Industrial Strategy",The Coal Authority,22/08/2023,Minewater Power Costs,DEFRA Metal Mine Programme,IMServ Europe Limited,162869,6.04
"Department for Business, Energy and Industrial Strategy",The Coal Authority,11/08/2023,Minewater Power Costs,DEFRA Metal Mine Programme,IMServ Europe Limited,162870,22.74
"Department for Business, Energy and Industrial Strategy",The Coal Authority,22/08/2023,Minewater Power Costs,DEFRA Metal Mine Programme,IMServ Europe Limited,162871,74.26
"Department for Business, Energy and Industrial Strategy",The Coal Authority,22/08/2023,Minewater Power Costs,DEFRA Metal Mine Programme,IMServ Europe Limited,162871,74.26
"Department for Business, Energy and Industrial Strategy",The Coal Authority,17/08/2023,Minewater Power Costs,DEFRA Metal Mine Programme,IMServ Europe Limited,162971,36.8
"Department for Business, Energy and Industrial Strategy",The Coal Authority,11/08/2023,Minewater Power Costs,DEFRA Metal Mine Programme,IMServ Europe Limited,162976,208.69
"Department for Business, Energy and Industrial Strategy",The Coal Authority,11/08/2023,Minewater Power Costs,DEFRA Metal Mine Programme,IMServ Europe Limited,162976,208.69
"Department for Business, Energy and Industrial Strategy",The Coal Authority,12/09/2023,Minewater Power Costs,DEFRA Metal Mine Programme,IMServ Europe Limited,163328,133.77
"Department for Business, Energy and Industrial Strategy",The Coal Authority,06/09/2023,CY - Minewater Scheme - Additions,DEFRA Metal Mine Programme,John F Hunt Regeneration Ltd,162924,"4,572.26"
"Department for Business, Energy and Industrial Strategy",The Coal Authority,06/09/2023,Minewater Chemicals - Operational Sites,DEFRA Metal Mine Programme,John F Hunt Regeneration Ltd,162924,"13,800.36"
"Department for Business, Energy and Industrial Strategy",The Coal Authority,06/09/2023,Minewater Contractor Add. Task Order - Ops Site,DEFRA Metal Mine Programme,John F Hunt Regeneration Ltd,162924,680.74
"Department for Business, Energy and Industrial Strategy",The Coal Authority,06/09/2023,Minewater Contractor Maint. Visits - Ops Site,DEFRA Metal Mine Programme,John F Hunt Regeneration Ltd,162924,"22,842.28"
"Department for Business, Energy and Industrial Strategy",The Coal Authority,06/09/2023,Minewater Management Fees,DEFRA Metal Mine Programme,John F Hunt Regeneration Ltd,162924,"50,003.10"
"Department for Business, Energy and Industrial Strategy",The Coal Authority,06/09/2023,Minewater Sampling - Operational Sites,DEFRA Metal Mine Programme,John F Hunt Regeneration Ltd,162924,"1,527.78"
"Department for Business, Energy and Industrial Strategy",The Coal Authority,03/08/2023,Research & Development (Non BEIS Funded),DEFRA Metal Mine Programme,Newcastle University,162439,"6,114.46"
"Department for Business, Energy and Industrial Strategy",The Coal Authority,03/08/2023,Research & Development (Non BEIS Funded),DEFRA Metal Mine Programme,Newcastle University,162439,5.54
"Department for Business, Energy and Industrial Strategy",The Coal Authority,21/09/2023,Minewater Sampling - Operational Sites,DEFRA Metal Mine Programme,Ramboll Uk Ltd,163961,"1,750.00"
"Department for Business, Energy and Industrial Strategy",The Coal Authority,08/09/2023,Minewater Contractor Add. Task Order - Ops Site,DEFRA Metal Mine Programme,Severn Trent Serv Ops Uk Ltd,163194,"13,373.79"
"Department for Business, Energy and Industrial Strategy",The Coal Authority,08/09/2023,Minewater Sludge Disposal,DEFRA Metal Mine Programme,Severn Trent Serv Ops Uk Ltd,163194,458.25
"Department for Business, Energy and Industrial Strategy",The Coal Authority,31/08/2023,Minewater Sampling - 'Non-operational' Sites,DEFRA Metal Mine Programme,Socotec UK Limited,162761,832.12
"Department for Business, Energy and Industrial Strategy",The Coal Authority,14/09/2023,Minewater Sampling - 'Non-operational' Sites,DEFRA Metal Mine Programme,Socotec UK Limited,163345,20
"Department for Business, Energy and Industrial Strategy",The Coal Authority,14/09/2023,Minewater Sampling - 'Non-operational' Sites,DEFRA Metal Mine Programme,Socotec UK Limited,163345,157.86
"Department for Business, Energy and Industrial Strategy",The Coal Authority,05/09/2023,Subsistence Allowances,DEFRA Metal Mine Programme,Staff Control Expenses,163283,20.83
"Department for Business, Energy and Industrial Strategy",The Coal Authority,06/09/2023,Fuel (Vehicle),DEFRA Metal Mine Programme,Staff Control Expenses,163283,75.46
"Department for Business, Energy and Industrial Strategy",The Coal Authority,06/09/2023,Subsistence Allowances,DEFRA Metal Mine Programme,Staff Control Expenses,163283,7.91
"Department for Business, Energy and Industrial Strategy",The Coal Authority,30/08/2023,Research & Development (Non BEIS Funded),DEFRA Metal Mine Programme,SUEZ Advanced Solutions UK Ltd,162666,"3,668.95"
"Department for Business, Energy and Industrial Strategy",The Coal Authority,04/09/2023,Minewater Rent,DEFRA Metal Mine Programme,The National Trust,162247,10
"Department for Business, Energy and Industrial Strategy",The Coal Authority,31/08/2023,Minewater Sludge Disposal,DEFRA Metal Mine Programme,Wheal Jane Ltd,162190,"44,538.66"
"Department for Business, Energy and Industrial Strategy",The Coal Authority,04/09/2023,Minewater Power Costs,DEFRA Metal Mine Programme,Wheal Jane Ltd,162943,857.32
"Department for Business, Energy and Industrial Strategy",The Coal Authority,31/08/2023,CY - Non-coal Minewater - Additions,DEFRA Metal Mine Programme,Yorkshire Dales Rivers Trust,162646,"10,890.28"
"Department for Business, Energy and Industrial Strategy",The Coal Authority,11/09/2023,Property Rents Payable,DEV - Historic Property Liabilities,Trustees Of The Plumtree Child Trust,162851,"59,494.65"
"Department for Business, Energy and Industrial Strategy",The Coal Authority,29/08/2023,Subsistence Allowances,DEV - Licensing,Government Procurement Card,163889,2.79
"Department for Business, Energy and Industrial Strategy",The Coal Authority,29/08/2023,Subsistence Allowances,DEV - Licensing,Government Procurement Card,163889,3.63
"Department for Business, Energy and Industrial Strategy",The Coal Authority,29/08/2023,Subsistence Allowances,DEV - Licensing,Government Procurement Card,163889,18.5
"Department for Business, Energy and Industrial Strategy",The Coal Authority,29/08/2023,Subsistence Allowances,DEV - Licensing,Government Procurement Card,163889,15.17
"Department for Business, Energy and Industrial Strategy",The Coal Authority,30/08/2023,Subsistence Allowances,DEV - Licensing,Government Procurement Card,163889,8.88
"Department for Business, Energy and Industrial Strategy",The Coal Authority,30/08/2023,Subsistence Allowances,DEV - Licensing,Government Procurement Card,163889,6.92
"Department for Business, Energy and Industrial Strategy",The Coal Authority,30/08/2023,Subsistence Allowances,DEV - Licensing,Government Procurement Card,163889,4.41
"Department for Business, Energy and Industrial Strategy",The Coal Authority,30/08/2023,Subsistence Allowances,DEV - Licensing,Government Procurement Card,163889,6.08
"Department for Business, Energy and Industrial Strategy",The Coal Authority,26/07/2023,Incidentals,DEV - Management,DeHavilland Political Intelligence,162545,"14,561.00"
"Department for Business, Energy and Industrial Strategy",The Coal Authority,23/08/2023,Temporary Contractors,DEV - Permissions,Cherry Professional Limited,162540,529.2
"Department for Business, Energy and Industrial Strategy",The Coal Authority,30/08/2023,Temporary Contractors,DEV - Permissions,Cherry Professional Limited,162572,529.2
"Department for Business, Energy and Industrial Strategy",The Coal Authority,06/09/2023,Temporary Contractors,DEV - Permissions,Cherry Professional Limited,163591,317.52
"Department for Business, Energy and Industrial Strategy",The Coal Authority,04/08/2023,Training & Education,DEV - Permissions,Government Procurement Card,163889,60
"Department for Business, Energy and Industrial Strategy",The Coal Authority,31/07/2023,eCommerce Commission Charges,DEV - Permissions,Worldpay,163739,"1,053.00"
"Department for Business, Energy and Industrial Strategy",The Coal Authority,31/07/2023,eCommerce Commission Charges,DEV - Permissions,Worldpay,163739,25
"Department for Business, Energy and Industrial Strategy",The Coal Authority,01/08/2023,eCommerce Commission Charges,DEV - Permissions,Worldpay Limited,162463,8.48
"Department for Business, Energy and Industrial Strategy",The Coal Authority,24/07/2023,Subsistence Allowances,DEV - Planning & Local Authority Liaison,Government Procurement Card,163890,28.8
"Department for Business, Energy and Industrial Strategy",The Coal Authority,25/07/2023,Subsistence Allowances,DEV - Planning & Local Authority Liaison,Government Procurement Card,163890,1.46
"Department for Business, Energy and Industrial Strategy",The Coal Authority,25/07/2023,Subsistence Allowances,DEV - Planning & Local Authority Liaison,Government Procurement Card,163890,8.33
"Department for Business, Energy and Industrial Strategy",The Coal Authority,08/09/2023,Property Rents Payable,DEV - Property Management,Glyncorrwg Back Rent-trf 87004,162712,-804.74
"Department for Business, Energy and Industrial Strategy",The Coal Authority,17/08/2023,Subsistence Allowances,DEV - Property Management,Government Procurement Card,163889,4.14
"Department for Business, Energy and Industrial Strategy",The Coal Authority,17/08/2023,Subsistence Allowances,DEV - Property Management,Government Procurement Card,163889,4.15
"Department for Business, Energy and Industrial Strategy",The Coal Authority,01/08/2023,Subsistence Allowances,DEV - Property Management,Government Procurement Card,163890,4.1
"Department for Business, Energy and Industrial Strategy",The Coal Authority,01/08/2023,Subsistence Allowances,DEV - Property Management,Government Procurement Card,163890,2.9
"Department for Business, Energy and Industrial Strategy",The Coal Authority,02/08/2023,Fuel (Vehicle),DEV - Property Management,Government Procurement Card,163890,52.01
"Department for Business, Energy and Industrial Strategy",The Coal Authority,02/08/2023,Subsistence Allowances,DEV - Property Management,Government Procurement Card,163890,2.9
"Department for Business, Energy and Industrial Strategy",The Coal Authority,02/08/2023,Subsistence Allowances,DEV - Property Management,Government Procurement Card,163890,6.54
"Department for Business, Energy and Industrial Strategy",The Coal Authority,02/08/2023,Temporary Contractors,DEV - Property Management,Hays Specialist Recruitment,162401,"2,250.00"
"Department for Business, Energy and Industrial Strategy",The Coal Authority,30/08/2023,Temporary Contractors,DEV - Property Management,Hays Specialist Recruitment,162402,"2,306.70"
"Department for Business, Energy and Industrial Strategy",The Coal Authority,06/09/2023,Temporary Contractors,DEV - Property Management,Hays Specialist Recruitment,162620,"1,800.00"
"Department for Business, Energy and Industrial Strategy",The Coal Authority,13/09/2023,Temporary Contractors,DEV - Property Management,Hays Specialist Recruitment,163687,"1,856.70"
"Department for Business, Energy and Industrial Strategy",The Coal Authority,20/09/2023,Temporary Contractors,DEV - Property Management,Hays Specialist Recruitment,163825,"2,306.70"
"Department for Business, Energy and Industrial Strategy",The Coal Authority,01/09/2023,Property Site Maintenance,DEV - Property Management,JMC Engineering Uk Ltd,163643,336.45
"Department for Business, Energy and Industrial Strategy",The Coal Authority,01/09/2023,Property Site Maintenance,DEV - Property Management,JMC Engineering Uk Ltd,163644,336.45
"Department for Business, Energy and Industrial Strategy",The Coal Authority,01/09/2023,Property Site Maintenance,DEV - Property Management,JMC Engineering Uk Ltd,163645,336.45
"Department for Business, Energy and Industrial Strategy",The Coal Authority,01/09/2023,Property Site Maintenance,DEV - Property Management,JMC Engineering Uk Ltd,163646,336.45
"Department for Business, Energy and Industrial Strategy",The Coal Authority,01/09/2023,Property Site Maintenance,DEV - Property Management,JMC Engineering Uk Ltd,163647,316.45
"Department for Business, Energy and Industrial Strategy",The Coal Authority,01/09/2023,Property Site Maintenance,DEV - Property Management,JMC Engineering Uk Ltd,163648,356.45
"Department for Business, Energy and Industrial Strategy",The Coal Authority,01/09/2023,Property Site Maintenance,DEV - Property Management,JMC Engineering Uk Ltd,163665,885.4
"Department for Business, Energy and Industrial Strategy",The Coal Authority,01/09/2023,Property Site Maintenance,DEV - Property Management,JMC Engineering Uk Ltd,163666,"1,045.40"
"Department for Business, Energy and Industrial Strategy",The Coal Authority,03/09/2023,Property Site Maintenance,DEV - Property Management,Marshall Farming Limited,163698,"1,351.36"
"Department for Business, Energy and Industrial Strategy",The Coal Authority,08/09/2023,Property Rents Payable,DEV - Property Management,Rents Payable,162847,804.74
"Department for Business, Energy and Industrial Strategy",The Coal Authority,09/02/2022,Property Rents Payable,DEV - Property Management,Network Rail,163768,15
"Department for Business, Energy and Industrial Strategy",The Coal Authority,29/08/2023,Legal - Property Valuation Fees,DEV - Property Management,Shepherd Chartered Surveyors,163815,500
"Department for Business, Energy and Industrial Strategy",The Coal Authority,06/09/2023,Legal - Property Valuation Fees,DEV - Property Management,Valuation Office Agency,162589,"1,250.00"
"Department for Business, Energy and Industrial Strategy",The Coal Authority,28/09/2023,Software Support & Maintenance - SaaS,DIG - Data Licensing,Dotted Eyes Limited,163962,200
"Department for Business, Energy and Industrial Strategy",The Coal Authority,02/09/2023,Other Hosting / IaaS,DIG - Service & Assurance,Amazon Web Services EMEA SARL,162542,"19,421.83"
"Department for Business, Energy and Industrial Strategy",The Coal Authority,05/09/2023,Other Hosting / IaaS,DIG - Service & Assurance,Amazon Web Services EMEA SARL,162557,"1,954.87"
"Department for Business, Energy and Industrial Strategy",The Coal Authority,15/09/2023,Other Hosting / IaaS,DIG - Service & Assurance,Amazon Web Services EMEA SARL,163156,"-4,267.40"
"Department for Business, Energy and Industrial Strategy",The Coal Authority,15/09/2023,Other Hosting / IaaS,DIG - Service & Assurance,Amazon Web Services EMEA SARL,163157,-430.07
"Department for Business, Energy and Industrial Strategy",The Coal Authority,05/07/2023,Other Hosting / IaaS,DIG - Service & Assurance,Amazon Web Services EMEA SARL,163603,"1,656.03"
"Department for Business, Energy and Industrial Strategy",The Coal Authority,14/08/2023,Office Telephony - Call Charges,DIG - Service & Assurance,British Telecommunications Plc,162552,4.54
"Department for Business, Energy and Industrial Strategy",The Coal Authority,14/08/2023,Office Telephony - Line Rent,DIG - Service & Assurance,British Telecommunications Plc,162552,875.81
"Department for Business, Energy and Industrial Strategy",The Coal Authority,04/07/2023,Software Support & Maintenance - SaaS,DIG - Service & Assurance,Government Procurement Card,163890,360
"Department for Business, Energy and Industrial Strategy",The Coal Authority,19/07/2023,Software Licenses - SaaS,DIG - Service & Assurance,Government Procurement Card,163890,350.9
"Department for Business, Energy and Industrial Strategy",The Coal Authority,22/07/2023,Office Telephony - Line Rent,DIG - Service & Assurance,Government Procurement Card,163890,5.4
"Department for Business, Energy and Industrial Strategy",The Coal Authority,26/07/2023,Hardware Equipment & Support,DIG - Service & Assurance,Government Procurement Card,163890,"1,215.01"
"Department for Business, Energy and Industrial Strategy",The Coal Authority,27/07/2023,Training & Education,DIG - Service & Assurance,Government Procurement Card,163890,205.61
"Department for Business, Energy and Industrial Strategy",The Coal Authority,30/07/2023,Peripherals / Consumables (MEP),DIG - Service & Assurance,Government Procurement Card,163890,43.2
"Department for Business, Energy and Industrial Strategy",The Coal Authority,30/07/2023,Peripherals / Consumables (MEP),DIG - Service & Assurance,Government Procurement Card,163890,43.2
"Department for Business, Energy and Industrial Strategy",The Coal Authority,30/07/2023,Peripherals / Consumables (MEP),DIG - Service & Assurance,Government Procurement Card,163890,21.6
"Department for Business, Energy and Industrial Strategy",The Coal Authority,30/07/2023,Peripherals / Consumables (MEP),DIG - Service & Assurance,Government Procurement Card,163890,32.2
"Department for Business, Energy and Industrial Strategy",The Coal Authority,30/07/2023,Peripherals / Consumables (MEP),DIG - Service & Assurance,Government Procurement Card,163890,43.2
"Department for Business, Energy and Industrial Strategy",The Coal Authority,30/07/2023,Peripherals / Consumables (MEP),DIG - Service & Assurance,Government Procurement Card,163890,21.6
"Department for Business, Energy and Industrial Strategy",The Coal Authority,31/07/2023,Peripherals / Consumables (MEP),DIG - Service & Assurance,Government Procurement Card,163890,40.85
"Department for Business, Energy and Industrial Strategy",The Coal Authority,02/08/2023,Peripherals / Consumables (MEP),DIG - Service & Assurance,Government Procurement Card,163890,25.6
"Department for Business, Energy and Industrial Strategy",The Coal Authority,03/08/2023,Peripherals / Consumables (MEP),DIG - Service & Assurance,Government Procurement Card,163890,16.21
"Department for Business, Energy and Industrial Strategy",The Coal Authority,30/08/2023,Software Support & Maintenance - On Premise,DIG - Service & Assurance,Phoenix Software Limited,162541,"2,972.88"
"Department for Business, Energy and Industrial Strategy",The Coal Authority,29/08/2023,Software Support & Maintenance - On Premise,DIG - Service & Assurance,Phoenix Software Limited,162543,"2,827.16"
"Department for Business, Energy and Industrial Strategy",The Coal Authority,05/09/2023,Applications Consultancy,DIG - Service & Assurance,QA Ltd,162661,"1,365.00"
"Department for Business, Energy and Industrial Strategy",The Coal Authority,05/09/2023,Applications Consultancy,DIG - Service & Assurance,QA Ltd,162662,"1,365.00"
"Department for Business, Energy and Industrial Strategy",The Coal Authority,05/09/2023,Applications Consultancy,DIG - Service & Assurance,QA Ltd,162665,"1,365.00"
"Department for Business, Energy and Industrial Strategy",The Coal Authority,05/09/2023,Applications Consultancy,DIG - Service & Assurance,QA Ltd,162668,"1,365.00"
"Department for Business, Energy and Industrial Strategy",The Coal Authority,28/09/2023,Software Support & Maintenance - On Premise,DIG - Service & Assurance,Slack Technologies Limited,163871,"1,975.61"
"Department for Business, Energy and Industrial Strategy",The Coal Authority,31/08/2023,Training & Education,DIG - Service & Assurance,Staff Control Expenses,163732,10
"Department for Business, Energy and Industrial Strategy",The Coal Authority,31/08/2023,Applications Consultancy,DIG - Technical Delivery,Cgi It Uk Ltd,163678,"122,235.96"
"Department for Business, Energy and Industrial Strategy",The Coal Authority,17/08/2023,Software Licenses - SaaS,DIG - Technical Delivery,Government Procurement Card,163889,19.48
"Department for Business, Energy and Industrial Strategy",The Coal Authority,09/01/2023,Training & Education,DIG - Technical Delivery,Pluralsight LLC,162630,"4,568.08"
"Department for Business, Energy and Industrial Strategy",The Coal Authority,09/01/2023,Training & Education,DIG - Technical Delivery,Pluralsight LLC,162630,0.49
"Department for Business, Energy and Industrial Strategy",The Coal Authority,06/09/2023,Temporary Contractors,DIG - Technical Delivery,Venn Group Ltd,163296,"1,300.00"
"Department for Business, Energy and Industrial Strategy",The Coal Authority,23/08/2023,Temporary Contractors,DIG - Technical Delivery,Venn Group Ltd,163297,"1,625.00"
"Department for Business, Energy and Industrial Strategy",The Coal Authority,30/08/2023,Temporary Contractors,DIG - Technical Delivery,Venn Group Ltd,163534,"1,625.00"
"Department for Business, Energy and Industrial Strategy",The Coal Authority,13/09/2023,Temporary Contractors,DIG - Technical Delivery,Venn Group Ltd,163897,"1,625.00"
"Department for Business, Energy and Industrial Strategy",The Coal Authority,09/08/2023,Staff Events,Engineering,Government Procurement Card,163889,32.35
"Department for Business, Energy and Industrial Strategy",The Coal Authority,09/08/2023,Staff Events,Engineering,Government Procurement Card,163889,32.35
"Department for Business, Energy and Industrial Strategy",The Coal Authority,09/08/2023,Staff Events,Engineering,Government Procurement Card,163889,32.35
"Department for Business, Energy and Industrial Strategy",The Coal Authority,09/08/2023,Staff Events,Engineering,Government Procurement Card,163889,32.35
"Department for Business, Energy and Industrial Strategy",The Coal Authority,09/08/2023,Staff Events,Engineering,Government Procurement Card,163889,32.35
"Department for Business, Energy and Industrial Strategy",The Coal Authority,09/08/2023,Staff Events,Engineering,Government Procurement Card,163889,34.66
"Department for Business, Energy and Industrial Strategy",The Coal Authority,09/08/2023,Staff Events,Engineering,Government Procurement Card,163889,34.63
"Department for Business, Energy and Industrial Strategy",The Coal Authority,14/08/2023,Subsistence Allowances,Engineering,Government Procurement Card,163889,20.3
"Department for Business, Energy and Industrial Strategy",The Coal Authority,14/08/2023,Subsistence Allowances,Engineering,Government Procurement Card,163889,20.3
"Department for Business, Energy and Industrial Strategy",The Coal Authority,15/08/2023,Fuel (Vehicle),Engineering,Government Procurement Card,163889,41.68
"Department for Business, Energy and Industrial Strategy",The Coal Authority,15/08/2023,Subsistence Allowances,Engineering,Government Procurement Card,163889,20.62
"Department for Business, Energy and Industrial Strategy",The Coal Authority,15/08/2023,Subsistence Allowances,Engineering,Government Procurement Card,163889,20.62
"Department for Business, Energy and Industrial Strategy",The Coal Authority,15/08/2023,Subsistence Allowances,Engineering,Government Procurement Card,163889,4.78
"Department for Business, Energy and Industrial Strategy",The Coal Authority,15/08/2023,Subsistence Allowances,Engineering,Government Procurement Card,163889,4.77
"Department for Business, Energy and Industrial Strategy",The Coal Authority,16/08/2023,Subsistence Allowances,Engineering,Government Procurement Card,163889,0.93
"Department for Business, Energy and Industrial Strategy",The Coal Authority,16/08/2023,Subsistence Allowances,Engineering,Government Procurement Card,163889,0.94
"Department for Business, Energy and Industrial Strategy",The Coal Authority,22/08/2023,Training & Education,Engineering,Government Procurement Card,163889,534.1
"Department for Business, Energy and Industrial Strategy",The Coal Authority,31/08/2023,Stationery,Engineering,Government Procurement Card,163889,41.63
"Department for Business, Energy and Industrial Strategy",The Coal Authority,06/07/2023,Site Repairs & Maintenance,Engineering,Government Procurement Card,163890,30
"Department for Business, Energy and Industrial Strategy",The Coal Authority,12/07/2023,Training & Education,Engineering,Government Procurement Card,163890,385
"Department for Business, Energy and Industrial Strategy",The Coal Authority,19/07/2023,Training & Education,Engineering,Government Procurement Card,163890,387.75
"Department for Business, Energy and Industrial Strategy",The Coal Authority,18/08/2023,CY - Minewater Scheme - Additions,ENV - Mine Water Operations,AECOM Ltd,162972,"2,953.73"
"Department for Business, Energy and Industrial Strategy",The Coal Authority,07/09/2023,Subsidence Pumping - Management Fees,ENV - Mine Water Operations,Black Drain Drainage Board,162820,123.82
"Department for Business, Energy and Industrial Strategy",The Coal Authority,07/09/2023,Subsidence Pumping Maintenance - Power,ENV - Mine Water Operations,Black Drain Drainage Board,162820,825.48
"Department for Business, Energy and Industrial Strategy",The Coal Authority,22/08/2023,Legal - General,ENV - Mine Water Operations,Browne Jacobson Llp Client Account,162663,"1,494.90"
"Department for Business, Energy and Industrial Strategy",The Coal Authority,29/09/2023,Minewater Rent,ENV - Mine Water Operations,Caroline Large Property,162878,654.15
"Department for Business, Energy and Industrial Strategy",The Coal Authority,13/09/2023,Minewater Rent,ENV - Mine Water Operations,Crown Estate Re Bidwells,163204,"1,500.00"
"Department for Business, Energy and Industrial Strategy",The Coal Authority,31/08/2023,Subsidence Pumping - Management Fees,ENV - Mine Water Operations,Doncaster East I D B,163443,24.38
"Department for Business, Energy and Industrial Strategy",The Coal Authority,31/08/2023,Subsidence Pumping Maintenance - Planned,ENV - Mine Water Operations,Doncaster East I D B,163443,243.83
"Department for Business, Energy and Industrial Strategy",The Coal Authority,31/08/2023,Subsidence Pumping - Management Fees,ENV - Mine Water Operations,Doncaster East I D B,163444,24.54
"Department for Business, Energy and Industrial Strategy",The Coal Authority,31/08/2023,Subsidence Pumping Maintenance - Planned,ENV - Mine Water Operations,Doncaster East I D B,163444,245.4
"Department for Business, Energy and Industrial Strategy",The Coal Authority,31/08/2023,Subsidence Pumping - Management Fees,ENV - Mine Water Operations,Doncaster East I D B,163447,37.31
"Department for Business, Energy and Industrial Strategy",The Coal Authority,31/08/2023,Subsidence Pumping Maintenance - Planned,ENV - Mine Water Operations,Doncaster East I D B,163447,210.85
"Department for Business, Energy and Industrial Strategy",The Coal Authority,31/08/2023,Subsidence Pumping Maintenance - Power,ENV - Mine Water Operations,Doncaster East I D B,163447,162.22
"Department for Business, Energy and Industrial Strategy",The Coal Authority,31/08/2023,Subsidence Pumping - Management Fees,ENV - Mine Water Operations,Doncaster East I D B,163448,1.86
"Department for Business, Energy and Industrial Strategy",The Coal Authority,31/08/2023,Subsidence Pumping Maintenance - Planned,ENV - Mine Water Operations,Doncaster East I D B,163448,18.64
"Department for Business, Energy and Industrial Strategy",The Coal Authority,31/08/2023,Subsidence Pumping - Management Fees,ENV - Mine Water Operations,Doncaster East I D B,163451,24.41
"Department for Business, Energy and Industrial Strategy",The Coal Authority,31/08/2023,Subsidence Pumping Maintenance - Planned,ENV - Mine Water Operations,Doncaster East I D B,163451,244.11
"Department for Business, Energy and Industrial Strategy",The Coal Authority,31/08/2023,Subsidence Pumping - Management Fees,ENV - Mine Water Operations,Doncaster East I D B,163452,19.8
"Department for Business, Energy and Industrial Strategy",The Coal Authority,31/08/2023,Subsidence Pumping Maintenance - Power,ENV - Mine Water Operations,Doncaster East I D B,163452,197.97
"Department for Business, Energy and Industrial Strategy",The Coal Authority,31/08/2023,Subsidence Pumping - Management Fees,ENV - Mine Water Operations,Doncaster East I D B,163456,345.27
"Department for Business, Energy and Industrial Strategy",The Coal Authority,31/08/2023,Subsidence Pumping Maintenance - Ad Hoc,ENV - Mine Water Operations,Doncaster East I D B,163456,"2,827.88"
"Department for Business, Energy and Industrial Strategy",The Coal Authority,31/08/2023,Subsidence Pumping Maintenance - Planned,ENV - Mine Water Operations,Doncaster East I D B,163456,225.41
"Department for Business, Energy and Industrial Strategy",The Coal Authority,31/08/2023,Subsidence Pumping Maintenance - Power,ENV - Mine Water Operations,Doncaster East I D B,163456,399.41
"Department for Business, Energy and Industrial Strategy",The Coal Authority,31/08/2023,Subsidence Pumping - Management Fees,ENV - Mine Water Operations,Doncaster East I D B,163457,22.59
"Department for Business, Energy and Industrial Strategy",The Coal Authority,31/08/2023,Subsidence Pumping Maintenance - Planned,ENV - Mine Water Operations,Doncaster East I D B,163457,225.93
"Department for Business, Energy and Industrial Strategy",The Coal Authority,31/08/2023,Subsidence Pumping - Management Fees,ENV - Mine Water Operations,Doncaster East I D B,163458,40.78
"Department for Business, Energy and Industrial Strategy",The Coal Authority,31/08/2023,Subsidence Pumping Maintenance - Planned,ENV - Mine Water Operations,Doncaster East I D B,163458,213.95
"Department for Business, Energy and Industrial Strategy",The Coal Authority,31/08/2023,Subsidence Pumping Maintenance - Power,ENV - Mine Water Operations,Doncaster East I D B,163458,193.88
"Department for Business, Energy and Industrial Strategy",The Coal Authority,31/08/2023,Subsidence Pumping Maintenance - Power,ENV - Mine Water Operations,Doncaster East I D B,163471,745.5
"Department for Business, Energy and Industrial Strategy",The Coal Authority,31/08/2023,Subsidence Pumping - Management Fees,ENV - Mine Water Operations,Doncaster East I D B,163479,132.68
"Department for Business, Energy and Industrial Strategy",The Coal Authority,31/08/2023,Subsidence Pumping Maintenance - Planned,ENV - Mine Water Operations,Doncaster East I D B,163479,169.33
"Department for Business, Energy and Industrial Strategy",The Coal Authority,31/08/2023,Subsidence Pumping Maintenance - Power,ENV - Mine Water Operations,Doncaster East I D B,163479,"1,157.47"
"Department for Business, Energy and Industrial Strategy",The Coal Authority,31/08/2023,Subsidence Pumping - Management Fees,ENV - Mine Water Operations,Doncaster East I D B,163482,2.81
"Department for Business, Energy and Industrial Strategy",The Coal Authority,31/08/2023,Subsidence Pumping Maintenance - Planned,ENV - Mine Water Operations,Doncaster East I D B,163482,6.02
"Department for Business, Energy and Industrial Strategy",The Coal Authority,31/08/2023,Subsidence Pumping Maintenance - Power,ENV - Mine Water Operations,Doncaster East I D B,163482,22.03
"Department for Business, Energy and Industrial Strategy",The Coal Authority,31/08/2023,Subsidence Pumping - Management Fees,ENV - Mine Water Operations,Doncaster East I D B,163485,5.88
"Department for Business, Energy and Industrial Strategy",The Coal Authority,31/08/2023,Subsidence Pumping Maintenance - Planned,ENV - Mine Water Operations,Doncaster East I D B,163485,6.49
"Department for Business, Energy and Industrial Strategy",The Coal Authority,31/08/2023,Subsidence Pumping Maintenance - Power,ENV - Mine Water Operations,Doncaster East I D B,163485,52.32
"Department for Business, Energy and Industrial Strategy",The Coal Authority,31/08/2023,Subsidence Pumping - Management Fees,ENV - Mine Water Operations,Doncaster East I D B,163486,49.27
"Department for Business, Energy and Industrial Strategy",The Coal Authority,31/08/2023,Subsidence Pumping Maintenance - Planned,ENV - Mine Water Operations,Doncaster East I D B,163486,88
"Department for Business, Energy and Industrial Strategy",The Coal Authority,31/08/2023,Subsidence Pumping Maintenance - Power,ENV - Mine Water Operations,Doncaster East I D B,163486,404.7
"Department for Business, Energy and Industrial Strategy",The Coal Authority,31/08/2023,Subsidence Pumping - Management Fees,ENV - Mine Water Operations,Doncaster East I D B,163493,43.84
"Department for Business, Energy and Industrial Strategy",The Coal Authority,31/08/2023,Subsidence Pumping Maintenance - Planned,ENV - Mine Water Operations,Doncaster East I D B,163493,203.5
"Department for Business, Energy and Industrial Strategy",The Coal Authority,31/08/2023,Subsidence Pumping Maintenance - Power,ENV - Mine Water Operations,Doncaster East I D B,163493,234.91
"Department for Business, Energy and Industrial Strategy",The Coal Authority,22/09/2023,Subsidence Pumping - Management Fees,ENV - Mine Water Operations,Doncaster East I D B,163546,-1.78
"Department for Business, Energy and Industrial Strategy",The Coal Authority,22/09/2023,Subsidence Pumping Maintenance - Ad Hoc,ENV - Mine Water Operations,Doncaster East I D B,163546,-5.69
"Department for Business, Energy and Industrial Strategy",The Coal Authority,22/09/2023,Subsidence Pumping Maintenance - Power,ENV - Mine Water Operations,Doncaster East I D B,163546,-12.07
"Department for Business, Energy and Industrial Strategy",The Coal Authority,31/08/2023,Subsidence Pumping - Management Fees,ENV - Mine Water Operations,Doncaster East I D B,163547,1.78
"Department for Business, Energy and Industrial Strategy",The Coal Authority,31/08/2023,Subsidence Pumping Maintenance - Ad Hoc,ENV - Mine Water Operations,Doncaster East I D B,163547,5.69
"Department for Business, Energy and Industrial Strategy",The Coal Authority,31/08/2023,Subsidence Pumping Maintenance - Power,ENV - Mine Water Operations,Doncaster East I D B,163547,12.07
"Department for Business, Energy and Industrial Strategy",The Coal Authority,31/08/2023,Subsidence Pumping - Management Fees,ENV - Mine Water Operations,Doncaster East I D B,163549,1.78
"Department for Business, Energy and Industrial Strategy",The Coal Authority,31/08/2023,Subsidence Pumping Maintenance - Planned,ENV - Mine Water Operations,Doncaster East I D B,163549,5.69
"Department for Business, Energy and Industrial Strategy",The Coal Authority,31/08/2023,Subsidence Pumping Maintenance - Power,ENV - Mine Water Operations,Doncaster East I D B,163549,12.07
"Department for Business, Energy and Industrial Strategy",The Coal Authority,30/06/2023,Subsidence Pumping Maintenance - Power,ENV - Mine Water Operations,Doncaster East I D B,163701,"2,917.51"
"Department for Business, Energy and Industrial Strategy",The Coal Authority,31/07/2023,Subsidence Pumping Maintenance - Power,ENV - Mine Water Operations,Doncaster East I D B,163702,740.14
"Department for Business, Energy and Industrial Strategy",The Coal Authority,01/09/2023,Minewater Power Costs,ENV - Mine Water Operations,Edf Energy,162949,878.37
"Department for Business, Energy and Industrial Strategy",The Coal Authority,08/08/2023,Short Term Vehicle Hire,ENV - Mine Water Operations,Enterprise Rent A Car,163387,85
"Department for Business, Energy and Industrial Strategy",The Coal Authority,01/04/2023,Minewater Discharge Consents,ENV - Mine Water Operations,Environment Agency,162200,"1,686.00"
"Department for Business, Energy and Industrial Strategy",The Coal Authority,01/04/2023,Minewater Discharge Consents,ENV - Mine Water Operations,Environment Agency,162200,"1,686.00"
"Department for Business, Energy and Industrial Strategy",The Coal Authority,01/04/2023,Minewater Discharge Consents,ENV - Mine Water Operations,Environment Agency,162200,"1,686.00"
"Department for Business, Energy and Industrial Strategy",The Coal Authority,01/04/2023,Minewater Discharge Consents,ENV - Mine Water Operations,Environment Agency,162200,718
"Department for Business, Energy and Industrial Strategy",The Coal Authority,01/04/2023,Minewater Discharge Consents,ENV - Mine Water Operations,Environment Agency,162200,"1,686.00"
"Department for Business, Energy and Industrial Strategy",The Coal Authority,07/08/2023,Minewater Rent,ENV - Mine Water Operations,Fife Council,163796,563.91
"Department for Business, Energy and Industrial Strategy",The Coal Authority,01/09/2023,Minewater Rent,ENV - Mine Water Operations,Fisher German,162119,700
"Department for Business, Energy and Industrial Strategy",The Coal Authority,03/08/2023,Subsistence Allowances,ENV - Mine Water Operations,Government Procurement Card,163889,3.99
"Department for Business, Energy and Industrial Strategy",The Coal Authority,03/08/2023,Subsistence Allowances,ENV - Mine Water Operations,Government Procurement Card,163889,13.2
"Department for Business, Energy and Industrial Strategy",The Coal Authority,03/08/2023,Subsistence Allowances,ENV - Mine Water Operations,Government Procurement Card,163889,16.7
"Department for Business, Energy and Industrial Strategy",The Coal Authority,03/08/2023,Subsistence Allowances,ENV - Mine Water Operations,Government Procurement Card,163889,-40
"Department for Business, Energy and Industrial Strategy",The Coal Authority,04/08/2023,Fuel (Vehicle),ENV - Mine Water Operations,Government Procurement Card,163889,59.78
"Department for Business, Energy and Industrial Strategy",The Coal Authority,06/08/2023,Fuel (Vehicle),ENV - Mine Water Operations,Government Procurement Card,163889,65.76
"Department for Business, Energy and Industrial Strategy",The Coal Authority,08/08/2023,Fuel (Vehicle),ENV - Mine Water Operations,Government Procurement Card,163889,65.2
"Department for Business, Energy and Industrial Strategy",The Coal Authority,08/08/2023,Incidentals,ENV - Mine Water Operations,Government Procurement Card,163889,1.67
"Department for Business, Energy and Industrial Strategy",The Coal Authority,08/08/2023,Subsistence Allowances,ENV - Mine Water Operations,Government Procurement Card,163889,3.35
"Department for Business, Energy and Industrial Strategy",The Coal Authority,08/08/2023,Subsistence Allowances,ENV - Mine Water Operations,Government Procurement Card,163889,26.67
"Department for Business, Energy and Industrial Strategy",The Coal Authority,08/08/2023,Subsistence Allowances,ENV - Mine Water Operations,Government Procurement Card,163889,4.29
"Department for Business, Energy and Industrial Strategy",The Coal Authority,08/08/2023,Subsistence Allowances,ENV - Mine Water Operations,Government Procurement Card,163889,24.58
"Department for Business, Energy and Industrial Strategy",The Coal Authority,09/08/2023,Subsistence Allowances,ENV - Mine Water Operations,Government Procurement Card,163889,3.88
"Department for Business, Energy and Industrial Strategy",The Coal Authority,09/08/2023,Subsistence Allowances,ENV - Mine Water Operations,Government Procurement Card,163889,3.04
"Department for Business, Energy and Industrial Strategy",The Coal Authority,09/08/2023,Subsistence Allowances,ENV - Mine Water Operations,Government Procurement Card,163889,4.37
"Department for Business, Energy and Industrial Strategy",The Coal Authority,09/08/2023,Subsistence Allowances,ENV - Mine Water Operations,Government Procurement Card,163889,8.53
"Department for Business, Energy and Industrial Strategy",The Coal Authority,09/08/2023,Subsistence Allowances,ENV - Mine Water Operations,Government Procurement Card,163889,8.3
"Department for Business, Energy and Industrial Strategy",The Coal Authority,11/08/2023,Fuel (Vehicle),ENV - Mine Water Operations,Government Procurement Card,163889,81.23
"Department for Business, Energy and Industrial Strategy",The Coal Authority,11/08/2023,Subsistence Allowances,ENV - Mine Water Operations,Government Procurement Card,163889,2.92
"Department for Business, Energy and Industrial Strategy",The Coal Authority,11/08/2023,Subsistence Allowances,ENV - Mine Water Operations,Government Procurement Card,163889,0.83
"Department for Business, Energy and Industrial Strategy",The Coal Authority,14/08/2023,Fuel (Vehicle),ENV - Mine Water Operations,Government Procurement Card,163889,71.73
"Department for Business, Energy and Industrial Strategy",The Coal Authority,14/08/2023,Fuel (Vehicle),ENV - Mine Water Operations,Government Procurement Card,163889,47.64
"Department for Business, Energy and Industrial Strategy",The Coal Authority,14/08/2023,Incidentals,ENV - Mine Water Operations,Government Procurement Card,163889,1
"Department for Business, Energy and Industrial Strategy",The Coal Authority,14/08/2023,Subsistence Allowances,ENV - Mine Water Operations,Government Procurement Card,163889,6.21
"Department for Business, Energy and Industrial Strategy",The Coal Authority,14/08/2023,Subsistence Allowances,ENV - Mine Water Operations,Government Procurement Card,163889,19.45
"Department for Business, Energy and Industrial Strategy",The Coal Authority,14/08/2023,Subsistence Allowances,ENV - Mine Water Operations,Government Procurement Card,163889,19.44
"Department for Business, Energy and Industrial Strategy",The Coal Authority,15/08/2023,Subsistence Allowances,ENV - Mine Water Operations,Government Procurement Card,163889,23.94
"Department for Business, Energy and Industrial Strategy",The Coal Authority,15/08/2023,Subsistence Allowances,ENV - Mine Water Operations,Government Procurement Card,163889,8.96
"Department for Business, Energy and Industrial Strategy",The Coal Authority,16/08/2023,Fuel (Vehicle),ENV - Mine Water Operations,Government Procurement Card,163889,65.9
"Department for Business, Energy and Industrial Strategy",The Coal Authority,16/08/2023,Fuel (Vehicle),ENV - Mine Water Operations,Government Procurement Card,163889,16.68
"Department for Business, Energy and Industrial Strategy",The Coal Authority,16/08/2023,Subsistence Allowances,ENV - Mine Water Operations,Government Procurement Card,163889,10.2
"Department for Business, Energy and Industrial Strategy",The Coal Authority,16/08/2023,Subsistence Allowances,ENV - Mine Water Operations,Government Procurement Card,163889,2.42
"Department for Business, Energy and Industrial Strategy",The Coal Authority,16/08/2023,Subsistence Allowances,ENV - Mine Water Operations,Government Procurement Card,163889,1.46
"Department for Business, Energy and Industrial Strategy",The Coal Authority,16/08/2023,Subsistence Allowances,ENV - Mine Water Operations,Government Procurement Card,163889,2.75
"Department for Business, Energy and Industrial Strategy",The Coal Authority,17/08/2023,Fuel (Vehicle),ENV - Mine Water Operations,Government Procurement Card,163889,29.55
"Department for Business, Energy and Industrial Strategy",The Coal Authority,17/08/2023,Fuel (Vehicle),ENV - Mine Water Operations,Government Procurement Card,163889,83.38
"Department for Business, Energy and Industrial Strategy",The Coal Authority,17/08/2023,Subsistence Allowances,ENV - Mine Water Operations,Government Procurement Card,163889,7.25
"Department for Business, Energy and Industrial Strategy",The Coal Authority,18/08/2023,Hotel & Accommodation,ENV - Mine Water Operations,Government Procurement Card,163889,7
"Department for Business, Energy and Industrial Strategy",The Coal Authority,19/08/2023,Subsistence Allowances,ENV - Mine Water Operations,Government Procurement Card,163889,15.59
"Department for Business, Energy and Industrial Strategy",The Coal Authority,21/08/2023,Fuel (Vehicle),ENV - Mine Water Operations,Government Procurement Card,163889,58.33
"Department for Business, Energy and Industrial Strategy",The Coal Authority,22/08/2023,Fuel (Vehicle),ENV - Mine Water Operations,Government Procurement Card,163889,30
"Department for Business, Energy and Industrial Strategy",The Coal Authority,24/08/2023,Fuel (Vehicle),ENV - Mine Water Operations,Government Procurement Card,163889,28.36
"Department for Business, Energy and Industrial Strategy",The Coal Authority,25/08/2023,Fuel (Vehicle),ENV - Mine Water Operations,Government Procurement Card,163889,62.96
"Department for Business, Energy and Industrial Strategy",The Coal Authority,25/08/2023,Fuel (Vehicle),ENV - Mine Water Operations,Government Procurement Card,163889,25.48
"Department for Business, Energy and Industrial Strategy",The Coal Authority,30/08/2023,Subsistence Allowances,ENV - Mine Water Operations,Government Procurement Card,163889,7.08
"Department for Business, Energy and Industrial Strategy",The Coal Authority,31/08/2023,Subsistence Allowances,ENV - Mine Water Operations,Government Procurement Card,163889,5.58
"Department for Business, Energy and Industrial Strategy",The Coal Authority,11/07/2023,Fuel (Vehicle),ENV - Mine Water Operations,Government Procurement Card,163890,41.68
"Department for Business, Energy and Industrial Strategy",The Coal Authority,11/07/2023,Subsistence Allowances,ENV - Mine Water Operations,Government Procurement Card,163890,3.75
"Department for Business, Energy and Industrial Strategy",The Coal Authority,11/07/2023,Subsistence Allowances,ENV - Mine Water Operations,Government Procurement Card,163890,3.75
"Department for Business, Energy and Industrial Strategy",The Coal Authority,12/07/2023,Subsistence Allowances,ENV - Mine Water Operations,Government Procurement Card,163890,8.7
"Department for Business, Energy and Industrial Strategy",The Coal Authority,13/07/2023,Fuel (Vehicle),ENV - Mine Water Operations,Government Procurement Card,163890,54.18
"Department for Business, Energy and Industrial Strategy",The Coal Authority,17/07/2023,Subsistence Allowances,ENV - Mine Water Operations,Government Procurement Card,163890,5.57
"Department for Business, Energy and Industrial Strategy",The Coal Authority,19/07/2023,Fuel (Vehicle),ENV - Mine Water Operations,Government Procurement Card,163890,40.43
"Department for Business, Energy and Industrial Strategy",The Coal Authority,19/07/2023,Subsistence Allowances,ENV - Mine Water Operations,Government Procurement Card,163890,5.54
"Department for Business, Energy and Industrial Strategy",The Coal Authority,19/07/2023,Subsistence Allowances,ENV - Mine Water Operations,Government Procurement Card,163890,8.3
"Department for Business, Energy and Industrial Strategy",The Coal Authority,20/07/2023,Fuel (Vehicle),ENV - Mine Water Operations,Government Procurement Card,163890,38.41
"Department for Business, Energy and Industrial Strategy",The Coal Authority,26/07/2023,Fuel (Vehicle),ENV - Mine Water Operations,Government Procurement Card,163890,50.29
"Department for Business, Energy and Industrial Strategy",The Coal Authority,27/07/2023,Fuel (Vehicle),ENV - Mine Water Operations,Government Procurement Card,163890,30.01
"Department for Business, Energy and Industrial Strategy",The Coal Authority,15/09/2023,Minewater Rent,ENV - Mine Water Operations,Harbour House Farm,163395,"3,104.78"
"Department for Business, Energy and Industrial Strategy",The Coal Authority,11/08/2023,Minewater Power Costs,ENV - Mine Water Operations,IMServ Europe Limited,162866,133.77
"Department for Business, Energy and Industrial Strategy",The Coal Authority,11/08/2023,Minewater Power Costs,ENV - Mine Water Operations,IMServ Europe Limited,162866,133.77
"Department for Business, Energy and Industrial Strategy",The Coal Authority,11/08/2023,Minewater Power Costs,ENV - Mine Water Operations,IMServ Europe Limited,162866,133.77
"Department for Business, Energy and Industrial Strategy",The Coal Authority,11/08/2023,Minewater Power Costs,ENV - Mine Water Operations,IMServ Europe Limited,162866,133.77
"Department for Business, Energy and Industrial Strategy",The Coal Authority,11/08/2023,Minewater Power Costs,ENV - Mine Water Operations,IMServ Europe Limited,162866,133.77
"Department for Business, Energy and Industrial Strategy",The Coal Authority,11/08/2023,Minewater Power Costs,ENV - Mine Water Operations,IMServ Europe Limited,162866,133.77
"Department for Business, Energy and Industrial Strategy",The Coal Authority,11/08/2023,Minewater Power Costs,ENV - Mine Water Operations,IMServ Europe Limited,162866,133.77
"Department for Business, Energy and Industrial Strategy",The Coal Authority,11/08/2023,Minewater Power Costs,ENV - Mine Water Operations,IMServ Europe Limited,162866,133.77
"Department for Business, Energy and Industrial Strategy",The Coal Authority,11/08/2023,Minewater Power Costs,ENV - Mine Water Operations,IMServ Europe Limited,162866,133.77
"Department for Business, Energy and Industrial Strategy",The Coal Authority,11/08/2023,Minewater Power Costs,ENV - Mine Water Operations,IMServ Europe Limited,162866,133.77
"Department for Business, Energy and Industrial Strategy",The Coal Authority,11/08/2023,Minewater Power Costs,ENV - Mine Water Operations,IMServ Europe Limited,162866,133.77
"Department for Business, Energy and Industrial Strategy",The Coal Authority,11/08/2023,Minewater Power Costs,ENV - Mine Water Operations,IMServ Europe Limited,162866,133.77
"Department for Business, Energy and Industrial Strategy",The Coal Authority,11/08/2023,Minewater Power Costs,ENV - Mine Water Operations,IMServ Europe Limited,162866,133.77
"Department for Business, Energy and Industrial Strategy",The Coal Authority,11/08/2023,Minewater Power Costs,ENV - Mine Water Operations,IMServ Europe Limited,162866,133.77
"Department for Business, Energy and Industrial Strategy",The Coal Authority,11/08/2023,Minewater Power Costs,ENV - Mine Water Operations,IMServ Europe Limited,162866,133.77
"Department for Business, Energy and Industrial Strategy",The Coal Authority,11/08/2023,Subsidence Pumping Maintenance - Power,ENV - Mine Water Operations,IMServ Europe Limited,162866,133.77
"Department for Business, Energy and Industrial Strategy",The Coal Authority,11/08/2023,Subsidence Pumping Maintenance - Power,ENV - Mine Water Operations,IMServ Europe Limited,162866,133.77
"Department for Business, Energy and Industrial Strategy",The Coal Authority,11/08/2023,Subsidence Pumping Maintenance - Power,ENV - Mine Water Operations,IMServ Europe Limited,162866,133.77
"Department for Business, Energy and Industrial Strategy",The Coal Authority,11/08/2023,Subsidence Pumping Maintenance - Power,ENV - Mine Water Operations,IMServ Europe Limited,162866,133.77
"Department for Business, Energy and Industrial Strategy",The Coal Authority,11/08/2023,Subsidence Pumping Maintenance - Power,ENV - Mine Water Operations,IMServ Europe Limited,162866,133.77
"Department for Business, Energy and Industrial Strategy",The Coal Authority,11/08/2023,Subsidence Pumping Maintenance - Power,ENV - Mine Water Operations,IMServ Europe Limited,162866,133.77
"Department for Business, Energy and Industrial Strategy",The Coal Authority,11/08/2023,Subsidence Pumping Maintenance - Power,ENV - Mine Water Operations,IMServ Europe Limited,162866,133.77
"Department for Business, Energy and Industrial Strategy",The Coal Authority,11/08/2023,Subsidence Pumping Maintenance - Power,ENV - Mine Water Operations,IMServ Europe Limited,162866,133.77
"Department for Business, Energy and Industrial Strategy",The Coal Authority,22/08/2023,Minewater Power Costs,ENV - Mine Water Operations,IMServ Europe Limited,162868,33.44
"Department for Business, Energy and Industrial Strategy",The Coal Authority,22/08/2023,Minewater Power Costs,ENV - Mine Water Operations,IMServ Europe Limited,162868,33.44
"Department for Business, Energy and Industrial Strategy",The Coal Authority,22/08/2023,Minewater Power Costs,ENV - Mine Water Operations,IMServ Europe Limited,162868,33.44
"Department for Business, Energy and Industrial Strategy",The Coal Authority,22/08/2023,Minewater Power Costs,ENV - Mine Water Operations,IMServ Europe Limited,162868,33.44
"Department for Business, Energy and Industrial Strategy",The Coal Authority,22/08/2023,Minewater Power Costs,ENV - Mine Water Operations,IMServ Europe Limited,162868,74.26
"Department for Business, Energy and Industrial Strategy",The Coal Authority,22/08/2023,Minewater Power Costs,ENV - Mine Water Operations,IMServ Europe Limited,162868,33.44
"Department for Business, Energy and Industrial Strategy",The Coal Authority,22/08/2023,Minewater Power Costs,ENV - Mine Water Operations,IMServ Europe Limited,162868,33.44
"Department for Business, Energy and Industrial Strategy",The Coal Authority,22/08/2023,Minewater Power Costs,ENV - Mine Water Operations,IMServ Europe Limited,162868,33.44
"Department for Business, Energy and Industrial Strategy",The Coal Authority,22/08/2023,Minewater Power Costs,ENV - Mine Water Operations,IMServ Europe Limited,162868,33.44
"Department for Business, Energy and Industrial Strategy",The Coal Authority,22/08/2023,Minewater Power Costs,ENV - Mine Water Operations,IMServ Europe Limited,162868,33.44
"Department for Business, Energy and Industrial Strategy",The Coal Authority,22/08/2023,Subsidence Pumping Maintenance - Power,ENV - Mine Water Operations,IMServ Europe Limited,162868,33.44
"Department for Business, Energy and Industrial Strategy",The Coal Authority,22/08/2023,Subsidence Pumping Maintenance - Power,ENV - Mine Water Operations,IMServ Europe Limited,162868,33.44
"Department for Business, Energy and Industrial Strategy",The Coal Authority,22/08/2023,Subsidence Pumping Maintenance - Power,ENV - Mine Water Operations,IMServ Europe Limited,162868,33.44
"Department for Business, Energy and Industrial Strategy",The Coal Authority,22/08/2023,Subsidence Pumping Maintenance - Power,ENV - Mine Water Operations,IMServ Europe Limited,162868,33.44
"Department for Business, Energy and Industrial Strategy",The Coal Authority,22/08/2023,Subsidence Pumping Maintenance - Power,ENV - Mine Water Operations,IMServ Europe Limited,162868,33.44
"Department for Business, Energy and Industrial Strategy",The Coal Authority,22/08/2023,Subsidence Pumping Maintenance - Power,ENV - Mine Water Operations,IMServ Europe Limited,162868,33.44
"Department for Business, Energy and Industrial Strategy",The Coal Authority,22/08/2023,Subsidence Pumping Maintenance - Power,ENV - Mine Water Operations,IMServ Europe Limited,162868,33.44
"Department for Business, Energy and Industrial Strategy",The Coal Authority,22/08/2023,Subsidence Pumping Maintenance - Power,ENV - Mine Water Operations,IMServ Europe Limited,162868,33.44
"Department for Business, Energy and Industrial Strategy",The Coal Authority,22/08/2023,Subsidence Pumping Maintenance - Power,ENV - Mine Water Operations,IMServ Europe Limited,162868,33.44
"Department for Business, Energy and Industrial Strategy",The Coal Authority,22/08/2023,Subsidence Pumping Maintenance - Power,ENV - Mine Water Operations,IMServ Europe Limited,162868,33.44
"Department for Business, Energy and Industrial Strategy",The Coal Authority,22/08/2023,Subsidence Pumping Maintenance - Power,ENV - Mine Water Operations,IMServ Europe Limited,162868,33.44
"Department for Business, Energy and Industrial Strategy",The Coal Authority,22/08/2023,Subsidence Pumping Maintenance - Power,ENV - Mine Water Operations,IMServ Europe Limited,162868,33.44
"Department for Business, Energy and Industrial Strategy",The Coal Authority,22/08/2023,Subsidence Pumping Maintenance - Power,ENV - Mine Water Operations,IMServ Europe Limited,162868,33.44
"Department for Business, Energy and Industrial Strategy",The Coal Authority,22/08/2023,Subsidence Pumping Maintenance - Power,ENV - Mine Water Operations,IMServ Europe Limited,162868,33.44
"Department for Business, Energy and Industrial Strategy",The Coal Authority,22/08/2023,Subsidence Pumping Maintenance - Power,ENV - Mine Water Operations,IMServ Europe Limited,162868,33.44
"Department for Business, Energy and Industrial Strategy",The Coal Authority,22/08/2023,Subsidence Pumping Maintenance - Power,ENV - Mine Water Operations,IMServ Europe Limited,162868,33.44
"Department for Business, Energy and Industrial Strategy",The Coal Authority,22/08/2023,Minewater Power Costs,ENV - Mine Water Operations,IMServ Europe Limited,162869,6.04
"Department for Business, Energy and Industrial Strategy",The Coal Authority,11/08/2023,Minewater Power Costs,ENV - Mine Water Operations,IMServ Europe Limited,162870,22.74
"Department for Business, Energy and Industrial Strategy",The Coal Authority,11/08/2023,Minewater Power Costs,ENV - Mine Water Operations,IMServ Europe Limited,162870,22.74
"Department for Business, Energy and Industrial Strategy",The Coal Authority,11/08/2023,Minewater Power Costs,ENV - Mine Water Operations,IMServ Europe Limited,162870,22.74
"Department for Business, Energy and Industrial Strategy",The Coal Authority,11/08/2023,Minewater Power Costs,ENV - Mine Water Operations,IMServ Europe Limited,162870,22.74
"Department for Business, Energy and Industrial Strategy",The Coal Authority,11/08/2023,Minewater Power Costs,ENV - Mine Water Operations,IMServ Europe Limited,162870,22.74
"Department for Business, Energy and Industrial Strategy",The Coal Authority,11/08/2023,Minewater Power Costs,ENV - Mine Water Operations,IMServ Europe Limited,162870,22.74
"Department for Business, Energy and Industrial Strategy",The Coal Authority,11/08/2023,Minewater Power Costs,ENV - Mine Water Operations,IMServ Europe Limited,162870,22.74
"Department for Business, Energy and Industrial Strategy",The Coal Authority,11/08/2023,Minewater Power Costs,ENV - Mine Water Operations,IMServ Europe Limited,162870,22.74
"Department for Business, Energy and Industrial Strategy",The Coal Authority,11/08/2023,Minewater Power Costs,ENV - Mine Water Operations,IMServ Europe Limited,162870,22.74
"Department for Business, Energy and Industrial Strategy",The Coal Authority,11/08/2023,Minewater Power Costs,ENV - Mine Water Operations,IMServ Europe Limited,162870,22.74
"Department for Business, Energy and Industrial Strategy",The Coal Authority,11/08/2023,Minewater Power Costs,ENV - Mine Water Operations,IMServ Europe Limited,162870,22.74
"Department for Business, Energy and Industrial Strategy",The Coal Authority,11/08/2023,Minewater Power Costs,ENV - Mine Water Operations,IMServ Europe Limited,162870,22.74
"Department for Business, Energy and Industrial Strategy",The Coal Authority,11/08/2023,Minewater Power Costs,ENV - Mine Water Operations,IMServ Europe Limited,162870,22.74
"Department for Business, Energy and Industrial Strategy",The Coal Authority,11/08/2023,Subsidence Pumping Maintenance - Power,ENV - Mine Water Operations,IMServ Europe Limited,162870,22.74
"Department for Business, Energy and Industrial Strategy",The Coal Authority,11/08/2023,Subsidence Pumping Maintenance - Power,ENV - Mine Water Operations,IMServ Europe Limited,162870,22.74
"Department for Business, Energy and Industrial Strategy",The Coal Authority,11/08/2023,Subsidence Pumping Maintenance - Power,ENV - Mine Water Operations,IMServ Europe Limited,162870,22.74
"Department for Business, Energy and Industrial Strategy",The Coal Authority,11/08/2023,Subsidence Pumping Maintenance - Power,ENV - Mine Water Operations,IMServ Europe Limited,162870,22.74
"Department for Business, Energy and Industrial Strategy",The Coal Authority,11/08/2023,Subsidence Pumping Maintenance - Power,ENV - Mine Water Operations,IMServ Europe Limited,162870,22.74
"Department for Business, Energy and Industrial Strategy",The Coal Authority,11/08/2023,Subsidence Pumping Maintenance - Power,ENV - Mine Water Operations,IMServ Europe Limited,162870,22.74
"Department for Business, Energy and Industrial Strategy",The Coal Authority,11/08/2023,Subsidence Pumping Maintenance - Power,ENV - Mine Water Operations,IMServ Europe Limited,162870,22.74
"Department for Business, Energy and Industrial Strategy",The Coal Authority,11/08/2023,Subsidence Pumping Maintenance - Power,ENV - Mine Water Operations,IMServ Europe Limited,162870,22.74
"Department for Business, Energy and Industrial Strategy",The Coal Authority,11/08/2023,Subsidence Pumping Maintenance - Power,ENV - Mine Water Operations,IMServ Europe Limited,162870,22.74
"Department for Business, Energy and Industrial Strategy",The Coal Authority,22/08/2023,Minewater Power Costs,ENV - Mine Water Operations,IMServ Europe Limited,162871,60.21
"Department for Business, Energy and Industrial Strategy",The Coal Authority,22/08/2023,Minewater Power Costs,ENV - Mine Water Operations,IMServ Europe Limited,162871,74.26
"Department for Business, Energy and Industrial Strategy",The Coal Authority,22/08/2023,Minewater Power Costs,ENV - Mine Water Operations,IMServ Europe Limited,162871,74.26
"Department for Business, Energy and Industrial Strategy",The Coal Authority,22/08/2023,Minewater Power Costs,ENV - Mine Water Operations,IMServ Europe Limited,162871,74.26
"Department for Business, Energy and Industrial Strategy",The Coal Authority,22/08/2023,Minewater Power Costs,ENV - Mine Water Operations,IMServ Europe Limited,162871,74.26
"Department for Business, Energy and Industrial Strategy",The Coal Authority,22/08/2023,Minewater Power Costs,ENV - Mine Water Operations,IMServ Europe Limited,162871,74.26
"Department for Business, Energy and Industrial Strategy",The Coal Authority,22/08/2023,Minewater Power Costs,ENV - Mine Water Operations,IMServ Europe Limited,162871,74.26
"Department for Business, Energy and Industrial Strategy",The Coal Authority,22/08/2023,Minewater Power Costs,ENV - Mine Water Operations,IMServ Europe Limited,162871,74.26
"Department for Business, Energy and Industrial Strategy",The Coal Authority,22/08/2023,Minewater Power Costs,ENV - Mine Water Operations,IMServ Europe Limited,162871,74.26
"Department for Business, Energy and Industrial Strategy",The Coal Authority,22/08/2023,Minewater Power Costs,ENV - Mine Water Operations,IMServ Europe Limited,162871,74.26
"Department for Business, Energy and Industrial Strategy",The Coal Authority,22/08/2023,Minewater Power Costs,ENV - Mine Water Operations,IMServ Europe Limited,162871,74.26
"Department for Business, Energy and Industrial Strategy",The Coal Authority,22/08/2023,Minewater Power Costs,ENV - Mine Water Operations,IMServ Europe Limited,162871,74.26
"Department for Business, Energy and Industrial Strategy",The Coal Authority,22/08/2023,Minewater Power Costs,ENV - Mine Water Operations,IMServ Europe Limited,162871,74.26
"Department for Business, Energy and Industrial Strategy",The Coal Authority,22/08/2023,Minewater Power Costs,ENV - Mine Water Operations,IMServ Europe Limited,162871,74.26
"Department for Business, Energy and Industrial Strategy",The Coal Authority,22/08/2023,Minewater Power Costs,ENV - Mine Water Operations,IMServ Europe Limited,162871,74.26
"Department for Business, Energy and Industrial Strategy",The Coal Authority,22/08/2023,Minewater Power Costs,ENV - Mine Water Operations,IMServ Europe Limited,162871,74.26
"Department for Business, Energy and Industrial Strategy",The Coal Authority,22/08/2023,Minewater Power Costs,ENV - Mine Water Operations,IMServ Europe Limited,162871,74.26
"Department for Business, Energy and Industrial Strategy",The Coal Authority,22/08/2023,Minewater Power Costs,ENV - Mine Water Operations,IMServ Europe Limited,162871,134.45
"Department for Business, Energy and Industrial Strategy",The Coal Authority,22/08/2023,Minewater Power Costs,ENV - Mine Water Operations,IMServ Europe Limited,162871,74.26
"Department for Business, Energy and Industrial Strategy",The Coal Authority,22/08/2023,Minewater Power Costs,ENV - Mine Water Operations,IMServ Europe Limited,162871,74.26
"Department for Business, Energy and Industrial Strategy",The Coal Authority,22/08/2023,Minewater Power Costs,ENV - Mine Water Operations,IMServ Europe Limited,162871,74.26
"Department for Business, Energy and Industrial Strategy",The Coal Authority,22/08/2023,Minewater Power Costs,ENV - Mine Water Operations,IMServ Europe Limited,162871,74.26
"Department for Business, Energy and Industrial Strategy",The Coal Authority,22/08/2023,Minewater Power Costs,ENV - Mine Water Operations,IMServ Europe Limited,162871,74.26
"Department for Business, Energy and Industrial Strategy",The Coal Authority,22/08/2023,Minewater Power Costs,ENV - Mine Water Operations,IMServ Europe Limited,162871,74.26
"Department for Business, Energy and Industrial Strategy",The Coal Authority,22/08/2023,Minewater Power Costs,ENV - Mine Water Operations,IMServ Europe Limited,162871,74.26
"Department for Business, Energy and Industrial Strategy",The Coal Authority,22/08/2023,Minewater Power Costs,ENV - Mine Water Operations,IMServ Europe Limited,162871,74.26
"Department for Business, Energy and Industrial Strategy",The Coal Authority,22/08/2023,Minewater Power Costs,ENV - Mine Water Operations,IMServ Europe Limited,162871,74.26
"Department for Business, Energy and Industrial Strategy",The Coal Authority,22/08/2023,Minewater Power Costs,ENV - Mine Water Operations,IMServ Europe Limited,162871,74.26
"Department for Business, Energy and Industrial Strategy",The Coal Authority,22/08/2023,Subsidence Pumping Maintenance - Power,ENV - Mine Water Operations,IMServ Europe Limited,162871,74.26
"Department for Business, Energy and Industrial Strategy",The Coal Authority,22/08/2023,Subsidence Pumping Maintenance - Power,ENV - Mine Water Operations,IMServ Europe Limited,162871,74.26
"Department for Business, Energy and Industrial Strategy",The Coal Authority,22/08/2023,Subsidence Pumping Maintenance - Power,ENV - Mine Water Operations,IMServ Europe Limited,162871,74.26
"Department for Business, Energy and Industrial Strategy",The Coal Authority,22/08/2023,Subsidence Pumping Maintenance - Power,ENV - Mine Water Operations,IMServ Europe Limited,162871,182.73
"Department for Business, Energy and Industrial Strategy",The Coal Authority,22/08/2023,Subsidence Pumping Maintenance - Power,ENV - Mine Water Operations,IMServ Europe Limited,162871,74.26
"Department for Business, Energy and Industrial Strategy",The Coal Authority,22/08/2023,Subsidence Pumping Maintenance - Power,ENV - Mine Water Operations,IMServ Europe Limited,162871,74.26
"Department for Business, Energy and Industrial Strategy",The Coal Authority,22/08/2023,Subsidence Pumping Maintenance - Power,ENV - Mine Water Operations,IMServ Europe Limited,162871,74.26
"Department for Business, Energy and Industrial Strategy",The Coal Authority,17/08/2023,Minewater Power Costs,ENV - Mine Water Operations,IMServ Europe Limited,162971,36.8
"Department for Business, Energy and Industrial Strategy",The Coal Authority,17/08/2023,Minewater Power Costs,ENV - Mine Water Operations,IMServ Europe Limited,162971,36.8
"Department for Business, Energy and Industrial Strategy",The Coal Authority,17/08/2023,Minewater Power Costs,ENV - Mine Water Operations,IMServ Europe Limited,162971,36.8
"Department for Business, Energy and Industrial Strategy",The Coal Authority,17/08/2023,Minewater Power Costs,ENV - Mine Water Operations,IMServ Europe Limited,162971,36.8
"Department for Business, Energy and Industrial Strategy",The Coal Authority,17/08/2023,Minewater Power Costs,ENV - Mine Water Operations,IMServ Europe Limited,162971,36.8
"Department for Business, Energy and Industrial Strategy",The Coal Authority,17/08/2023,Minewater Power Costs,ENV - Mine Water Operations,IMServ Europe Limited,162971,36.8
"Department for Business, Energy and Industrial Strategy",The Coal Authority,17/08/2023,Minewater Power Costs,ENV - Mine Water Operations,IMServ Europe Limited,162971,36.8
"Department for Business, Energy and Industrial Strategy",The Coal Authority,17/08/2023,Minewater Power Costs,ENV - Mine Water Operations,IMServ Europe Limited,162971,36.8
"Department for Business, Energy and Industrial Strategy",The Coal Authority,17/08/2023,Minewater Power Costs,ENV - Mine Water Operations,IMServ Europe Limited,162971,36.8
"Department for Business, Energy and Industrial Strategy",The Coal Authority,17/08/2023,Minewater Power Costs,ENV - Mine Water Operations,IMServ Europe Limited,162971,36.8
"Department for Business, Energy and Industrial Strategy",The Coal Authority,17/08/2023,Subsidence Pumping Maintenance - Power,ENV - Mine Water Operations,IMServ Europe Limited,162971,36.8
"Department for Business, Energy and Industrial Strategy",The Coal Authority,17/08/2023,Subsidence Pumping Maintenance - Power,ENV - Mine Water Operations,IMServ Europe Limited,162971,36.8
"Department for Business, Energy and Industrial Strategy",The Coal Authority,17/08/2023,Subsidence Pumping Maintenance - Power,ENV - Mine Water Operations,IMServ Europe Limited,162971,36.8
"Department for Business, Energy and Industrial Strategy",The Coal Authority,17/08/2023,Subsidence Pumping Maintenance - Power,ENV - Mine Water Operations,IMServ Europe Limited,162971,36.8
"Department for Business, Energy and Industrial Strategy",The Coal Authority,17/08/2023,Subsidence Pumping Maintenance - Power,ENV - Mine Water Operations,IMServ Europe Limited,162971,36.8
"Department for Business, Energy and Industrial Strategy",The Coal Authority,17/08/2023,Subsidence Pumping Maintenance - Power,ENV - Mine Water Operations,IMServ Europe Limited,162971,36.8
"Department for Business, Energy and Industrial Strategy",The Coal Authority,17/08/2023,Subsidence Pumping Maintenance - Power,ENV - Mine Water Operations,IMServ Europe Limited,162971,36.8
"Department for Business, Energy and Industrial Strategy",The Coal Authority,17/08/2023,Subsidence Pumping Maintenance - Power,ENV - Mine Water Operations,IMServ Europe Limited,162971,36.8
"Department for Business, Energy and Industrial Strategy",The Coal Authority,17/08/2023,Subsidence Pumping Maintenance - Power,ENV - Mine Water Operations,IMServ Europe Limited,162971,36.8
"Department for Business, Energy and Industrial Strategy",The Coal Authority,11/08/2023,Minewater Power Costs,ENV - Mine Water Operations,IMServ Europe Limited,162976,208.69
"Department for Business, Energy and Industrial Strategy",The Coal Authority,11/08/2023,Minewater Power Costs,ENV - Mine Water Operations,IMServ Europe Limited,162976,208.69
"Department for Business, Energy and Industrial Strategy",The Coal Authority,11/08/2023,Minewater Power Costs,ENV - Mine Water Operations,IMServ Europe Limited,162976,208.69
"Department for Business, Energy and Industrial Strategy",The Coal Authority,11/08/2023,Minewater Power Costs,ENV - Mine Water Operations,IMServ Europe Limited,162976,208.69
"Department for Business, Energy and Industrial Strategy",The Coal Authority,11/08/2023,Minewater Power Costs,ENV - Mine Water Operations,IMServ Europe Limited,162976,280.92
"Department for Business, Energy and Industrial Strategy",The Coal Authority,11/08/2023,Minewater Power Costs,ENV - Mine Water Operations,IMServ Europe Limited,162976,208.69
"Department for Business, Energy and Industrial Strategy",The Coal Authority,11/08/2023,Minewater Power Costs,ENV - Mine Water Operations,IMServ Europe Limited,162976,208.69
"Department for Business, Energy and Industrial Strategy",The Coal Authority,11/08/2023,Minewater Power Costs,ENV - Mine Water Operations,IMServ Europe Limited,162976,208.69
"Department for Business, Energy and Industrial Strategy",The Coal Authority,11/08/2023,Minewater Power Costs,ENV - Mine Water Operations,IMServ Europe Limited,162976,208.69
"Department for Business, Energy and Industrial Strategy",The Coal Authority,11/08/2023,Minewater Power Costs,ENV - Mine Water Operations,IMServ Europe Limited,162976,208.69
"Department for Business, Energy and Industrial Strategy",The Coal Authority,11/08/2023,Minewater Power Costs,ENV - Mine Water Operations,IMServ Europe Limited,162976,208.69
"Department for Business, Energy and Industrial Strategy",The Coal Authority,11/08/2023,Minewater Power Costs,ENV - Mine Water Operations,IMServ Europe Limited,162976,208.69
"Department for Business, Energy and Industrial Strategy",The Coal Authority,11/08/2023,Minewater Power Costs,ENV - Mine Water Operations,IMServ Europe Limited,162976,208.69
"Department for Business, Energy and Industrial Strategy",The Coal Authority,11/08/2023,Minewater Power Costs,ENV - Mine Water Operations,IMServ Europe Limited,162976,208.69
"Department for Business, Energy and Industrial Strategy",The Coal Authority,11/08/2023,Minewater Power Costs,ENV - Mine Water Operations,IMServ Europe Limited,162976,208.69
"Department for Business, Energy and Industrial Strategy",The Coal Authority,11/08/2023,Minewater Power Costs,ENV - Mine Water Operations,IMServ Europe Limited,162976,208.69
"Department for Business, Energy and Industrial Strategy",The Coal Authority,11/08/2023,Minewater Power Costs,ENV - Mine Water Operations,IMServ Europe Limited,162976,208.69
"Department for Business, Energy and Industrial Strategy",The Coal Authority,11/08/2023,Minewater Power Costs,ENV - Mine Water Operations,IMServ Europe Limited,162976,208.69
"Department for Business, Energy and Industrial Strategy",The Coal Authority,11/08/2023,Minewater Power Costs,ENV - Mine Water Operations,IMServ Europe Limited,162976,208.69
"Department for Business, Energy and Industrial Strategy",The Coal Authority,11/08/2023,Minewater Power Costs,ENV - Mine Water Operations,IMServ Europe Limited,162976,208.69
"Department for Business, Energy and Industrial Strategy",The Coal Authority,11/08/2023,Minewater Power Costs,ENV - Mine Water Operations,IMServ Europe Limited,162976,208.69
"Department for Business, Energy and Industrial Strategy",The Coal Authority,11/08/2023,Minewater Power Costs,ENV - Mine Water Operations,IMServ Europe Limited,162976,208.69
"Department for Business, Energy and Industrial Strategy",The Coal Authority,11/08/2023,Minewater Power Costs,ENV - Mine Water Operations,IMServ Europe Limited,162976,208.69
"Department for Business, Energy and Industrial Strategy",The Coal Authority,11/08/2023,Minewater Power Costs,ENV - Mine Water Operations,IMServ Europe Limited,162976,208.69
"Department for Business, Energy and Industrial Strategy",The Coal Authority,11/08/2023,Minewater Power Costs,ENV - Mine Water Operations,IMServ Europe Limited,162976,208.69
"Department for Business, Energy and Industrial Strategy",The Coal Authority,11/08/2023,Minewater Power Costs,ENV - Mine Water Operations,IMServ Europe Limited,162976,208.69
"Department for Business, Energy and Industrial Strategy",The Coal Authority,11/08/2023,Minewater Power Costs,ENV - Mine Water Operations,IMServ Europe Limited,162976,208.69
"Department for Business, Energy and Industrial Strategy",The Coal Authority,11/08/2023,Minewater Power Costs,ENV - Mine Water Operations,IMServ Europe Limited,162976,208.69
"Department for Business, Energy and Industrial Strategy",The Coal Authority,11/08/2023,Minewater Power Costs,ENV - Mine Water Operations,IMServ Europe Limited,162976,208.69
"Department for Business, Energy and Industrial Strategy",The Coal Authority,11/08/2023,Minewater Power Costs,ENV - Mine Water Operations,IMServ Europe Limited,162976,208.69
"Department for Business, Energy and Industrial Strategy",The Coal Authority,11/08/2023,Subsidence Pumping Maintenance - Power,ENV - Mine Water Operations,IMServ Europe Limited,162976,208.69
"Department for Business, Energy and Industrial Strategy",The Coal Authority,11/08/2023,Subsidence Pumping Maintenance - Power,ENV - Mine Water Operations,IMServ Europe Limited,162976,208.69
"Department for Business, Energy and Industrial Strategy",The Coal Authority,11/08/2023,Subsidence Pumping Maintenance - Power,ENV - Mine Water Operations,IMServ Europe Limited,162976,208.69
"Department for Business, Energy and Industrial Strategy",The Coal Authority,11/08/2023,Subsidence Pumping Maintenance - Power,ENV - Mine Water Operations,IMServ Europe Limited,162976,208.69
"Department for Business, Energy and Industrial Strategy",The Coal Authority,11/08/2023,Subsidence Pumping Maintenance - Power,ENV - Mine Water Operations,IMServ Europe Limited,162976,208.69
"Department for Business, Energy and Industrial Strategy",The Coal Authority,11/08/2023,Subsidence Pumping Maintenance - Power,ENV - Mine Water Operations,IMServ Europe Limited,162976,208.69
"Department for Business, Energy and Industrial Strategy",The Coal Authority,11/08/2023,Subsidence Pumping Maintenance - Power,ENV - Mine Water Operations,IMServ Europe Limited,162976,208.69
"Department for Business, Energy and Industrial Strategy",The Coal Authority,11/08/2023,Subsidence Pumping Maintenance - Power,ENV - Mine Water Operations,IMServ Europe Limited,162976,208.69
"Department for Business, Energy and Industrial Strategy",The Coal Authority,05/09/2023,Minewater Power Costs,ENV - Mine Water Operations,IMServ Europe Limited,163325,60
"Department for Business, Energy and Industrial Strategy",The Coal Authority,31/08/2023,Minewater Telecoms & Telemetry,ENV - Mine Water Operations,KORE Wireless UK PLC,162465,15
"Department for Business, Energy and Industrial Strategy",The Coal Authority,08/09/2023,Minewater Telecoms & Telemetry,ENV - Mine Water Operations,KORE Wireless UK PLC,162911,35
"Department for Business, Energy and Industrial Strategy",The Coal Authority,11/09/2023,Minewater Rent,ENV - Mine Water Operations,Rental Payment,162850,"3,000.00"
"Department for Business, Energy and Industrial Strategy",The Coal Authority,20/09/2023,Minewater Rent,ENV - Mine Water Operations,National Coal Mining Museum,163802,"3,000.00"
"Department for Business, Energy and Industrial Strategy",The Coal Authority,20/09/2023,Minewater Power Costs,ENV - Mine Water Operations,National Coal Mining Museum,163803,"4,768.00"
"Department for Business, Energy and Industrial Strategy",The Coal Authority,20/09/2023,Minewater Contractor Add. Task Order - Ops Site,ENV - Mine Water Operations,National Coal Mining Museum,163804,"8,737.13"
"Department for Business, Energy and Industrial Strategy",The Coal Authority,03/08/2023,Minewater Discharge Consents,ENV - Mine Water Operations,Natural Resources Wales,162480,"1,120.18"
"Department for Business, Energy and Industrial Strategy",The Coal Authority,03/08/2023,Minewater Discharge Consents,ENV - Mine Water Operations,Natural Resources Wales,162480,"1,120.18"
"Department for Business, Energy and Industrial Strategy",The Coal Authority,03/08/2023,Minewater Discharge Consents,ENV - Mine Water Operations,Natural Resources Wales,162480,"1,120.18"
"Department for Business, Energy and Industrial Strategy",The Coal Authority,03/08/2023,Minewater Discharge Consents,ENV - Mine Water Operations,Natural Resources Wales,162480,"1,120.18"
"Department for Business, Energy and Industrial Strategy",The Coal Authority,03/08/2023,Minewater Discharge Consents,ENV - Mine Water Operations,Natural Resources Wales,162480,373.4
"Department for Business, Energy and Industrial Strategy",The Coal Authority,03/08/2023,Minewater Discharge Consents,ENV - Mine Water Operations,Natural Resources Wales,162480,746.79
"Department for Business, Energy and Industrial Strategy",The Coal Authority,03/08/2023,Minewater Discharge Consents,ENV - Mine Water Operations,Natural Resources Wales,162480,373.4
"Department for Business, Energy and Industrial Strategy",The Coal Authority,03/08/2023,Minewater Discharge Consents,ENV - Mine Water Operations,Natural Resources Wales,162480,"1,120.18"
"Department for Business, Energy and Industrial Strategy",The Coal Authority,03/08/2023,Minewater Discharge Consents,ENV - Mine Water Operations,Natural Resources Wales,162480,"2,240.36"
"Department for Business, Energy and Industrial Strategy",The Coal Authority,03/08/2023,Minewater Discharge Consents,ENV - Mine Water Operations,Natural Resources Wales,162480,373.4
"Department for Business, Energy and Industrial Strategy",The Coal Authority,17/05/2023,Minewater Rent,ENV - Mine Water Operations,Network Rail,163759,40
"Department for Business, Energy and Industrial Strategy",The Coal Authority,01/09/2023,Minewater Rent,ENV - Mine Water Operations,Network Rail,163760,40
"Department for Business, Energy and Industrial Strategy",The Coal Authority,01/09/2023,Minewater Rent,ENV - Mine Water Operations,Network Rail,163761,42
"Department for Business, Energy and Industrial Strategy",The Coal Authority,09/02/2022,Minewater Rent,ENV - Mine Water Operations,Network Rail,163767,20
"Department for Business, Energy and Industrial Strategy",The Coal Authority,17/06/2023,Minewater Rent,ENV - Mine Water Operations,Peel Investments (North) Ltd,163888,"5,003.00"
"Department for Business, Energy and Industrial Strategy",The Coal Authority,07/08/2023,Subsidence Pumping Maintenance - Power,ENV - Mine Water Operations,RA & RL Smith Ltd,162768,"1,330.00"
"Department for Business, Energy and Industrial Strategy",The Coal Authority,11/09/2023,Subsidence Pumping Maintenance - Power,ENV - Mine Water Operations,RA & RL Smith Ltd,162923,"1,700.00"
"Department for Business, Energy and Industrial Strategy",The Coal Authority,31/08/2023,Business Meetings,ENV - Mine Water Operations,S P Foods,162199,118.2
"Department for Business, Energy and Industrial Strategy",The Coal Authority,31/08/2023,Minewater Discharge Consents,ENV - Mine Water Operations,Sepa,162068,170
"Department for Business, Energy and Industrial Strategy",The Coal Authority,08/09/2023,Minewater Contractor Maint. Visits - Ops Site,ENV - Mine Water Operations,Severn Trent Serv Ops Uk Ltd,163191,"9,051.70"
"Department for Business, Energy and Industrial Strategy",The Coal Authority,08/09/2023,Minewater Contractor Maint. Visits - Ops Site,ENV - Mine Water Operations,Severn Trent Serv Ops Uk Ltd,163192,"370,365.77"
"Department for Business, Energy and Industrial Strategy",The Coal Authority,08/09/2023,CY - Minewater Scheme - Additions,ENV - Mine Water Operations,Severn Trent Serv Ops Uk Ltd,163307,"12,227.71"
"Department for Business, Energy and Industrial Strategy",The Coal Authority,08/09/2023,CY - Minewater Scheme - Additions,ENV - Mine Water Operations,Severn Trent Serv Ops Uk Ltd,163307,"25,713.19"
"Department for Business, Energy and Industrial Strategy",The Coal Authority,08/09/2023,CY - Minewater Scheme - Additions,ENV - Mine Water Operations,Severn Trent Serv Ops Uk Ltd,163307,58.54
"Department for Business, Energy and Industrial Strategy",The Coal Authority,08/09/2023,CY - Minewater Scheme - Additions,ENV - Mine Water Operations,Severn Trent Serv Ops Uk Ltd,163307,"2,573.52"
"Department for Business, Energy and Industrial Strategy",The Coal Authority,08/09/2023,CY - Minewater Scheme - Additions,ENV - Mine Water Operations,Severn Trent Serv Ops Uk Ltd,163307,"11,791.18"
"Department for Business, Energy and Industrial Strategy",The Coal Authority,08/09/2023,CY - Minewater Scheme - Additions,ENV - Mine Water Operations,Severn Trent Serv Ops Uk Ltd,163307,110.95
"Department for Business, Energy and Industrial Strategy",The Coal Authority,08/09/2023,CY - Minewater Scheme - Additions,ENV - Mine Water Operations,Severn Trent Serv Ops Uk Ltd,163307,"11,266.91"
"Department for Business, Energy and Industrial Strategy",The Coal Authority,08/09/2023,CY - Minewater Scheme - Additions,ENV - Mine Water Operations,Severn Trent Serv Ops Uk Ltd,163307,"6,730.21"
"Department for Business, Energy and Industrial Strategy",The Coal Authority,08/09/2023,CY - Minewater Scheme - Additions,ENV - Mine Water Operations,Severn Trent Serv Ops Uk Ltd,163307,107.73
"Department for Business, Energy and Industrial Strategy",The Coal Authority,08/09/2023,CY - Minewater Scheme - Additions,ENV - Mine Water Operations,Severn Trent Serv Ops Uk Ltd,163307,"3,844.69"
"Department for Business, Energy and Industrial Strategy",The Coal Authority,08/09/2023,CY - Minewater Scheme - Additions,ENV - Mine Water Operations,Severn Trent Serv Ops Uk Ltd,163307,"1,516.02"
"Department for Business, Energy and Industrial Strategy",The Coal Authority,08/09/2023,CY - Minewater Scheme - Additions,ENV - Mine Water Operations,Severn Trent Serv Ops Uk Ltd,163307,"25,377.26"
"Department for Business, Energy and Industrial Strategy",The Coal Authority,08/09/2023,CY - Minewater Scheme - Additions,ENV - Mine Water Operations,Severn Trent Serv Ops Uk Ltd,163307,240.25
"Department for Business, Energy and Industrial Strategy",The Coal Authority,08/09/2023,CY - Minewater Scheme - Additions,ENV - Mine Water Operations,Severn Trent Serv Ops Uk Ltd,163307,289.45
"Department for Business, Energy and Industrial Strategy",The Coal Authority,08/09/2023,CY - Minewater Scheme - Additions,ENV - Mine Water Operations,Severn Trent Serv Ops Uk Ltd,163307,35.54
"Department for Business, Energy and Industrial Strategy",The Coal Authority,08/09/2023,CY - Minewater Scheme - Additions,ENV - Mine Water Operations,Severn Trent Serv Ops Uk Ltd,163307,"22,667.94"
"Department for Business, Energy and Industrial Strategy",The Coal Authority,08/09/2023,CY - Minewater Scheme - Additions,ENV - Mine Water Operations,Severn Trent Serv Ops Uk Ltd,163307,"1,045.14"
"Department for Business, Energy and Industrial Strategy",The Coal Authority,08/09/2023,CY - Minewater Scheme - Additions,ENV - Mine Water Operations,Severn Trent Serv Ops Uk Ltd,163307,177.69
"Department for Business, Energy and Industrial Strategy",The Coal Authority,08/09/2023,CY - Minewater Scheme - Additions,ENV - Mine Water Operations,Severn Trent Serv Ops Uk Ltd,163307,903.54
"Department for Business, Energy and Industrial Strategy",The Coal Authority,08/09/2023,CY - Minewater Scheme - Additions,ENV - Mine Water Operations,Severn Trent Serv Ops Uk Ltd,163307,226.29
"Department for Business, Energy and Industrial Strategy",The Coal Authority,08/09/2023,CY - Minewater Scheme - Additions,ENV - Mine Water Operations,Severn Trent Serv Ops Uk Ltd,163307,870.22
"Department for Business, Energy and Industrial Strategy",The Coal Authority,08/09/2023,CY - Minewater Scheme - Additions,ENV - Mine Water Operations,Severn Trent Serv Ops Uk Ltd,163307,93.65
"Department for Business, Energy and Industrial Strategy",The Coal Authority,08/09/2023,CY - Minewater Scheme - Additions,ENV - Mine Water Operations,Severn Trent Serv Ops Uk Ltd,163307,"10,250.36"
"Department for Business, Energy and Industrial Strategy",The Coal Authority,08/09/2023,CY - Minewater Scheme - Additions,ENV - Mine Water Operations,Severn Trent Serv Ops Uk Ltd,163307,298.19
"Department for Business, Energy and Industrial Strategy",The Coal Authority,08/09/2023,CY - Minewater Scheme - Additions,ENV - Mine Water Operations,Severn Trent Serv Ops Uk Ltd,163307,222.71
"Department for Business, Energy and Industrial Strategy",The Coal Authority,08/09/2023,CY - Minewater Scheme - Additions,ENV - Mine Water Operations,Severn Trent Serv Ops Uk Ltd,163307,"24,413.80"
"Department for Business, Energy and Industrial Strategy",The Coal Authority,08/09/2023,CY - Minewater Scheme - Additions,ENV - Mine Water Operations,Severn Trent Serv Ops Uk Ltd,163307,"3,042.72"
"Department for Business, Energy and Industrial Strategy",The Coal Authority,08/09/2023,CY - Minewater Scheme - Additions,ENV - Mine Water Operations,Severn Trent Serv Ops Uk Ltd,163307,356.95
"Department for Business, Energy and Industrial Strategy",The Coal Authority,08/09/2023,CY - Minewater Scheme - Additions,ENV - Mine Water Operations,Severn Trent Serv Ops Uk Ltd,163307,279.32
"Department for Business, Energy and Industrial Strategy",The Coal Authority,08/09/2023,CY - Minewater Scheme - Additions,ENV - Mine Water Operations,Severn Trent Serv Ops Uk Ltd,163307,"1,593.16"
"Department for Business, Energy and Industrial Strategy",The Coal Authority,08/09/2023,CY - Minewater Scheme - Additions,ENV - Mine Water Operations,Severn Trent Serv Ops Uk Ltd,163307,506.9
"Department for Business, Energy and Industrial Strategy",The Coal Authority,08/09/2023,CY - Minewater Scheme - Additions,ENV - Mine Water Operations,Severn Trent Serv Ops Uk Ltd,163307,732.63
"Department for Business, Energy and Industrial Strategy",The Coal Authority,08/09/2023,CY - Minewater Scheme - Additions,ENV - Mine Water Operations,Severn Trent Serv Ops Uk Ltd,163307,671.09
"Department for Business, Energy and Industrial Strategy",The Coal Authority,08/09/2023,CY - Minewater Scheme - Additions,ENV - Mine Water Operations,Severn Trent Serv Ops Uk Ltd,163307,35.54
"Department for Business, Energy and Industrial Strategy",The Coal Authority,08/09/2023,CY - Plant & Machinery - Additions,ENV - Mine Water Operations,Severn Trent Serv Ops Uk Ltd,163307,75.32
"Department for Business, Energy and Industrial Strategy",The Coal Authority,08/09/2023,CY - Plant & Machinery - Additions,ENV - Mine Water Operations,Severn Trent Serv Ops Uk Ltd,163307,81.3
"Department for Business, Energy and Industrial Strategy",The Coal Authority,08/09/2023,CY - Plant & Machinery - Additions,ENV - Mine Water Operations,Severn Trent Serv Ops Uk Ltd,163307,"12,817.39"
"Department for Business, Energy and Industrial Strategy",The Coal Authority,08/09/2023,Minewater Chemicals - Operational Sites,ENV - Mine Water Operations,Severn Trent Serv Ops Uk Ltd,163307,123.11
"Department for Business, Energy and Industrial Strategy",The Coal Authority,08/09/2023,Minewater Contractor Add. Task Order - Ops Site,ENV - Mine Water Operations,Severn Trent Serv Ops Uk Ltd,163307,723.56
"Department for Business, Energy and Industrial Strategy",The Coal Authority,08/09/2023,Minewater Contractor Add. Task Order - Ops Site,ENV - Mine Water Operations,Severn Trent Serv Ops Uk Ltd,163307,"2,289.25"
"Department for Business, Energy and Industrial Strategy",The Coal Authority,08/09/2023,Minewater Contractor Add. Task Order - Ops Site,ENV - Mine Water Operations,Severn Trent Serv Ops Uk Ltd,163307,"3,230.11"
"Department for Business, Energy and Industrial Strategy",The Coal Authority,08/09/2023,Minewater Contractor Add. Task Order - Ops Site,ENV - Mine Water Operations,Severn Trent Serv Ops Uk Ltd,163307,"1,155.47"
"Department for Business, Energy and Industrial Strategy",The Coal Authority,08/09/2023,Minewater Landscaping,ENV - Mine Water Operations,Severn Trent Serv Ops Uk Ltd,163307,92.65
"Department for Business, Energy and Industrial Strategy",The Coal Authority,08/09/2023,Minewater Landscaping,ENV - Mine Water Operations,Severn Trent Serv Ops Uk Ltd,163307,"3,822.21"
"Department for Business, Energy and Industrial Strategy",The Coal Authority,08/09/2023,Minewater Management Fees,ENV - Mine Water Operations,Severn Trent Serv Ops Uk Ltd,163307,54.2
"Department for Business, Energy and Industrial Strategy",The Coal Authority,08/09/2023,Minewater Remediation,ENV - Mine Water Operations,Severn Trent Serv Ops Uk Ltd,163307,"1,051.27"
"Department for Business, Energy and Industrial Strategy",The Coal Authority,08/09/2023,Minewater Remediation,ENV - Mine Water Operations,Severn Trent Serv Ops Uk Ltd,163307,"1,023.95"
"Department for Business, Energy and Industrial Strategy",The Coal Authority,08/09/2023,Minewater Sludge Disposal,ENV - Mine Water Operations,Severn Trent Serv Ops Uk Ltd,163307,101.75
"Department for Business, Energy and Industrial Strategy",The Coal Authority,08/09/2023,Minewater Sludge Disposal,ENV - Mine Water Operations,Severn Trent Serv Ops Uk Ltd,163307,71.08
"Department for Business, Energy and Industrial Strategy",The Coal Authority,08/09/2023,Minewater Sludge Disposal,ENV - Mine Water Operations,Severn Trent Serv Ops Uk Ltd,163307,627.39
"Department for Business, Energy and Industrial Strategy",The Coal Authority,08/09/2023,Minewater Sludge Disposal,ENV - Mine Water Operations,Severn Trent Serv Ops Uk Ltd,163307,"26,052.92"
"Department for Business, Energy and Industrial Strategy",The Coal Authority,08/09/2023,Minewater Sludge Disposal,ENV - Mine Water Operations,Severn Trent Serv Ops Uk Ltd,163307,577.43
"Department for Business, Energy and Industrial Strategy",The Coal Authority,08/09/2023,Minewater Sludge Disposal,ENV - Mine Water Operations,Severn Trent Serv Ops Uk Ltd,163307,193.06
"Department for Business, Energy and Industrial Strategy",The Coal Authority,08/09/2023,Minewater Sludge Disposal,ENV - Mine Water Operations,Severn Trent Serv Ops Uk Ltd,163307,"1,637.85"
"Department for Business, Energy and Industrial Strategy",The Coal Authority,08/09/2023,Subsidence Pumping Maintenance - Ad Hoc,ENV - Mine Water Operations,Severn Trent Serv Ops Uk Ltd,163307,361.3
"Department for Business, Energy and Industrial Strategy",The Coal Authority,08/09/2023,Subsidence Pumping Maintenance - Ad Hoc,ENV - Mine Water Operations,Severn Trent Serv Ops Uk Ltd,163307,"1,688.20"
"Department for Business, Energy and Industrial Strategy",The Coal Authority,07/09/2023,Minewater Monitoring & Flow Measurement,ENV - Mine Water Operations,Socotec UK Limited,163513,507.72
"Department for Business, Energy and Industrial Strategy",The Coal Authority,04/07/2023,Mileage Payments,ENV - Mine Water Operations,Staff Control Expenses,162290,0.9
"Department for Business, Energy and Industrial Strategy",The Coal Authority,04/07/2023,Mileage Payments,ENV - Mine Water Operations,Staff Control Expenses,162290,30.15
"Department for Business, Energy and Industrial Strategy",The Coal Authority,04/07/2023,Mileage Payments,ENV - Mine Water Operations,Staff Control Expenses,162290,28.35
"Department for Business, Energy and Industrial Strategy",The Coal Authority,04/07/2023,Mileage Payments,ENV - Mine Water Operations,Staff Control Expenses,162290,16.2
"Department for Business, Energy and Industrial Strategy",The Coal Authority,04/07/2023,Subsistence Allowances,ENV - Mine Water Operations,Staff Control Expenses,162290,3.58
"Department for Business, Energy and Industrial Strategy",The Coal Authority,04/07/2023,Subsistence Allowances,ENV - Mine Water Operations,Staff Control Expenses,162290,6.72
"Department for Business, Energy and Industrial Strategy",The Coal Authority,07/07/2023,Subsistence Allowances,ENV - Mine Water Operations,Staff Control Expenses,162290,2.96
"Department for Business, Energy and Industrial Strategy",The Coal Authority,07/07/2023,Subsistence Allowances,ENV - Mine Water Operations,Staff Control Expenses,162290,3.79
"Department for Business, Energy and Industrial Strategy",The Coal Authority,11/07/2023,Subsistence Allowances,ENV - Mine Water Operations,Staff Control Expenses,162290,4.42
"Department for Business, Energy and Industrial Strategy",The Coal Authority,11/07/2023,Subsistence Allowances,ENV - Mine Water Operations,Staff Control Expenses,162290,4.64
"Department for Business, Energy and Industrial Strategy",The Coal Authority,14/07/2023,Subsistence Allowances,ENV - Mine Water Operations,Staff Control Expenses,162290,4.9
"Department for Business, Energy and Industrial Strategy",The Coal Authority,18/07/2023,Fuel (Vehicle),ENV - Mine Water Operations,Staff Control Expenses,162290,40.51
"Department for Business, Energy and Industrial Strategy",The Coal Authority,18/07/2023,Subsistence Allowances,ENV - Mine Water Operations,Staff Control Expenses,162290,6.99
"Department for Business, Energy and Industrial Strategy",The Coal Authority,18/07/2023,Subsistence Allowances,ENV - Mine Water Operations,Staff Control Expenses,162290,8.58
"Department for Business, Energy and Industrial Strategy",The Coal Authority,18/07/2023,Subsistence Allowances,ENV - Mine Water Operations,Staff Control Expenses,162290,5.7
"Department for Business, Energy and Industrial Strategy",The Coal Authority,18/07/2023,Subsistence Allowances,ENV - Mine Water Operations,Staff Control Expenses,162290,4.42
"Department for Business, Energy and Industrial Strategy",The Coal Authority,18/07/2023,Subsistence Allowances,ENV - Mine Water Operations,Staff Control Expenses,162290,2.5
"Department for Business, Energy and Industrial Strategy",The Coal Authority,19/07/2023,Fuel (Vehicle),ENV - Mine Water Operations,Staff Control Expenses,162290,35.52
"Department for Business, Energy and Industrial Strategy",The Coal Authority,19/07/2023,Subsistence Allowances,ENV - Mine Water Operations,Staff Control Expenses,162290,5.1
"Department for Business, Energy and Industrial Strategy",The Coal Authority,19/07/2023,Subsistence Allowances,ENV - Mine Water Operations,Staff Control Expenses,162290,5.97
"Department for Business, Energy and Industrial Strategy",The Coal Authority,19/07/2023,Subsistence Allowances,ENV - Mine Water Operations,Staff Control Expenses,162290,2.07
"Department for Business, Energy and Industrial Strategy",The Coal Authority,19/07/2023,Subsistence Allowances,ENV - Mine Water Operations,Staff Control Expenses,162290,2.04
"Department for Business, Energy and Industrial Strategy",The Coal Authority,26/07/2023,Subsistence Allowances,ENV - Mine Water Operations,Staff Control Expenses,162290,3.54
"Department for Business, Energy and Industrial Strategy",The Coal Authority,27/07/2023,Subsistence Allowances,ENV - Mine Water Operations,Staff Control Expenses,162290,2.48
"Department for Business, Energy and Industrial Strategy",The Coal Authority,09/08/2023,Fuel (Vehicle),ENV - Mine Water Operations,Staff Control Expenses,162808,61.38
"Department for Business, Energy and Industrial Strategy",The Coal Authority,10/08/2023,Mileage Payments,ENV - Mine Water Operations,Staff Control Expenses,162808,7.13
"Department for Business, Energy and Industrial Strategy",The Coal Authority,10/08/2023,Mileage Payments,ENV - Mine Water Operations,Staff Control Expenses,162808,7.09
"Department for Business, Energy and Industrial Strategy",The Coal Authority,24/08/2023,Fuel (Vehicle),ENV - Mine Water Operations,Staff Control Expenses,162808,50.93
"Department for Business, Energy and Industrial Strategy",The Coal Authority,25/08/2023,Mileage Payments,ENV - Mine Water Operations,Staff Control Expenses,162808,9.6
"Department for Business, Energy and Industrial Strategy",The Coal Authority,25/08/2023,Mileage Payments,ENV - Mine Water Operations,Staff Control Expenses,162808,9.56
"Department for Business, Energy and Industrial Strategy",The Coal Authority,27/08/2023,Fuel (Vehicle),ENV - Mine Water Operations,Staff Control Expenses,162808,48.71
"Department for Business, Energy and Industrial Strategy",The Coal Authority,29/08/2023,Mileage Payments,ENV - Mine Water Operations,Staff Control Expenses,162808,1.86
"Department for Business, Energy and Industrial Strategy",The Coal Authority,29/08/2023,Mileage Payments,ENV - Mine Water Operations,Staff Control Expenses,162808,1.86
"Department for Business, Energy and Industrial Strategy",The Coal Authority,30/08/2023,Mileage Payments,ENV - Mine Water Operations,Staff Control Expenses,162808,1.86
"Department for Business, Energy and Industrial Strategy",The Coal Authority,30/08/2023,Mileage Payments,ENV - Mine Water Operations,Staff Control Expenses,162808,1.86
"Department for Business, Energy and Industrial Strategy",The Coal Authority,01/08/2023,Subsistence Allowances,ENV - Mine Water Operations,Staff Control Expenses,163283,4.3
"Department for Business, Energy and Industrial Strategy",The Coal Authority,13/08/2023,Subsistence Allowances,ENV - Mine Water Operations,Staff Control Expenses,163283,5.88
"Department for Business, Energy and Industrial Strategy",The Coal Authority,14/08/2023,Subsistence Allowances,ENV - Mine Water Operations,Staff Control Expenses,163283,4.87
"Department for Business, Energy and Industrial Strategy",The Coal Authority,15/08/2023,Fuel (Vehicle),ENV - Mine Water Operations,Staff Control Expenses,163283,32.01
"Department for Business, Energy and Industrial Strategy",The Coal Authority,15/08/2023,Subsistence Allowances,ENV - Mine Water Operations,Staff Control Expenses,163283,3.86
"Department for Business, Energy and Industrial Strategy",The Coal Authority,15/08/2023,Subsistence Allowances,ENV - Mine Water Operations,Staff Control Expenses,163283,5.4
"Department for Business, Energy and Industrial Strategy",The Coal Authority,15/08/2023,Subsistence Allowances,ENV - Mine Water Operations,Staff Control Expenses,163283,3.85
"Department for Business, Energy and Industrial Strategy",The Coal Authority,16/08/2023,Fuel (Vehicle),ENV - Mine Water Operations,Staff Control Expenses,163283,62.98
"Department for Business, Energy and Industrial Strategy",The Coal Authority,24/08/2023,Incidentals,ENV - Mine Water Operations,Staff Control Expenses,163283,2.2
"Department for Business, Energy and Industrial Strategy",The Coal Authority,25/08/2023,Incidentals,ENV - Mine Water Operations,Staff Control Expenses,163283,2.2
"Department for Business, Energy and Industrial Strategy",The Coal Authority,11/09/2023,Minewater Rent,ENV - Mine Water Operations,Tom Horsfield,162845,"1,057.56"
"Department for Business, Energy and Industrial Strategy",The Coal Authority,14/08/2023,Minewater Water Charges,ENV - Mine Water Operations,Wave Utilities,162750,24.58
"Department for Business, Energy and Industrial Strategy",The Coal Authority,22/09/2023,CY - Subsidence Pumping - Additions,ENV - Projects & Delivery,AECOM Ltd,163679,940.91
"Department for Business, Energy and Industrial Strategy",The Coal Authority,31/03/2023,CY - Subsidence Pumping - Additions,ENV - Projects & Delivery,Danvm Drainage Commissioners,162634,"4,338.30"
"Department for Business, Energy and Industrial Strategy",The Coal Authority,31/03/2023,CY - Subsidence Pumping - Additions,ENV - Projects & Delivery,Danvm Drainage Commissioners,162634,"28,922.00"
"Department for Business, Energy and Industrial Strategy",The Coal Authority,07/09/2023,CY - Subsidence Pumping - Additions,ENV - Projects & Delivery,Danvm Drainage Commissioners,162635,"-4,338.30"
"Department for Business, Energy and Industrial Strategy",The Coal Authority,07/09/2023,CY - Subsidence Pumping - Additions,ENV - Projects & Delivery,Danvm Drainage Commissioners,162635,"-28,922.00"
"Department for Business, Energy and Industrial Strategy",The Coal Authority,01/09/2023,Contract Hire Vehicles,ENV - Projects & Delivery,Days Fleet,162529,"4,879.80"
"Department for Business, Energy and Industrial Strategy",The Coal Authority,01/09/2023,Contract Hire Vehicles,ENV - Projects & Delivery,Days Fleet,162529,487.98
"Department for Business, Energy and Industrial Strategy",The Coal Authority,01/09/2023,Contract Hire Vehicles,ENV - Projects & Delivery,Days Fleet,162529,629.16
"Department for Business, Energy and Industrial Strategy",The Coal Authority,18/09/2023,Contract Hire Vehicles,ENV - Projects & Delivery,Days Fleet,163700,20
"Department for Business, Energy and Industrial Strategy",The Coal Authority,28/07/2023,CY - Minewater Scheme - Additions,ENV - Projects & Delivery,Dunelm Geotechnical and Environmental Ltd,162499,"63,790.01"
"Department for Business, Energy and Industrial Strategy",The Coal Authority,12/07/2023,Short Term Vehicle Hire,ENV - Projects & Delivery,Enterprise Rent A Car,163388,57.2
"Department for Business, Energy and Industrial Strategy",The Coal Authority,30/05/2023,Short Term Vehicle Hire,ENV - Projects & Delivery,Enterprise Rent A Car,163419,60
"Department for Business, Energy and Industrial Strategy",The Coal Authority,29/06/2023,Short Term Vehicle Hire,ENV - Projects & Delivery,Enterprise Rent A Car,163420,25
"Department for Business, Energy and Industrial Strategy",The Coal Authority,14/08/2023,CY - Minewater Scheme - Additions,ENV - Projects & Delivery,Environmental Monitoring Solutions Limited,162667,"2,000.00"
"Department for Business, Energy and Industrial Strategy",The Coal Authority,04/07/2023,Subsistence Allowances,ENV - Projects & Delivery,Government Procurement Card,163890,6.3
"Department for Business, Energy and Industrial Strategy",The Coal Authority,04/07/2023,Subsistence Allowances,ENV - Projects & Delivery,Government Procurement Card,163890,19.78
"Department for Business, Energy and Industrial Strategy",The Coal Authority,05/07/2023,Fuel (Vehicle),ENV - Projects & Delivery,Government Procurement Card,163890,42.42
"Department for Business, Energy and Industrial Strategy",The Coal Authority,05/07/2023,Incidentals,ENV - Projects & Delivery,Government Procurement Card,163890,4.4
"Department for Business, Energy and Industrial Strategy",The Coal Authority,05/07/2023,Subsistence Allowances,ENV - Projects & Delivery,Government Procurement Card,163890,6.9
"Department for Business, Energy and Industrial Strategy",The Coal Authority,06/07/2023,Incidentals,ENV - Projects & Delivery,Government Procurement Card,163890,7.92
"Department for Business, Energy and Industrial Strategy",The Coal Authority,06/07/2023,Subsistence Allowances,ENV - Projects & Delivery,Government Procurement Card,163890,6.12
"Department for Business, Energy and Industrial Strategy",The Coal Authority,09/07/2023,Fuel (Vehicle),ENV - Projects & Delivery,Government Procurement Card,163890,39.24
"Department for Business, Energy and Industrial Strategy",The Coal Authority,10/07/2023,Subsistence Allowances,ENV - Projects & Delivery,Government Procurement Card,163890,29.17
"Department for Business, Energy and Industrial Strategy",The Coal Authority,18/07/2023,Fuel (Vehicle),ENV - Projects & Delivery,Government Procurement Card,163890,33.33
"Department for Business, Energy and Industrial Strategy",The Coal Authority,18/07/2023,Subsistence Allowances,ENV - Projects & Delivery,Government Procurement Card,163890,29.29
"Department for Business, Energy and Industrial Strategy",The Coal Authority,22/09/2023,CY - Minewater Scheme - Additions,ENV - Projects & Delivery,J N Bentley Limited,163868,"20,423.67"
"Department for Business, Energy and Industrial Strategy",The Coal Authority,06/09/2023,CY - Minewater Scheme - Additions,ENV - Projects & Delivery,JBA Bentley Ltd,162894,"258,852.25"
"Department for Business, Energy and Industrial Strategy",The Coal Authority,04/09/2023,CY - Minewater Scheme - Additions,ENV - Projects & Delivery,JBA Bentley Ltd,163368,"284,345.07"
"Department for Business, Energy and Industrial Strategy",The Coal Authority,07/09/2023,CY - Minewater Scheme - Additions,ENV - Projects & Delivery,JBA Bentley Ltd,163689,"125,308.71"
"Department for Business, Energy and Industrial Strategy",The Coal Authority,07/09/2023,CY - Minewater Scheme - Additions,ENV - Projects & Delivery,JBA Bentley Ltd,163689,"145,866.70"
"Department for Business, Energy and Industrial Strategy",The Coal Authority,12/09/2023,Minewater Borehole Project Management,ENV - Projects & Delivery,Latimer Hinks,163900,"5,893.00"
"Department for Business, Energy and Industrial Strategy",The Coal Authority,14/09/2023,Minewater Borehole Project Management,ENV - Projects & Delivery,Michelmores LLP,163159,750
"Department for Business, Energy and Industrial Strategy",The Coal Authority,11/09/2023,Minewater Rent,ENV - Projects & Delivery,Rental Payment,162849,"1,000.00"
"Department for Business, Energy and Industrial Strategy",The Coal Authority,11/09/2023,Minewater Rent,ENV - Projects & Delivery,P M Quigley & Sons,162848,"2,750.00"
"Department for Business, Energy and Industrial Strategy",The Coal Authority,29/08/2023,CY - Minewater Scheme - Additions,ENV - Projects & Delivery,RSK Environment Limited,162310,"3,100.00"
"Department for Business, Energy and Industrial Strategy",The Coal Authority,21/08/2023,Business Meetings,ENV - Projects & Delivery,S P Foods,162951,137.9
"Department for Business, Energy and Industrial Strategy",The Coal Authority,08/09/2023,CY - Minewater Scheme - Additions,ENV - Projects & Delivery,Severn Trent Serv Ops Uk Ltd,163307,132.98
"Department for Business, Energy and Industrial Strategy",The Coal Authority,08/09/2023,CY - Minewater Scheme - Additions,ENV - Projects & Delivery,Severn Trent Serv Ops Uk Ltd,163307,"1,762.05"
"Department for Business, Energy and Industrial Strategy",The Coal Authority,08/09/2023,CY - Minewater Scheme - Additions,ENV - Projects & Delivery,Severn Trent Serv Ops Uk Ltd,163307,"26,615.76"
"Department for Business, Energy and Industrial Strategy",The Coal Authority,08/09/2023,CY - Minewater Scheme - Additions,ENV - Projects & Delivery,Severn Trent Serv Ops Uk Ltd,163307,775.24
"Department for Business, Energy and Industrial Strategy",The Coal Authority,08/09/2023,CY - Minewater Scheme - Additions,ENV - Projects & Delivery,Severn Trent Serv Ops Uk Ltd,163307,988.57
"Department for Business, Energy and Industrial Strategy",The Coal Authority,08/09/2023,CY - Minewater Scheme - Additions,ENV - Projects & Delivery,Severn Trent Serv Ops Uk Ltd,163307,"3,978.69"
"Department for Business, Energy and Industrial Strategy",The Coal Authority,08/09/2023,Minewater Pumping Tests,ENV - Projects & Delivery,Severn Trent Serv Ops Uk Ltd,163307,"5,518.42"
"Department for Business, Energy and Industrial Strategy",The Coal Authority,08/09/2023,Minewater Pumping Tests,ENV - Projects & Delivery,Severn Trent Serv Ops Uk Ltd,163307,"4,069.14"
"Department for Business, Energy and Industrial Strategy",The Coal Authority,08/09/2023,Minewater Pumping Tests,ENV - Projects & Delivery,Severn Trent Serv Ops Uk Ltd,163307,953.38
"Department for Business, Energy and Industrial Strategy",The Coal Authority,08/09/2023,Minewater Pumping Tests,ENV - Projects & Delivery,Severn Trent Serv Ops Uk Ltd,163307,218.87
"Department for Business, Energy and Industrial Strategy",The Coal Authority,08/09/2023,Minewater Pumping Tests,ENV - Projects & Delivery,Severn Trent Serv Ops Uk Ltd,163307,880.04
"Department for Business, Energy and Industrial Strategy",The Coal Authority,08/09/2023,Minewater Pumping Tests,ENV - Projects & Delivery,Severn Trent Serv Ops Uk Ltd,163307,633.79
"Department for Business, Energy and Industrial Strategy",The Coal Authority,09/03/2022,Minewater Monitoring & Flow Measurement,ENV - Projects & Delivery,Socotec UK Limited,163152,72
"Department for Business, Energy and Industrial Strategy",The Coal Authority,15/09/2023,Minewater Monitoring & Flow Measurement,ENV - Projects & Delivery,Socotec UK Limited,163153,-72
"Department for Business, Energy and Industrial Strategy",The Coal Authority,06/08/2023,Fares - Public Transport,ENV - Projects & Delivery,Staff Control Expenses,162290,6
"Department for Business, Energy and Industrial Strategy",The Coal Authority,07/09/2023,Mileage Payments,ENV - Projects & Delivery,Staff Control Expenses,163732,62.37
"Department for Business, Energy and Industrial Strategy",The Coal Authority,07/09/2023,Mileage Payments,ENV - Projects & Delivery,Staff Control Expenses,163732,62.58
"Department for Business, Energy and Industrial Strategy",The Coal Authority,07/09/2023,Subsistence Allowances,ENV - Projects & Delivery,Staff Control Expenses,163732,3.01
"Department for Business, Energy and Industrial Strategy",The Coal Authority,07/09/2023,Subsistence Allowances,ENV - Projects & Delivery,Staff Control Expenses,163732,2.49
"Department for Business, Energy and Industrial Strategy",The Coal Authority,19/09/2023,Mileage Payments,ENV - Projects & Delivery,Staff Control Expenses,163732,52.47
"Department for Business, Energy and Industrial Strategy",The Coal Authority,19/09/2023,Mileage Payments,ENV - Projects & Delivery,Staff Control Expenses,163732,51.83
"Department for Business, Energy and Industrial Strategy",The Coal Authority,19/09/2023,Subsistence Allowances,ENV - Projects & Delivery,Staff Control Expenses,163732,3.96
"Department for Business, Energy and Industrial Strategy",The Coal Authority,31/08/2023,CY - Minewater Scheme - Additions,ENV - Projects & Delivery,Strata Geotechnics (part of Van Elle Limited),162647,"2,942.77"
"Department for Business, Energy and Industrial Strategy",The Coal Authority,10/07/2023,Minewater Borehole Project Management,ENV - Projects & Delivery,The Nottinghamshire County Council,162865,"1,500.00"
"Department for Business, Energy and Industrial Strategy",The Coal Authority,07/09/2023,Minewater Borehole Project Management,ENV - Projects & Delivery,The Nottinghamshire County Council,162874,500
"Department for Business, Energy and Industrial Strategy",The Coal Authority,30/08/2023,CY - Minewater Scheme - Additions,ENV - Projects & Delivery,Turner and Townsend Project Management Ltd.,162893,"5,115.00"
"Department for Business, Energy and Industrial Strategy",The Coal Authority,30/08/2023,CY - Minewater Scheme - Additions,ENV - Projects & Delivery,Turner and Townsend Project Management Ltd.,162893,"11,716.18"
"Department for Business, Energy and Industrial Strategy",The Coal Authority,29/07/2023,Minewater Feasibility / Scoping,ENV - Projects & Delivery,WSP UK Ltd,162675,"26,885.04"
"Department for Business, Energy and Industrial Strategy",The Coal Authority,24/07/2023,Minewater Feasibility / Scoping,ENV - Projects & Delivery,WSP UK Ltd,163139,"5,454.86"
"Department for Business, Energy and Industrial Strategy",The Coal Authority,18/09/2023,Minewater Feasibility / Scoping,ENV - Projects & Delivery,WSP UK Ltd,163205,"-35,417.52"
"Department for Business, Energy and Industrial Strategy",The Coal Authority,06/09/2023,Minewater Feasibility / Scoping,ENV - Projects & Delivery,WSP UK Ltd,163344,640.18
"Department for Business, Energy and Industrial Strategy",The Coal Authority,30/06/2023,Minewater Feasibility / Scoping,ENV - Projects & Delivery,WSP UK Ltd,163680,"11,597.02"
"Department for Business, Energy and Industrial Strategy",The Coal Authority,25/09/2023,Minewater Feasibility / Scoping,ENV - Projects & Delivery,WSP UK Ltd,163681,"-11,597.02"
"Department for Business, Energy and Industrial Strategy",The Coal Authority,19/09/2023,Minewater Sampling - 'Non-operational' Sites,ENV - Salinity Programme,David Hinsley Electrical Support Services,163568,"2,175.00"
"Department for Business, Energy and Industrial Strategy",The Coal Authority,19/09/2023,Minewater Sampling - 'Non-operational' Sites,ENV - Salinity Programme,David Hinsley Electrical Support Services,163568,420
"Department for Business, Energy and Industrial Strategy",The Coal Authority,31/07/2023,Short Term Vehicle Hire,ENV - Salinity Programme,Enterprise Rent A Car,163386,60
"Department for Business, Energy and Industrial Strategy",The Coal Authority,31/08/2023,Minewater Investigation Studies,ENV - Salinity Programme,European Geophysical Services,162544,"1,125.00"
"Department for Business, Energy and Industrial Strategy",The Coal Authority,10/08/2023,Minewater Monitoring & Flow Measurement,ENV - Salinity Programme,Government Procurement Card,163889,779
"Department for Business, Energy and Industrial Strategy",The Coal Authority,18/08/2023,Minewater Discharge Consents,ENV - Salinity Programme,Government Procurement Card,163889,-44.69
"Department for Business, Energy and Industrial Strategy",The Coal Authority,21/08/2023,Minewater Monitoring & Flow Measurement,ENV - Salinity Programme,Government Procurement Card,163889,39.37
"Department for Business, Energy and Industrial Strategy",The Coal Authority,30/08/2023,Subsistence Allowances,ENV - Salinity Programme,Government Procurement Card,163889,4.5
"Department for Business, Energy and Industrial Strategy",The Coal Authority,30/08/2023,Subsistence Allowances,ENV - Salinity Programme,Government Procurement Card,163889,7.75
"Department for Business, Energy and Industrial Strategy",The Coal Authority,30/08/2023,Subsistence Allowances,ENV - Salinity Programme,Government Procurement Card,163889,7.5
"Department for Business, Energy and Industrial Strategy",The Coal Authority,30/08/2023,Subsistence Allowances,ENV - Salinity Programme,Government Procurement Card,163889,6.55
"Department for Business, Energy and Industrial Strategy",The Coal Authority,30/08/2023,Subsistence Allowances,ENV - Salinity Programme,Government Procurement Card,163889,3.67
"Department for Business, Energy and Industrial Strategy",The Coal Authority,22/08/2023,Minewater Power Costs,ENV - Salinity Programme,IMServ Europe Limited,162871,74.26
"Department for Business, Energy and Industrial Strategy",The Coal Authority,11/08/2023,Minewater Power Costs,ENV - Salinity Programme,IMServ Europe Limited,162976,208.69
"Department for Business, Energy and Industrial Strategy",The Coal Authority,11/08/2023,Minewater Power Costs,ENV - Salinity Programme,IMServ Europe Limited,162976,208.69
"Department for Business, Energy and Industrial Strategy",The Coal Authority,30/08/2023,Minewater Investigation Studies,ENV - Salinity Programme,Robertson Geologging Ltd,162547,"2,730.00"
"Department for Business, Energy and Industrial Strategy",The Coal Authority,08/09/2023,Minewater Pumping Tests,ENV - Salinity Programme,Severn Trent Serv Ops Uk Ltd,163307,596.61
"Department for Business, Energy and Industrial Strategy",The Coal Authority,08/09/2023,Minewater Pumping Tests,ENV - Salinity Programme,Severn Trent Serv Ops Uk Ltd,163307,"5,691.62"
"Department for Business, Energy and Industrial Strategy",The Coal Authority,08/09/2023,Minewater Pumping Tests,ENV - Salinity Programme,Severn Trent Serv Ops Uk Ltd,163307,557.82
"Department for Business, Energy and Industrial Strategy",The Coal Authority,08/09/2023,Minewater Site Investigations,ENV - Salinity Programme,Severn Trent Serv Ops Uk Ltd,163307,612.69
"Department for Business, Energy and Industrial Strategy",The Coal Authority,12/09/2023,Minewater Sampling - 'Non-operational' Sites,ENV - Salinity Programme,Socotec UK Limited,163208,410.85
"Department for Business, Energy and Industrial Strategy",The Coal Authority,31/08/2023,Minewater Sampling - 'Non-operational' Sites,ENV - Salinity Programme,Socotec UK Limited,163233,602.87
"Department for Business, Energy and Industrial Strategy",The Coal Authority,10/05/2023,Minewater Sampling - 'Non-operational' Sites,ENV - Salinity Programme,Socotec UK Limited,163234,44.11
"Department for Business, Energy and Industrial Strategy",The Coal Authority,10/05/2023,Minewater Sampling - 'Non-operational' Sites,ENV - Salinity Programme,Socotec UK Limited,163234,426.48
"Department for Business, Energy and Industrial Strategy",The Coal Authority,10/05/2023,Minewater Sampling - 'Non-operational' Sites,ENV - Salinity Programme,Socotec UK Limited,163234,659.15
"Department for Business, Energy and Industrial Strategy",The Coal Authority,16/08/2023,Minewater Sampling - 'Non-operational' Sites,ENV - Salinity Programme,Socotec UK Limited,163633,472.05
"Department for Business, Energy and Industrial Strategy",The Coal Authority,16/08/2023,Minewater Sampling - 'Non-operational' Sites,ENV - Salinity Programme,Socotec UK Limited,163633,47.83
"Department for Business, Energy and Industrial Strategy",The Coal Authority,16/08/2023,Minewater Sampling - 'Non-operational' Sites,ENV - Salinity Programme,Socotec UK Limited,163633,"1,141.36"
"Department for Business, Energy and Industrial Strategy",The Coal Authority,16/08/2023,Minewater Sampling - 'Non-operational' Sites,ENV - Salinity Programme,Socotec UK Limited,163633,87.37
"Department for Business, Energy and Industrial Strategy",The Coal Authority,15/08/2023,Subsistence Allowances,ENV - Salinity Programme,Staff Control Expenses,162290,4.58
"Department for Business, Energy and Industrial Strategy",The Coal Authority,16/08/2023,Fuel (Vehicle),ENV - Salinity Programme,Staff Control Expenses,162290,58.29
"Department for Business, Energy and Industrial Strategy",The Coal Authority,24/08/2023,Fuel (Vehicle),ENV - Salinity Programme,Staff Control Expenses,162290,26.27
"Department for Business, Energy and Industrial Strategy",The Coal Authority,24/08/2023,Subsistence Allowances,ENV - Salinity Programme,Staff Control Expenses,162290,3.89
"Department for Business, Energy and Industrial Strategy",The Coal Authority,22/08/2023,Subsistence Allowances,ENV - Salinity Programme,Staff Control Expenses,163283,15.35
"Department for Business, Energy and Industrial Strategy",The Coal Authority,22/08/2023,Subsistence Allowances,ENV - Salinity Programme,Staff Control Expenses,163283,6.18
"Department for Business, Energy and Industrial Strategy",The Coal Authority,23/08/2023,Peripherals / Consumables (MEP),ENV - Salinity Programme,Staff Control Expenses,163283,5
"Department for Business, Energy and Industrial Strategy",The Coal Authority,23/08/2023,Subsistence Allowances,ENV - Salinity Programme,Staff Control Expenses,163283,14.46
"Department for Business, Energy and Industrial Strategy",The Coal Authority,23/08/2023,Subsistence Allowances,ENV - Salinity Programme,Staff Control Expenses,163283,2.96
"Department for Business, Energy and Industrial Strategy",The Coal Authority,24/08/2023,Fuel (Vehicle),ENV - Salinity Programme,Staff Control Expenses,163283,50.23
"Department for Business, Energy and Industrial Strategy",The Coal Authority,24/08/2023,Peripherals / Consumables (MEP),ENV - Salinity Programme,Staff Control Expenses,163283,6
"Department for Business, Energy and Industrial Strategy",The Coal Authority,24/08/2023,Subsistence Allowances,ENV - Salinity Programme,Staff Control Expenses,163283,11.15
"Department for Business, Energy and Industrial Strategy",The Coal Authority,04/09/2023,Fuel (Vehicle),ENV - Salinity Programme,Staff Control Expenses,163283,17.89
"Department for Business, Energy and Industrial Strategy",The Coal Authority,04/09/2023,Subsistence Allowances,ENV - Salinity Programme,Staff Control Expenses,163283,5.13
"Department for Business, Energy and Industrial Strategy",The Coal Authority,05/09/2023,Fuel (Vehicle),ENV - Salinity Programme,Staff Control Expenses,163283,47.02
"Department for Business, Energy and Industrial Strategy",The Coal Authority,05/09/2023,Subsistence Allowances,ENV - Salinity Programme,Staff Control Expenses,163283,15.43
"Department for Business, Energy and Industrial Strategy",The Coal Authority,06/09/2023,Subsistence Allowances,ENV - Salinity Programme,Staff Control Expenses,163283,24
"Department for Business, Energy and Industrial Strategy",The Coal Authority,07/09/2023,Peripherals / Consumables (MEP),ENV - Salinity Programme,Staff Control Expenses,163283,3
"Department for Business, Energy and Industrial Strategy",The Coal Authority,07/09/2023,Peripherals / Consumables (MEP),ENV - Salinity Programme,Staff Control Expenses,163283,5.42
"Department for Business, Energy and Industrial Strategy",The Coal Authority,07/09/2023,Subsistence Allowances,ENV - Salinity Programme,Staff Control Expenses,163283,9.62
"Department for Business, Energy and Industrial Strategy",The Coal Authority,07/09/2023,Subsistence Allowances,ENV - Salinity Programme,Staff Control Expenses,163283,15.56
"Department for Business, Energy and Industrial Strategy",The Coal Authority,12/09/2023,Mileage Payments,ENV - Salinity Programme,Staff Control Expenses,163283,6.3
"Department for Business, Energy and Industrial Strategy",The Coal Authority,12/09/2023,Mileage Payments,ENV - Salinity Programme,Staff Control Expenses,163283,6.3
"Department for Business, Energy and Industrial Strategy",The Coal Authority,28/07/2023,Minewater Feasibility / Scoping,ENV - Salinity Programme,WSP UK Ltd,163063,"9,923.50"
"Department for Business, Energy and Industrial Strategy",The Coal Authority,05/09/2023,Minewater Feasibility / Scoping,ENV - Salinity Programme,WSP UK Ltd,163685,"1,163.97"
"Department for Business, Energy and Industrial Strategy",The Coal Authority,23/09/2023,Minewater Feasibility / Scoping,ENV - Salinity Programme,WSP UK Ltd,163866,"5,412.03"
"Department for Business, Energy and Industrial Strategy",The Coal Authority,18/08/2023,Consultancy - Sustainability,ENV - Sustainability & Environmental Compliance,IMServ Europe Limited,162835,"2,619.00"
"Department for Business, Energy and Industrial Strategy",The Coal Authority,12/09/2023,Consultancy - Sustainability,ENV - Sustainability & Environmental Compliance,IMServ Europe Limited,163032,"10,844.00"
"Department for Business, Energy and Industrial Strategy",The Coal Authority,19/09/2023,Software Support & Maintenance - On Premise,ENV - Technical,Aquatic Informatics ULC,163435,"1,162.12"
"Department for Business, Energy and Industrial Strategy",The Coal Authority,18/08/2023,Software Support & Maintenance - On Premise,ENV - Technical,Aquatic Informatics ULC,163441,"30,613.65"
"Department for Business, Energy and Industrial Strategy",The Coal Authority,18/08/2023,Software Support & Maintenance - On Premise,ENV - Technical,Aquatic Informatics ULC,163442,"28,436.92"
"Department for Business, Energy and Industrial Strategy",The Coal Authority,09/05/2023,Short Term Vehicle Hire,ENV - Technical,Enterprise Rent A Car,163389,25
"Department for Business, Energy and Industrial Strategy",The Coal Authority,11/09/2023,Staff Events,ENV - Technical,Government Procurement Card,162718,-15
"Department for Business, Energy and Industrial Strategy",The Coal Authority,11/08/2023,Subsistence Allowances,ENV - Technical,Government Procurement Card,163889,4.2
"Department for Business, Energy and Industrial Strategy",The Coal Authority,17/08/2023,Training & Education,ENV - Technical,Government Procurement Card,163889,60
"Department for Business, Energy and Industrial Strategy",The Coal Authority,29/08/2023,Training & Education,ENV - Technical,Government Procurement Card,163889,398.5
"Department for Business, Energy and Industrial Strategy",The Coal Authority,19/07/2023,Subsistence Allowances,ENV - Technical,Government Procurement Card,163890,19.04
"Department for Business, Energy and Industrial Strategy",The Coal Authority,19/07/2023,Subsistence Allowances,ENV - Technical,Government Procurement Card,163890,19.04
"Department for Business, Energy and Industrial Strategy",The Coal Authority,19/07/2023,Subsistence Allowances,ENV - Technical,Government Procurement Card,163890,19.04
"Department for Business, Energy and Industrial Strategy",The Coal Authority,19/07/2023,Subsistence Allowances,ENV - Technical,Government Procurement Card,163890,19.03
"Department for Business, Energy and Industrial Strategy",The Coal Authority,21/07/2023,Fuel (Vehicle),ENV - Technical,Government Procurement Card,163890,48.13
"Department for Business, Energy and Industrial Strategy",The Coal Authority,21/07/2023,Subsistence Allowances,ENV - Technical,Government Procurement Card,163890,9.58
"Department for Business, Energy and Industrial Strategy",The Coal Authority,08/09/2023,Minewater Monitoring & Flow Measurement,ENV - Technical,Severn Trent Serv Ops Uk Ltd,163307,595.79
"Department for Business, Energy and Industrial Strategy",The Coal Authority,08/06/2023,CY - Minewater Scheme - Additions,ENV - Technical,Soil Engineering Geoservices L,162906,440
"Department for Business, Energy and Industrial Strategy",The Coal Authority,08/06/2023,CY - Minewater Scheme - Additions,ENV - Technical,Soil Engineering Geoservices L,162906,"36,369.50"
"Department for Business, Energy and Industrial Strategy",The Coal Authority,08/06/2023,CY - Minewater Scheme - Additions,ENV - Technical,Soil Engineering Geoservices L,162906,"9,611.83"
"Department for Business, Energy and Industrial Strategy",The Coal Authority,08/06/2023,CY - Minewater Scheme - Additions,ENV - Technical,Soil Engineering Geoservices L,162906,"6,214.90"
"Department for Business, Energy and Industrial Strategy",The Coal Authority,08/06/2023,CY - Minewater Scheme - Additions,ENV - Technical,Soil Engineering Geoservices L,162906,"31,760.00"
"Department for Business, Energy and Industrial Strategy",The Coal Authority,08/06/2023,CY - Minewater Scheme - Additions,ENV - Technical,Soil Engineering Geoservices L,162906,"1,709.25"
"Department for Business, Energy and Industrial Strategy",The Coal Authority,08/06/2023,CY - Minewater Scheme - Additions,ENV - Technical,Soil Engineering Geoservices L,162906,"15,558.87"
"Department for Business, Energy and Industrial Strategy",The Coal Authority,08/06/2023,CY - Minewater Scheme - Additions,ENV - Technical,Soil Engineering Geoservices L,162906,"30,987.25"
"Department for Business, Energy and Industrial Strategy",The Coal Authority,08/06/2023,CY - Minewater Scheme - Additions,ENV - Technical,Soil Engineering Geoservices L,162906,65
"Department for Business, Energy and Industrial Strategy",The Coal Authority,08/06/2023,CY - Minewater Scheme - Additions,ENV - Technical,Soil Engineering Geoservices L,162906,"12,307.02"
"Department for Business, Energy and Industrial Strategy",The Coal Authority,08/06/2023,CY - Minewater Scheme - Additions,ENV - Technical,Soil Engineering Geoservices L,162906,"1,264.53"
"Department for Business, Energy and Industrial Strategy",The Coal Authority,08/06/2023,CY - Minewater Scheme - Additions,ENV - Technical,Soil Engineering Geoservices L,162906,"3,404.02"
"Department for Business, Energy and Industrial Strategy",The Coal Authority,08/06/2023,CY - Minewater Scheme - Additions,ENV - Technical,Soil Engineering Geoservices L,162906,"7,071.80"
"Department for Business, Energy and Industrial Strategy",The Coal Authority,08/06/2023,CY - Minewater Scheme - Additions,ENV - Technical,Soil Engineering Geoservices L,162906,"75,787.86"
"Department for Business, Energy and Industrial Strategy",The Coal Authority,17/07/2023,Subsistence Allowances,ENV - Technical,Staff Control Expenses,162290,3.54
"Department for Business, Energy and Industrial Strategy",The Coal Authority,18/07/2023,Subsistence Allowances,ENV - Technical,Staff Control Expenses,162290,13.32
"Department for Business, Energy and Industrial Strategy",The Coal Authority,19/07/2023,Subsistence Allowances,ENV - Technical,Staff Control Expenses,162290,2.66
"Department for Business, Energy and Industrial Strategy",The Coal Authority,21/07/2023,Subsistence Allowances,ENV - Technical,Staff Control Expenses,162290,3.33
"Department for Business, Energy and Industrial Strategy",The Coal Authority,23/08/2023,Mileage Payments,ENV - Technical,Staff Control Expenses,162290,0.66
"Department for Business, Energy and Industrial Strategy",The Coal Authority,23/08/2023,Mileage Payments,ENV - Technical,Staff Control Expenses,162290,6.29
"Department for Business, Energy and Industrial Strategy",The Coal Authority,23/08/2023,Mileage Payments,ENV - Technical,Staff Control Expenses,162290,11.08
"Department for Business, Energy and Industrial Strategy",The Coal Authority,23/08/2023,Mileage Payments,ENV - Technical,Staff Control Expenses,162290,5.32
"Department for Business, Energy and Industrial Strategy",The Coal Authority,11/08/2023,Mileage Payments,ENV - Technical,Staff Control Expenses,162808,45
"Department for Business, Energy and Industrial Strategy",The Coal Authority,12/09/2023,Mileage Payments,ENV - Technical,Staff Control Expenses,163283,46.15
"Department for Business, Energy and Industrial Strategy",The Coal Authority,12/09/2023,Mileage Payments,ENV - Technical,Staff Control Expenses,163283,45.99
"Department for Business, Energy and Industrial Strategy",The Coal Authority,25/09/2023,Professional Subscriptions,ENV - Technical,Staff Control Expenses,163732,202
"Department for Business, Energy and Industrial Strategy",The Coal Authority,28/08/2023,Temporary Contractors,ENV - Technical,TurnerFox Recruitment Limited,162466,595.26
"Department for Business, Energy and Industrial Strategy",The Coal Authority,04/09/2023,Temporary Contractors,ENV - Technical,TurnerFox Recruitment Limited,162645,531.34
"Department for Business, Energy and Industrial Strategy",The Coal Authority,06/09/2023,Business Meetings,Executive,Calder Conference Ltd,162571,137.46
"Department for Business, Energy and Industrial Strategy",The Coal Authority,19/08/2023,Training & Education,Executive,Elder Professional,162117,830
"Department for Business, Energy and Industrial Strategy",The Coal Authority,10/08/2023,Incidentals,Executive,Government Procurement Card,163889,5.95
"Department for Business, Energy and Industrial Strategy",The Coal Authority,10/08/2023,Subsistence Allowances,Executive,Government Procurement Card,163889,3.08
"Department for Business, Energy and Industrial Strategy",The Coal Authority,10/08/2023,Subsistence Allowances,Executive,Government Procurement Card,163889,2.08
"Department for Business, Energy and Industrial Strategy",The Coal Authority,15/08/2023,Subsistence Allowances,Executive,Government Procurement Card,163889,9.48
"Department for Business, Energy and Industrial Strategy",The Coal Authority,15/08/2023,Subsistence Allowances,Executive,Government Procurement Card,163889,20
"Department for Business, Energy and Industrial Strategy",The Coal Authority,16/08/2023,Subsistence Allowances,Executive,Government Procurement Card,163889,6.65
"Department for Business, Energy and Industrial Strategy",The Coal Authority,21/07/2023,Incidentals,Executive,Government Procurement Card,163890,11.67
"Department for Business, Energy and Industrial Strategy",The Coal Authority,02/08/2023,Business Meetings,Executive,Government Procurement Card,163890,6.92
"Department for Business, Energy and Industrial Strategy",The Coal Authority,08/02/2023,Fuel (Vehicle),Executive,Staff Control Expenses,162290,80.1
"Department for Business, Energy and Industrial Strategy",The Coal Authority,08/02/2023,Subsistence Allowances,Executive,Staff Control Expenses,162290,23.12
"Department for Business, Energy and Industrial Strategy",The Coal Authority,27/04/2023,Staff Events,Executive,Staff Control Expenses,162290,481.6
"Department for Business, Energy and Industrial Strategy",The Coal Authority,31/07/2023,Mileage Payments,Executive,Staff Control Expenses,162290,31.07
"Department for Business, Energy and Industrial Strategy",The Coal Authority,13/07/2023,Mileage Payments,Executive,Staff Control Expenses,163732,51.3
"Department for Business, Energy and Industrial Strategy",The Coal Authority,21/07/2023,Subsistence Allowances,Executive,Staff Control Expenses,163732,11.9
"Department for Business, Energy and Industrial Strategy",The Coal Authority,14/08/2023,Subsistence Allowances,Executive,Staff Control Expenses,163732,18
"Department for Business, Energy and Industrial Strategy",The Coal Authority,15/08/2023,Subsistence Allowances,Executive,Staff Control Expenses,163732,2.35
"Department for Business, Energy and Industrial Strategy",The Coal Authority,15/08/2023,Subsistence Allowances,Executive,Staff Control Expenses,163732,15.65
"Department for Business, Energy and Industrial Strategy",The Coal Authority,15/08/2023,Subsistence Allowances,Executive Assistants,Government Procurement Card,163889,20.21
"Department for Business, Energy and Industrial Strategy",The Coal Authority,15/08/2023,Subsistence Allowances,Executive Assistants,Government Procurement Card,163889,9.49
"Department for Business, Energy and Industrial Strategy",The Coal Authority,16/08/2023,Subsistence Allowances,Executive Assistants,Government Procurement Card,163889,5.99
"Department for Business, Energy and Industrial Strategy",The Coal Authority,16/08/2023,Subsistence Allowances,Executive Assistants,Government Procurement Card,163889,5.99
"Department for Business, Energy and Industrial Strategy",The Coal Authority,17/08/2023,Incidentals,Executive Assistants,Government Procurement Card,163889,23.33
"Department for Business, Energy and Industrial Strategy",The Coal Authority,17/08/2023,Subsistence Allowances,Executive Assistants,Government Procurement Card,163889,6.41
"Department for Business, Energy and Industrial Strategy",The Coal Authority,17/08/2023,Subsistence Allowances,Executive Assistants,Government Procurement Card,163889,2.49
"Department for Business, Energy and Industrial Strategy",The Coal Authority,07/08/2023,Training & Education,Executive Assistants,Today's PA,162118,"2,994.00"
"Department for Business, Energy and Industrial Strategy",The Coal Authority,23/08/2023,Fuel (Vehicle),Facilities,Allstar Business Solutions Ltd,162485,102.13
"Department for Business, Energy and Industrial Strategy",The Coal Authority,23/08/2023,Fuel (Vehicle),Facilities,Allstar Business Solutions Ltd,162485,38.76
"Department for Business, Energy and Industrial Strategy",The Coal Authority,23/08/2023,Fuel (Vehicle),Facilities,Allstar Business Solutions Ltd,162485,9.5
"Department for Business, Energy and Industrial Strategy",The Coal Authority,23/08/2023,Fuel (Vehicle),Facilities,Allstar Business Solutions Ltd,162485,41.67
"Department for Business, Energy and Industrial Strategy",The Coal Authority,23/08/2023,Fuel (Vehicle),Facilities,Allstar Business Solutions Ltd,162485,57.48
"Department for Business, Energy and Industrial Strategy",The Coal Authority,30/08/2023,Fuel (Vehicle),Facilities,Allstar Business Solutions Ltd,162486,32.89
"Department for Business, Energy and Industrial Strategy",The Coal Authority,30/08/2023,Fuel (Vehicle),Facilities,Allstar Business Solutions Ltd,162486,42.78
"Department for Business, Energy and Industrial Strategy",The Coal Authority,30/08/2023,Fuel (Vehicle),Facilities,Allstar Business Solutions Ltd,162486,40.35
"Department for Business, Energy and Industrial Strategy",The Coal Authority,30/08/2023,Fuel (Vehicle),Facilities,Allstar Business Solutions Ltd,162486,128.62
"Department for Business, Energy and Industrial Strategy",The Coal Authority,30/08/2023,Fuel (Vehicle),Facilities,Allstar Business Solutions Ltd,162486,9.5
"Department for Business, Energy and Industrial Strategy",The Coal Authority,20/09/2023,Fuel (Vehicle),Facilities,Allstar Business Solutions Ltd,163472,23.93
"Department for Business, Energy and Industrial Strategy",The Coal Authority,20/09/2023,Fuel (Vehicle),Facilities,Allstar Business Solutions Ltd,163472,47.35
"Department for Business, Energy and Industrial Strategy",The Coal Authority,20/09/2023,Fuel (Vehicle),Facilities,Allstar Business Solutions Ltd,163472,140.28
"Department for Business, Energy and Industrial Strategy",The Coal Authority,20/09/2023,Fuel (Vehicle),Facilities,Allstar Business Solutions Ltd,163472,9.5
"Department for Business, Energy and Industrial Strategy",The Coal Authority,06/09/2023,Fuel (Vehicle),Facilities,Allstar Business Solutions Ltd,163859,42.15
"Department for Business, Energy and Industrial Strategy",The Coal Authority,06/09/2023,Fuel (Vehicle),Facilities,Allstar Business Solutions Ltd,163859,65.97
"Department for Business, Energy and Industrial Strategy",The Coal Authority,06/09/2023,Fuel (Vehicle),Facilities,Allstar Business Solutions Ltd,163859,102.53
"Department for Business, Energy and Industrial Strategy",The Coal Authority,06/09/2023,Fuel (Vehicle),Facilities,Allstar Business Solutions Ltd,163859,41.33
"Department for Business, Energy and Industrial Strategy",The Coal Authority,06/09/2023,Fuel (Vehicle),Facilities,Allstar Business Solutions Ltd,163859,13.3
"Department for Business, Energy and Industrial Strategy",The Coal Authority,13/09/2023,Fuel (Vehicle),Facilities,Allstar Business Solutions Ltd,163860,70.14
"Department for Business, Energy and Industrial Strategy",The Coal Authority,13/09/2023,Fuel (Vehicle),Facilities,Allstar Business Solutions Ltd,163860,9.5
"Department for Business, Energy and Industrial Strategy",The Coal Authority,13/09/2023,Fuel (Vehicle),Facilities,Allstar Business Solutions Ltd,163860,88.16
"Department for Business, Energy and Industrial Strategy",The Coal Authority,13/09/2023,Fuel (Vehicle),Facilities,Allstar Business Solutions Ltd,163860,25.38
"Department for Business, Energy and Industrial Strategy",The Coal Authority,25/08/2023,Site Services,Facilities,Biffa Waste Services Ltd,162279,151.36
"Department for Business, Energy and Industrial Strategy",The Coal Authority,25/08/2023,Site Services,Facilities,Biffa Waste Services Ltd,162279,137.76
"Department for Business, Energy and Industrial Strategy",The Coal Authority,25/08/2023,Site Services,Facilities,Biffa Waste Services Ltd,162293,302.08
"Department for Business, Energy and Industrial Strategy",The Coal Authority,31/08/2023,Plant Maintenance,Facilities,Briggs & Forrester Building Services Maintenance L,162295,"1,637.62"
"Department for Business, Energy and Industrial Strategy",The Coal Authority,05/09/2023,Plant Maintenance,Facilities,Dakro Air & Water Limited,162613,209.99
"Department for Business, Energy and Industrial Strategy",The Coal Authority,11/09/2023,Plant Maintenance,Facilities,Dakro Air & Water Limited,163268,858
"Department for Business, Energy and Industrial Strategy",The Coal Authority,25/08/2023,Canteen Equipment,Facilities,Eden Springs UK LTD,162271,180.48
"Department for Business, Energy and Industrial Strategy",The Coal Authority,01/06/2023,Short Term Vehicle Hire,Facilities,Enterprise Rent A Car,162110,"8,531.10"
"Department for Business, Energy and Industrial Strategy",The Coal Authority,01/09/2023,Short Term Vehicle Hire,Facilities,Enterprise Rent A Car,163514,"7,785.62"
"Department for Business, Energy and Industrial Strategy",The Coal Authority,01/09/2023,Short Term Vehicle Hire,Facilities,Enterprise Rent A Car,163518,487.17
"Department for Business, Energy and Industrial Strategy",The Coal Authority,08/09/2023,Site Services,Facilities,Evacu8 Services Limited,163269,130
"Department for Business, Energy and Industrial Strategy",The Coal Authority,25/08/2023,Outsourced Cleaning Staff,Facilities,Fidelis,162270,"5,590.41"
"Department for Business, Energy and Industrial Strategy",The Coal Authority,31/08/2023,Cleaning Materials,Facilities,Fidelis,163270,478.27
"Department for Business, Energy and Industrial Strategy",The Coal Authority,31/08/2023,Cleaning Materials,Facilities,Fidelis,163271,22.32
"Department for Business, Energy and Industrial Strategy",The Coal Authority,10/09/2023,Site Repairs & Maintenance,Facilities,Garry Dalton Window Cleaning Service Ltd,163272,"1,350.00"
"Department for Business, Energy and Industrial Strategy",The Coal Authority,07/08/2023,Sundry Office Expenses,Facilities,Government Procurement Card,163889,57.4
"Department for Business, Energy and Industrial Strategy",The Coal Authority,14/08/2023,Site Repairs & Maintenance,Facilities,Government Procurement Card,163889,15
"Department for Business, Energy and Industrial Strategy",The Coal Authority,16/08/2023,Site Repairs & Maintenance,Facilities,Government Procurement Card,163889,97
"Department for Business, Energy and Industrial Strategy",The Coal Authority,16/08/2023,Sundry Office Expenses,Facilities,Government Procurement Card,163889,159
"Department for Business, Energy and Industrial Strategy",The Coal Authority,19/08/2023,Site Repairs & Maintenance,Facilities,Government Procurement Card,163889,61.67
"Department for Business, Energy and Industrial Strategy",The Coal Authority,21/08/2023,Site Repairs & Maintenance,Facilities,Government Procurement Card,163889,79.4
"Department for Business, Energy and Industrial Strategy",The Coal Authority,21/08/2023,Sundry Office Expenses,Facilities,Government Procurement Card,163889,9.63
"Department for Business, Energy and Industrial Strategy",The Coal Authority,23/08/2023,Sundry Office Expenses,Facilities,Government Procurement Card,163889,3.99
"Department for Business, Energy and Industrial Strategy",The Coal Authority,24/08/2023,Sundry Office Expenses,Facilities,Government Procurement Card,163889,11.67
"Department for Business, Energy and Industrial Strategy",The Coal Authority,29/08/2023,Sundry Office Expenses,Facilities,Government Procurement Card,163889,44.3
"Department for Business, Energy and Industrial Strategy",The Coal Authority,03/07/2023,Site Services,Facilities,Government Procurement Card,163890,14.95
"Department for Business, Energy and Industrial Strategy",The Coal Authority,03/07/2023,Site Services,Facilities,Government Procurement Card,163890,60
"Department for Business, Energy and Industrial Strategy",The Coal Authority,04/07/2023,Site Services,Facilities,Government Procurement Card,163890,65.56
"Department for Business, Energy and Industrial Strategy",The Coal Authority,05/07/2023,Site Repairs & Maintenance,Facilities,Government Procurement Card,163890,268.5
"Department for Business, Energy and Industrial Strategy",The Coal Authority,10/07/2023,Site Services,Facilities,Government Procurement Card,163890,9.92
"Department for Business, Energy and Industrial Strategy",The Coal Authority,10/07/2023,Site Services,Facilities,Government Procurement Card,163890,19.52
"Department for Business, Energy and Industrial Strategy",The Coal Authority,10/07/2023,Site Services,Facilities,Government Procurement Card,163890,57.4
"Department for Business, Energy and Industrial Strategy",The Coal Authority,11/07/2023,Site Repairs & Maintenance,Facilities,Government Procurement Card,163890,30.46
"Department for Business, Energy and Industrial Strategy",The Coal Authority,12/07/2023,Site Services,Facilities,Government Procurement Card,163890,5.76
"Department for Business, Energy and Industrial Strategy",The Coal Authority,17/07/2023,Site Services,Facilities,Government Procurement Card,163890,57.4
"Department for Business, Energy and Industrial Strategy",The Coal Authority,19/07/2023,Site Repairs & Maintenance,Facilities,Government Procurement Card,163890,19.98
"Department for Business, Energy and Industrial Strategy",The Coal Authority,19/07/2023,Site Repairs & Maintenance,Facilities,Government Procurement Card,163890,125.5
"Department for Business, Energy and Industrial Strategy",The Coal Authority,20/07/2023,Site Services,Facilities,Government Procurement Card,163890,14.95
"Department for Business, Energy and Industrial Strategy",The Coal Authority,24/07/2023,Site Services,Facilities,Government Procurement Card,163890,57.4
"Department for Business, Energy and Industrial Strategy",The Coal Authority,26/07/2023,Site Services,Facilities,Government Procurement Card,163890,318.69
"Department for Business, Energy and Industrial Strategy",The Coal Authority,29/07/2023,Site Repairs & Maintenance,Facilities,Government Procurement Card,163890,31.63
"Department for Business, Energy and Industrial Strategy",The Coal Authority,31/07/2023,Site Services,Facilities,Government Procurement Card,163890,57.4
"Department for Business, Energy and Industrial Strategy",The Coal Authority,30/06/2023,Contract Hire Vehicles,Facilities,Harveys Autocentre Ltd,162464,70
"Department for Business, Energy and Industrial Strategy",The Coal Authority,30/06/2023,Contract Hire Vehicles,Facilities,Harveys Autocentre Ltd,162464,70
"Department for Business, Energy and Industrial Strategy",The Coal Authority,14/07/2023,Plant Maintenance,Facilities,Maintech Power Ltd,162363,800
"Department for Business, Energy and Industrial Strategy",The Coal Authority,20/01/2023,Site Services,Facilities,Personnel Hygiene Services Ltd,162590,711.06
"Department for Business, Energy and Industrial Strategy",The Coal Authority,20/01/2023,Site Services,Facilities,Personnel Hygiene Services Ltd,162590,"11,718.98"
"Department for Business, Energy and Industrial Strategy",The Coal Authority,07/09/2023,Site Services,Facilities,Personnel Hygiene Services Ltd,162591,"-8,888.35"
"Department for Business, Energy and Industrial Strategy",The Coal Authority,07/09/2023,Site Services,Facilities,Personnel Hygiene Services Ltd,162600,"-4,490.42"
"Department for Business, Energy and Industrial Strategy",The Coal Authority,21/01/2023,Site Services,Facilities,Personnel Hygiene Services Ltd,162604,395.88
"Department for Business, Energy and Industrial Strategy",The Coal Authority,21/01/2023,Site Services,Facilities,Personnel Hygiene Services Ltd,162604,"5,812.47"
"Department for Business, Energy and Industrial Strategy",The Coal Authority,07/09/2023,Site Services,Facilities,Personnel Hygiene Services Ltd,162605,-395.88
"Department for Business, Energy and Industrial Strategy",The Coal Authority,07/09/2023,Site Services,Facilities,Personnel Hygiene Services Ltd,162605,"-5,812.47"
"Department for Business, Energy and Industrial Strategy",The Coal Authority,21/01/2023,Site Services,Facilities,Personnel Hygiene Services Ltd,162612,395.88
"Department for Business, Energy and Industrial Strategy",The Coal Authority,21/01/2023,Site Services,Facilities,Personnel Hygiene Services Ltd,162612,"5,465.63"
"Department for Business, Energy and Industrial Strategy",The Coal Authority,21/01/2023,Site Services,Facilities,Personnel Hygiene Services Ltd,162612,46.84
"Department for Business, Energy and Industrial Strategy",The Coal Authority,21/01/2023,Site Services,Facilities,Personnel Hygiene Services Ltd,162612,300
"Department for Business, Energy and Industrial Strategy",The Coal Authority,31/08/2023,Outsourced Security Staff,Facilities,Regent Office Care Ltd T/A Regent Samsic,162614,"8,793.47"
"Department for Business, Energy and Industrial Strategy",The Coal Authority,31/08/2023,Site Services,Facilities,Restore Datashred,162303,235.8
"Department for Business, Energy and Industrial Strategy",The Coal Authority,01/09/2023,Site Services,Facilities,Spacecare Ltd,162513,736.97
"Department for Business, Energy and Industrial Strategy",The Coal Authority,18/08/2023,Plant Maintenance,Facilities,Stannah Lift Services Limited,162246,737.13
"Department for Business, Energy and Industrial Strategy",The Coal Authority,24/08/2023,Plant Maintenance,Facilities,Total Integrated Solutions,162291,357.75
"Department for Business, Energy and Industrial Strategy",The Coal Authority,29/08/2023,Site Repairs & Maintenance,Facilities,Total Integrated Solutions,162292,352.2
"Department for Business, Energy and Industrial Strategy",The Coal Authority,07/09/2023,Site Repairs & Maintenance,Facilities,Total Integrated Solutions,163273,286.27
"Department for Business, Energy and Industrial Strategy",The Coal Authority,13/09/2023,Water Charges,Facilities,Water Plus Limited,163520,806.16
"Department for Business, Energy and Industrial Strategy",The Coal Authority,31/07/2023,Software Support & Maintenance - SaaS,Finance,Bottomline Technologies D/D,162467,174.91
"Department for Business, Energy and Industrial Strategy",The Coal Authority,31/08/2023,Software Support & Maintenance - SaaS,Finance,Bottomline Technologies D/D,162579,175.61
"Department for Business, Energy and Industrial Strategy",The Coal Authority,24/08/2023,Payroll Processing Fees,Finance,Cgi It Uk Ltd,162260,986.02
"Department for Business, Energy and Industrial Strategy",The Coal Authority,31/08/2023,Hotel & Accommodation,Finance,Corporate Travel Management North,163463,351.4
"Department for Business, Energy and Industrial Strategy",The Coal Authority,31/08/2023,Fares - Rail,Finance,Corporate Travel Management North,163600,"2,951.65"
"Department for Business, Energy and Industrial Strategy",The Coal Authority,31/08/2023,Hotel & Accommodation,Finance,Corporate Travel Management North,163600,"9,893.65"
"Department for Business, Energy and Industrial Strategy",The Coal Authority,28/02/2023,Fares - Rail,Finance,Corporate Travel Management North,163727,"2,231.00"
"Department for Business, Energy and Industrial Strategy",The Coal Authority,28/02/2023,Hotel & Accommodation,Finance,Corporate Travel Management North,163727,"1,329.44"
"Department for Business, Energy and Industrial Strategy",The Coal Authority,31/05/2023,Fares - Rail,Finance,Corporate Travel Management North,163862,"3,363.55"
"Department for Business, Energy and Industrial Strategy",The Coal Authority,31/05/2023,Hotel & Accommodation,Finance,Corporate Travel Management North,163862,"11,482.77"
"Department for Business, Energy and Industrial Strategy",The Coal Authority,11/09/2023,Payroll Processing Fees,Finance,MyCSP Ltd,163347,249.92
"Department for Business, Energy and Industrial Strategy",The Coal Authority,13/09/2023,Bank Charges,Finance,National Westminster Bank Plc,163630,75
"Department for Business, Energy and Industrial Strategy",The Coal Authority,01/09/2023,Bank Charges,Finance,National Westminster Bank Plc,163631,61.93
"Department for Business, Energy and Industrial Strategy",The Coal Authority,08/02/2023,Subsistence Allowances,Finance,Staff Control Expenses,162290,18.54
"Department for Business, Energy and Industrial Strategy",The Coal Authority,04/09/2023,Temporary Contractors,Finance,TurnerFox Recruitment Limited,162553,463.42
"Department for Business, Energy and Industrial Strategy",The Coal Authority,18/09/2023,Temporary Contractors,Finance,TurnerFox Recruitment Limited,163632,591.26
"Department for Business, Energy and Industrial Strategy",The Coal Authority,25/09/2023,Temporary Contractors,Finance,TurnerFox Recruitment Limited,163840,591.26
"Department for Business, Energy and Industrial Strategy",The Coal Authority,08/08/2023,Office Furniture,"Health, Safety & Wellbeing",Government Procurement Card,163889,33.32
"Department for Business, Energy and Industrial Strategy",The Coal Authority,15/08/2023,Subsistence Allowances,"Health, Safety & Wellbeing",Government Procurement Card,163889,8.5
"Department for Business, Energy and Industrial Strategy",The Coal Authority,15/08/2023,Subsistence Allowances,"Health, Safety & Wellbeing",Government Procurement Card,163889,20.21
"Department for Business, Energy and Industrial Strategy",The Coal Authority,15/08/2023,Subsistence Allowances,"Health, Safety & Wellbeing",Government Procurement Card,163889,0.54
"Department for Business, Energy and Industrial Strategy",The Coal Authority,15/08/2023,Subsistence Allowances,"Health, Safety & Wellbeing",Government Procurement Card,163889,9.48
"Department for Business, Energy and Industrial Strategy",The Coal Authority,15/08/2023,Subsistence Allowances,"Health, Safety & Wellbeing",Government Procurement Card,163889,3.25
"Department for Business, Energy and Industrial Strategy",The Coal Authority,13/07/2023,Subsistence Allowances,"Health, Safety & Wellbeing",Government Procurement Card,163890,3.13
"Department for Business, Energy and Industrial Strategy",The Coal Authority,31/08/2023,Central Training,"Health, Safety & Wellbeing",Mines Rescue Service Limited,162508,193
"Department for Business, Energy and Industrial Strategy",The Coal Authority,31/08/2023,Central Training,"Health, Safety & Wellbeing",Mines Rescue Service Limited,162509,193
"Department for Business, Energy and Industrial Strategy",The Coal Authority,11/09/2023,Central Training,"Health, Safety & Wellbeing",Risk & Safety Management Serv,163338,469
"Department for Business, Energy and Industrial Strategy",The Coal Authority,04/09/2023,Subsistence Allowances,"Health, Safety & Wellbeing",Staff Control Expenses,163283,5.5
"Department for Business, Energy and Industrial Strategy",The Coal Authority,04/09/2023,Subsistence Allowances,"Health, Safety & Wellbeing",Staff Control Expenses,163283,5.5
"Department for Business, Energy and Industrial Strategy",The Coal Authority,07/09/2023,Mileage Payments,"Health, Safety & Wellbeing",Staff Control Expenses,163283,2.5
"Department for Business, Energy and Industrial Strategy",The Coal Authority,07/09/2023,Mileage Payments,"Health, Safety & Wellbeing",Staff Control Expenses,163283,2.9
"Department for Business, Energy and Industrial Strategy",The Coal Authority,08/08/2023,Fares - Public Transport,Heat & By-Product Innovation,Government Procurement Card,163889,6.1
"Department for Business, Energy and Industrial Strategy",The Coal Authority,19/07/2023,Subsistence Allowances,Heat & By-Product Innovation,Government Procurement Card,163890,19.04
"Department for Business, Energy and Industrial Strategy",The Coal Authority,13/07/2023,Incidentals,Heat & By-Product Innovation,Staff Control Expenses,162290,2.92
"Department for Business, Energy and Industrial Strategy",The Coal Authority,13/07/2023,Incidentals,Heat & By-Product Innovation,Staff Control Expenses,162290,3
"Department for Business, Energy and Industrial Strategy",The Coal Authority,13/07/2023,Mileage Payments,Heat & By-Product Innovation,Staff Control Expenses,162290,8.48
"Department for Business, Energy and Industrial Strategy",The Coal Authority,13/07/2023,Mileage Payments,Heat & By-Product Innovation,Staff Control Expenses,162290,61.48
"Department for Business, Energy and Industrial Strategy",The Coal Authority,13/07/2023,Mileage Payments,Heat & By-Product Innovation,Staff Control Expenses,162290,59.52
"Department for Business, Energy and Industrial Strategy",The Coal Authority,13/07/2023,Mileage Payments,Heat & By-Product Innovation,Staff Control Expenses,162290,5.98
"Department for Business, Energy and Industrial Strategy",The Coal Authority,13/07/2023,Mileage Payments,Heat & By-Product Innovation,Staff Control Expenses,162290,8.32
"Department for Business, Energy and Industrial Strategy",The Coal Authority,13/07/2023,Subsistence Allowances,Heat & By-Product Innovation,Staff Control Expenses,162290,3.19
"Department for Business, Energy and Industrial Strategy",The Coal Authority,13/07/2023,Subsistence Allowances,Heat & By-Product Innovation,Staff Control Expenses,162290,1.49
"Department for Business, Energy and Industrial Strategy",The Coal Authority,13/07/2023,Subsistence Allowances,Heat & By-Product Innovation,Staff Control Expenses,162290,8.67
"Department for Business, Energy and Industrial Strategy",The Coal Authority,14/07/2023,Incidentals,Heat & By-Product Innovation,Staff Control Expenses,162290,3.6
"Department for Business, Energy and Industrial Strategy",The Coal Authority,14/07/2023,Mileage Payments,Heat & By-Product Innovation,Staff Control Expenses,162290,6
"Department for Business, Energy and Industrial Strategy",The Coal Authority,14/07/2023,Mileage Payments,Heat & By-Product Innovation,Staff Control Expenses,162290,57.22
"Department for Business, Energy and Industrial Strategy",The Coal Authority,14/07/2023,Mileage Payments,Heat & By-Product Innovation,Staff Control Expenses,162290,56.79
"Department for Business, Energy and Industrial Strategy",The Coal Authority,14/07/2023,Mileage Payments,Heat & By-Product Innovation,Staff Control Expenses,162290,9.13
"Department for Business, Energy and Industrial Strategy",The Coal Authority,14/07/2023,Mileage Payments,Heat & By-Product Innovation,Staff Control Expenses,162290,9.63
"Department for Business, Energy and Industrial Strategy",The Coal Authority,14/07/2023,Subsistence Allowances,Heat & By-Product Innovation,Staff Control Expenses,162290,1.24
"Department for Business, Energy and Industrial Strategy",The Coal Authority,14/07/2023,Subsistence Allowances,Heat & By-Product Innovation,Staff Control Expenses,162290,9.02
"Department for Business, Energy and Industrial Strategy",The Coal Authority,22/08/2023,Peripherals / Consumables (MEP),Heat & By-Product Innovation,Staff Control Expenses,162808,8.97
"Department for Business, Energy and Industrial Strategy",The Coal Authority,23/08/2023,Mileage Payments,Heat & By-Product Innovation,Staff Control Expenses,162808,36.9
"Department for Business, Energy and Industrial Strategy",The Coal Authority,17/07/2023,Incidentals,Heat & By-Product Innovation,Staff Control Expenses,163283,6
"Department for Business, Energy and Industrial Strategy",The Coal Authority,17/07/2023,Mileage Payments,Heat & By-Product Innovation,Staff Control Expenses,163283,69.78
"Department for Business, Energy and Industrial Strategy",The Coal Authority,17/07/2023,Mileage Payments,Heat & By-Product Innovation,Staff Control Expenses,163283,0.47
"Department for Business, Energy and Industrial Strategy",The Coal Authority,17/07/2023,Subsistence Allowances,Heat & By-Product Innovation,Staff Control Expenses,163283,10.95
"Department for Business, Energy and Industrial Strategy",The Coal Authority,18/07/2023,Subsistence Allowances,Heat & By-Product Innovation,Staff Control Expenses,163283,16.17
"Department for Business, Energy and Industrial Strategy",The Coal Authority,19/07/2023,Subsistence Allowances,Heat & By-Product Innovation,Staff Control Expenses,163283,3.41
"Department for Business, Energy and Industrial Strategy",The Coal Authority,19/07/2023,Subsistence Allowances,Heat & By-Product Innovation,Staff Control Expenses,163283,6.04
"Department for Business, Energy and Industrial Strategy",The Coal Authority,21/07/2023,Incidentals,Heat & By-Product Innovation,Staff Control Expenses,163283,10
"Department for Business, Energy and Industrial Strategy",The Coal Authority,21/07/2023,Mileage Payments,Heat & By-Product Innovation,Staff Control Expenses,163283,0.38
"Department for Business, Energy and Industrial Strategy",The Coal Authority,21/07/2023,Mileage Payments,Heat & By-Product Innovation,Staff Control Expenses,163283,40.13
"Department for Business, Energy and Industrial Strategy",The Coal Authority,21/07/2023,Mileage Payments,Heat & By-Product Innovation,Staff Control Expenses,163283,30.64
"Department for Business, Energy and Industrial Strategy",The Coal Authority,21/07/2023,Subsistence Allowances,Heat & By-Product Innovation,Staff Control Expenses,163283,3.33
"Department for Business, Energy and Industrial Strategy",The Coal Authority,21/08/2023,Incidentals,Heat & By-Product Innovation,Staff Control Expenses,163283,2.08
"Department for Business, Energy and Industrial Strategy",The Coal Authority,21/08/2023,Subsistence Allowances,Heat & By-Product Innovation,Staff Control Expenses,163283,4.07
"Department for Business, Energy and Industrial Strategy",The Coal Authority,21/08/2023,Subsistence Allowances,Heat & By-Product Innovation,Staff Control Expenses,163283,4.24
"Department for Business, Energy and Industrial Strategy",The Coal Authority,11/09/2023,Mileage Payments,Heat & By-Product Innovation,Staff Control Expenses,163283,34.54
"Department for Business, Energy and Industrial Strategy",The Coal Authority,31/08/2023,Fares - Rail,Heat & By-Product Innovation,Staff Control Expenses,163732,2.6
"Department for Business, Energy and Industrial Strategy",The Coal Authority,11/09/2023,Subsistence Allowances,Heat & By-Product Innovation,Staff Control Expenses,163732,6.75
"Department for Business, Energy and Industrial Strategy",The Coal Authority,12/09/2023,Subsistence Allowances,Heat & By-Product Innovation,Staff Control Expenses,163732,8.3
"Department for Business, Energy and Industrial Strategy",The Coal Authority,13/09/2023,Incidentals,Heat & By-Product Innovation,Staff Control Expenses,163732,30
"Department for Business, Energy and Industrial Strategy",The Coal Authority,13/09/2023,Mileage Payments,Heat & By-Product Innovation,Staff Control Expenses,163732,42.3
"Department for Business, Energy and Industrial Strategy",The Coal Authority,13/09/2023,Subsistence Allowances,Heat & By-Product Innovation,Staff Control Expenses,163732,8.02
"Department for Business, Energy and Industrial Strategy",The Coal Authority,10/08/2023,Incidentals,Incident & Emergency Response,Government Procurement Card,163889,4.95
"Department for Business, Energy and Industrial Strategy",The Coal Authority,10/08/2023,Subsistence Allowances,Incident & Emergency Response,Government Procurement Card,163889,2.58
"Department for Business, Energy and Industrial Strategy",The Coal Authority,10/08/2023,Subsistence Allowances,Incident & Emergency Response,Government Procurement Card,163889,3.08
"Department for Business, Energy and Industrial Strategy",The Coal Authority,15/08/2023,Subsistence Allowances,Incident & Emergency Response,Government Procurement Card,163889,19.67
"Department for Business, Energy and Industrial Strategy",The Coal Authority,15/08/2023,Subsistence Allowances,Incident & Emergency Response,Government Procurement Card,163889,8.5
"Department for Business, Energy and Industrial Strategy",The Coal Authority,15/08/2023,Subsistence Allowances,Incident & Emergency Response,Government Procurement Card,163889,3.25
"Department for Business, Energy and Industrial Strategy",The Coal Authority,13/07/2023,Fuel (Vehicle),Incident & Emergency Response,Government Procurement Card,163890,17.84
"Department for Business, Energy and Industrial Strategy",The Coal Authority,13/07/2023,Subsistence Allowances,Incident & Emergency Response,Government Procurement Card,163890,3.13
"Department for Business, Energy and Industrial Strategy",The Coal Authority,24/07/2023,Fuel (Vehicle),Incident & Emergency Response,Government Procurement Card,163890,54.68
"Department for Business, Energy and Industrial Strategy",The Coal Authority,24/07/2023,Subsistence Allowances,Incident & Emergency Response,Government Procurement Card,163890,30.8
"Department for Business, Energy and Industrial Strategy",The Coal Authority,25/07/2023,Fuel (Vehicle),Incident & Emergency Response,Government Procurement Card,163890,50.2
"Department for Business, Energy and Industrial Strategy",The Coal Authority,25/07/2023,Subsistence Allowances,Incident & Emergency Response,Government Procurement Card,163890,3.08
"Department for Business, Energy and Industrial Strategy",The Coal Authority,25/07/2023,Subsistence Allowances,Incident & Emergency Response,Government Procurement Card,163890,9.04
"Department for Business, Energy and Industrial Strategy",The Coal Authority,12/09/2023,Training & Education,Incident & Emergency Response,Mines Rescue Service Limited,162953,"12,500.00"
"Department for Business, Energy and Industrial Strategy",The Coal Authority,26/07/2023,Mileage Payments,Incident & Emergency Response,Staff Control Expenses,162290,25.74
"Department for Business, Energy and Industrial Strategy",The Coal Authority,07/08/2023,Mileage Payments,Incident & Emergency Response,Staff Control Expenses,162290,8.69
"Department for Business, Energy and Industrial Strategy",The Coal Authority,08/09/2023,Incidentals,Innovation By-Product & Services Delivery,Adverset Media Solutions Limited,163469,545
"Department for Business, Energy and Industrial Strategy",The Coal Authority,08/09/2023,Incidentals,Innovation By-Product & Services Delivery,Adverset Media Solutions Limited,163470,45
"Department for Business, Energy and Industrial Strategy",The Coal Authority,03/08/2023,Membership Subscriptions,Innovation By-Product & Services Delivery,Government Procurement Card,163889,196.55
"Department for Business, Energy and Industrial Strategy",The Coal Authority,16/08/2023,Subsistence Allowances,Innovation By-Product & Services Delivery,Government Procurement Card,163889,6.82
"Department for Business, Energy and Industrial Strategy",The Coal Authority,16/08/2023,Subsistence Allowances,Innovation By-Product & Services Delivery,Government Procurement Card,163889,6.82
"Department for Business, Energy and Industrial Strategy",The Coal Authority,16/08/2023,Subsistence Allowances,Innovation By-Product & Services Delivery,Government Procurement Card,163889,7.03
"Department for Business, Energy and Industrial Strategy",The Coal Authority,18/08/2023,Business Meetings,Innovation By-Product & Services Delivery,Government Procurement Card,163889,14.38
"Department for Business, Energy and Industrial Strategy",The Coal Authority,21/08/2023,Software Licenses - SaaS,Innovation By-Product & Services Delivery,Government Procurement Card,163889,126.5
"Department for Business, Energy and Industrial Strategy",The Coal Authority,23/08/2023,Stationery,Innovation By-Product & Services Delivery,Government Procurement Card,163889,10.85
"Department for Business, Energy and Industrial Strategy",The Coal Authority,26/08/2023,Fares - Public Transport,Innovation By-Product & Services Delivery,Government Procurement Card,163889,6.5
"Department for Business, Energy and Industrial Strategy",The Coal Authority,26/08/2023,Subsistence Allowances,Innovation By-Product & Services Delivery,Government Procurement Card,163889,26.67
"Department for Business, Energy and Industrial Strategy",The Coal Authority,26/08/2023,Subsistence Allowances,Innovation By-Product & Services Delivery,Government Procurement Card,163889,3.33
"Department for Business, Energy and Industrial Strategy",The Coal Authority,27/08/2023,Subsistence Allowances,Innovation By-Product & Services Delivery,Government Procurement Card,163889,24.29
"Department for Business, Energy and Industrial Strategy",The Coal Authority,29/08/2023,Fares - Public Transport,Innovation By-Product & Services Delivery,Government Procurement Card,163889,7
"Department for Business, Energy and Industrial Strategy",The Coal Authority,29/08/2023,Subsistence Allowances,Innovation By-Product & Services Delivery,Government Procurement Card,163889,4.15
"Department for Business, Energy and Industrial Strategy",The Coal Authority,30/08/2023,Fuel (Vehicle),Innovation By-Product & Services Delivery,Government Procurement Card,163889,37.35
"Department for Business, Energy and Industrial Strategy",The Coal Authority,30/08/2023,Subsistence Allowances,Innovation By-Product & Services Delivery,Government Procurement Card,163889,15.41
"Department for Business, Energy and Industrial Strategy",The Coal Authority,28/06/2023,Subsistence Allowances,Innovation By-Product & Services Delivery,Government Procurement Card,163891,30
"Department for Business, Energy and Industrial Strategy",The Coal Authority,29/06/2023,Subsistence Allowances,Innovation By-Product & Services Delivery,Government Procurement Card,163891,2.92
"Department for Business, Energy and Industrial Strategy",The Coal Authority,05/09/2023,Innovation Costs,Innovation By-Product & Services Delivery,Orsis (UK) Ltd,162905,22.8
"Department for Business, Energy and Industrial Strategy",The Coal Authority,08/09/2023,Innovation Costs,Innovation By-Product & Services Delivery,Severn Trent Serv Ops Uk Ltd,163194,"1,733.53"
"Department for Business, Energy and Industrial Strategy",The Coal Authority,08/09/2023,Innovation Costs,Innovation By-Product & Services Delivery,Severn Trent Serv Ops Uk Ltd,163307,"8,706.38"
"Department for Business, Energy and Industrial Strategy",The Coal Authority,27/09/2023,Innovation Costs,Innovation By-Product & Services Delivery,Smart Energy (GB) Ltd,163845,550
"Department for Business, Energy and Industrial Strategy",The Coal Authority,07/07/2023,Incidentals,Innovation By-Product & Services Delivery,Staff Control Expenses,162290,2.6
"Department for Business, Energy and Industrial Strategy",The Coal Authority,07/07/2023,Mileage Payments,Innovation By-Product & Services Delivery,Staff Control Expenses,162290,19.23
"Department for Business, Energy and Industrial Strategy",The Coal Authority,07/07/2023,Mileage Payments,Innovation By-Product & Services Delivery,Staff Control Expenses,162290,19.44
"Department for Business, Energy and Industrial Strategy",The Coal Authority,07/07/2023,Stationery,Innovation By-Product & Services Delivery,Staff Control Expenses,162290,4.99
"Department for Business, Energy and Industrial Strategy",The Coal Authority,07/07/2023,Subsistence Allowances,Innovation By-Product & Services Delivery,Staff Control Expenses,162290,4.75
"Department for Business, Energy and Industrial Strategy",The Coal Authority,22/08/2023,Incidentals,Innovation By-Product & Services Delivery,Staff Control Expenses,162290,4.4
